Workbook

Sheet Tables
A1: Tables | B1: Link
A2: Table 1: SEBI Registered Market Intermediaries/Institutions | B2: Click Here for Table 1
A3: Table 2: Company-Wise Capital Raised through Public and Rights Issues (Equity) during December-2017 | B3: Click Here for Table 2
A4: Table 3: Open Offers under SEBI Takeover Code closed during December-2017 | B4: Click Here for Table 3
A5: Table 4: Substantial Acquisition of Shares and Takeovers | B5: Click Here for Table 4
A6: Table 5: Capital Raised from the Primary Market through though Public and Rights Issues | B6: Click Here for Table 5
A7: Table 6: Issues Listed on SME Platform | B7: Click Here for Table 6
A8: Table 7: Industry-wise Classification of Capital Raised through Public and Rights Issues | B8: Click Here for Table 7
A9: Table 8: Sector-wise and Region-wise Distribution of Capital Mobilised through Public and Rights Issues | B9: Click Here for Table 8
A10: Table 9: Size-wise Classification of Capital Raised through Public and Rights Issues | B10: Click Here for Table 9
A11: Table 10: Capital Raised by Listed Companies from the Primary Market through QIPs | B11: Click Here for Table 10
A12: Table 11: Preferential Allotments Listed at BSE and NSE | B12: Click Here for Table 11
A13: Table 12: Private Placement of Corporate Debt Reported to BSE and NSE | B13: Click Here for Table 12
A14: Table 13: Trading in the Corporate Debt Market | B14: Click Here for Table 13
A15: Table 14: Ratings Assigned for Long-term Corporate Debt Securities (Maturity ≥ 1 year) | B15: Click Here for Table 14
A16: Table 15: Review of Accepted Ratings of Corporate Debt Securities (Maturity ≥ 1 year) | B16: Click Here for Table 15
A17: Table 16: Distribution of Turnover on Cash Segments of Exchanges (₹ crore) | B17: Click Here for Table 16
A18: Table 17: Trends in Cash Segment of BSE | B18: Click Here for Table 17
A19: Table 18: Trends in Cash Segment of NSE | B19: Click Here for Table 18
A20: Table 19: Trends in Cash Segment of MSEI | B20: Click Here for Table 19
A21: Table 20: City-wise Distribution of Turnover on Cash Segments of BSE and NSE | B21: Click Here for Table 20
A22: Table 21: Category-wise Share of Turnover in Cash Segment of BSE | B22: Click Here for Table 21
A23: Table 22: Category-wise Share of Turnover in Cash Segment of NSE | B23: Click Here for Table 22
A24: Table23: Category wise Share of Turnover in Cash Segment of MSEI | B24: Click Here for Table 23
A25: Table 24: Component Stocks: S&P BSE Sensex during December-2017 | B25: Click Here for Table 24
A26: Table 25: Component Stocks: Nifty 50 Index during December-2017 | B26: Click Here for Table 25
A27: Table :26: Component Stock: SX 40 Index | B27: Click Here for Table 26
A28: Table 27: Advances/Declines in Cash Segment of BSE and NSE | B28: Click Here for Table 27
A29: Table 28: Trading Frequency in Cash Segment of BSE and NSE | B29: Click Here for Table 28
A30: Table 29: Daily Volatility of Major Indices (percent) | B30: Click Here for Table 29
A31: Table 30: Percentage Share of Top ‘N’ Securities/Members in Turnover of Cash Segment (percent) | B31: Click Here for Table 30
A32: Table 31: Settlement Statistics for Cash Segment of BSE | B32: Click Here for Table 31
A33: Table 32: Settlement Stastics for Cash Segment of NSE | B33: Click Here for Table 32
A34: Table 33: Settlement Statistics for Cash Segment of MSEI | B34: Click Here for Table 33
A35: Table 34: Trends in Equity Derivatives Segment at BSE (Turnover in Notional Value) | B35: Click Here for Table 34
A36: Table 35: Trends in Equity Derivatives Segment at NSE | B36: Click Here for Table 35
A37: Table 36: Settlement Statistics in Equity Derivatives Segment at BSE and NSE (₹ crore) | B37: Click Here for Table 36
A38: Table 37: Category-wise Share of Turnover & Open Interest in Equity Derivative Segment of BSE | B38: Click Here for Table 37
A39: Table 38: Category-wise Share of Turnover & Open Interest in Equity Derivative Segment of NSE | B39: Click Here for Table 38
A40: Table 39: Instrument-wise Turnover in Index Derivatives at BSE | B40: Click Here for Table 39
A41: Table 40: Instrument-wise Turnover in Index Derivatives at NSE | B41: Click Here for Table 40
A42: Table 41: Trends in Currency Derivatives Segment at NSE | B42: Click Here for Table 41
A43: Table 42: Trends in Currency Derivatives Segment at MSEI | B43: Click Here for Table 42
A44: Table 43: Trends in Currency Derivatives Segment at BSE | B44: Click Here for Table 43
A45: Table 44: Settlement Statistics of Currency Derivatives Segment (₹ crore) | B45: Click Here for Table 44
A46: Table 45: Instrument-wise Turnover in Currency Derivatives of NSE | B46: Click Here for Table 45
A47: Table 46: Instrument-wise Turnover in Currency Derivative Segment of MSEI | B47: Click Here for Table 46
A48: Table 47: Instrument-wise Turnover in Currency Derivative Segment of BSE | B48: Click Here for Table 47
A49: Table 48: Maturity-wise Turnover in Currency Derivative Segment of NSE (₹ crore) | B49: Click Here for Table 48
A50: Table 49: Maturity-wise Turnover in Currency Derivative Segment of MSEI (₹ crore) | B50: Click Here for Table 49
A51: Table 50: Maturity-wise Turnover in Currency Derivative Segment of BSE (₹ crore) | B51: Click Here for Table 50
A52: Table 51: Trading Statistics of Interest Rate Futures at BSE, NSE and MSEI | B52: Click Here for Table 51
A53: Table 52: Settlement Statistics in Interest Rate Futures at BSE, NSE and MSEI (₹ crore) | B53: Click Here for Table 52
A54: Table 53: Trends in Foreign Portfolio Investment | B54: Click Here for Table 53
A55: Table 54: Notional Value of Offshore Derivative Instruments (ODIs) Vs Assets Under Custody (AUC) of FPIs/Deemed FPIs (₹ crore) | B55: Click Here for Table 54
A56: Table 55: Assets under the Custody of Custodians | B56: Click Here for Table 55
A57: Table 56: Trends in Resource Mobilization by Mutual Funds (₹ crore) | B57: Click Here for Table 56
A58: Table 57: Type-wise Resource Mobilisation by Mutual Funds: Open-ended and Close-ended (₹ crore) | B58: Click Here for Table 57
A59: Table 58: Scheme-wise Resource Mobilisation and Assets under Management by Mutual Funds (₹ crore) | B59: Click Here for Table 58
A60: Table 59: Number of Schemes and Folios by Investment Objective | B60: Click Here for Table 59
A61: Table 60: Trends in Transactions on Stock Exchanges by Mutual Funds (₹ crore) | B61: Click Here for Table 60
A62: Table 61: Asset Under Management by Portfolio Manager | B62: Click Here for Table 61
A63: Table 62: Progress Report of NSDL & CDSl as on end of December-2017 (Listed Companies) | B63: Click Here for Table 62
A64: Table 63: Progress of Dematerialisation at NSDL and CDSL (Listed and Unlisted Companies) | B64: Click Here for Table 63
A65: Table 64: Depository Statistics for December-2017 | B65: Click Here for Table 64
A66: Table 65 : Number of Commodities Permitted and traded at Exchanges | B66: Click Here for Table 65
A67: Table 66: Trends in Commodity Indices | B67: Click Here for Table 66
A68: Table 67: Trends in Commodity Futures at MCX | B68: Click Here for Table 67
A69: Table 68: Trends in Commodity Futures at NCDEX | B69: Click Here for Table 68
A70: Table 69: Trends in Commodity Futures at NMCE | B70: Click Here for Table 69
A71: Table 70:Trends in Commodity Options at MCX | B71: Click Here for Table 70
A72: Table 71: Trends in Commodity Futures at ICEX | B72: Click Here for Table 71
A73: Table 72: Category-wise Share in Turnover at MCX and NCDEX (percent) | B73: Click Here for Table 72
A74: Table 73: Participant-wise Percentage Share of Turnover & Open Interest at MCX | B74: Click Here for Table 73
A75: Table 74: Partcipant-wise Percentage Share of Turnover & Open Interest at NCDEX | B75: Click Here for Table 74
A76: Table 75: Participant-wise Percentage Share of Turnover & Open Interest at NMCE | B76: Click Here for Table 75
A77: Table 76: Participants -wise Percentage Share of Turnover & Open Interest at ICEX | B77: Click Here for Table 76
A78: Table 77: Commodity-wise monthly turnover and trading volume at MCX | B78: Click Here for Table 77
A79: Table 78: Commodity-wise monthly turnover and trading volume at NCDEX | B79: Click Here for Table 78
A80: Table 79: Commodity-wise monthly turnover and trading volume at NMCE | B80: Click Here for Table 79
A81: Table 80: Macro Economic Indicators | B81: Click Here for Table 80
A83: N.B.:
A84: 1. Na = Not Applicable
A85: 2. NA: Not Available
A86: 3. 1 crore = 10 million = 100 lakh.
A87: 4. The total provided in the Annexure and Statistical Tables may not always match with the sum total of the break-ups due to decimal differences.
A88: 5. The data for the current month is provisional.

Sheet 1
A1: Table 1: SEBI Registered Market Intermediaries/Institutions
A2: Market Intermediaries | B2: 2016-17 | C2: 2017-18$
A3: Stock Exchanges (Cash Market) | B3: 5 | C3: 5
A4: Stock Exchanges (Equity Derivatives Market) | B4: 3 | C4: 3
A5: Stock Exchanges (Currency Derivatives Market) | B5: 3 | C5: 3
A6: Stock Exchanges (Commodity Derivatives Market) | B6: 10 | C6: 9
A7: Brokers (Cash Segment)* | B7: 3192 | C7: 3202
A8: Corporate Brokers (Cash Segment)* | B8: 2775 | C8: 2788
A9: Brokers (Equity Derivatives Market) | B9: 2651 | C9: 2668
A10: Brokers (Currency Derivatives Market) | B10: 1985 | C10: 2310
A11: Brokers (Debt Segment) | B11: 6 | C11: 142
A12: Brokers (Commodity Derivatives Market) | B12: 1162 | C12: **
A13: Sub-brokers (Cash Segment)* | B13: 30610 | C13: 25642
A14: Foreign Portfolio Investors (FPIs) | B14: 7807 | C14: 9042
A15: Deemed FPIs | B15: 974 | C15: 0
A16: Custodians | B16: 19 | C16: 19
A17: Depositories | B17: 2 | C17: 2
A18: Depository Participants-NSDL | B18: 276 | C18: ***
A19: Depository Participants-CDSL | B19: 588 | C19: ***
A20: Merchant Bankers | B20: 189 | C20: 188
A21: Bankers to an Issue | B21: 64 | C21: 65
A22: Underwriters | B22: 2 | C22: 1
A23: Debenture Trustees | B23: 32 | C23: 32
A24: Credit Rating Agencies | B24: 7 | C24: 7
A25: KYC Registration Agency (KRA) | B25: 5 | C25: 5
A26: Registrars to an Issue & Share Transfer Agents | B26: 73 | C26: 73
A27: Venture Capital Funds | B27: 198 | C27: 196
A28: Foreign Venture Capital Investors | B28: 218 | C28: 220
A29: Alternative Investment Funds | B29: 303 | C29: 364
A30: Portfolio Managers | B30: 218 | C30: 261
A31: Mutual Funds | B31: 45 | C31: 45
A32: Investment Advisors | B32: 577 | C32: 817
A33: Research Analysts | B33: 351 | C33: 456
A34: Infrastructure Investment Trusts (InVIT) | B34: 6 | C34: 1
A35: Real Estate Investment Trusts (REITs) | B35: 0 | C35: 6
A36: Collective Investment Management Company | B36: 1 | C36: 1
A37: Approved Intermediaries (Stock Lending Schemes) | B37: 2 | C37: 2
A38: STP (Centralised Hub) | B38: 1 | C38: 1
A39: STP Service Providers | B39: 2 | C39: 2
A40: Notes:
A41: 1. * Stock brokers/sub-brokers pertaining to active stock exchanges
A42: 2. ** The data regarding registered Brokers in comodity derivatives as on December 31, 2017 could not be obtained as their systems are not functioning after migration in share portal.
A43: 3. *** The division has informed that they are in discussion with Depositories to iron out discrepancies in the figures and hence, will not be able to provide the data as on December 31, 2017
A44: $ indicates as on December 31, 2017
A45: Source: SEBI, NSDL.
A46: NA - Data not available

Sheet 2
A1: Table 2: Company-Wise Capital Raised through Public and Rights Issues (Equity)
A2: S.No. | B2: Name of the Issuer/ Company | C2: Date of Opening | D2: Type of Issue | E2: Type of Instrument | F2: No. of Shares Issued | G2: Face Value (`) | H2: Premium Value (`) | I2: Issue Price (`) | J2: Size of Issue (₹ crore)
A3: 1 | B3: Ratnabhumi Developers Ltd | C3: 2017-12-04 | D3: SME IPO | E3: Equity | F3: 3700000 | G3: 10 | H3: 53 | I3: 63 | J3: 23.31
A4: 2 | B4: Dynamic Cables Ltd | C4: 2017-12-04 | D4: SME IPO | E4: Equity | F4: 5844000 | G4: 10 | H4: 30 | I4: 40 | J4: 23.38
A5: 3 | B5: Shalby Ltd | C5: 2017-12-05 | D5: IPO | E5: Equity | F5: 20354839 | G5: 10 | H5: 238 | I5: 248 | J5: 504.8
A6: 4 | B6: MRC Exim Ltd | C6: 2017-12-06 | D6: SME IPO | E6: Equity | F6: 3000000 | G6: 10 | H6: 5 | I6: 15 | J6: 4.5
A7: 5 | B7: Future Supply Chain Solutions Ltd | C7: 2017-12-06 | D7: IPO | E7: Equity | F7: 9784570 | G7: 10 | H7: 654 | I7: 664 | J7: 649.7
A8: 6 | B8: Touchwood Entertainment Ltd | C8: 2017-12-11 | D8: SME IPO | E8: Equity | F8: 1053000 | G8: 10 | H8: 30 | I8: 40 | J8: 4.21
A9: 7 | B9: Kids Medical Systems Ltd | C9: 2017-12-11 | D9: SME IPO | E9: Equity | F9: 2000000 | G9: 10 | H9: 20 | I9: 30 | J9: 6
A10: 8 | B10: Diggi Multitrade Ltd | C10: 2017-12-11 | D10: SME IPO | E10: Equity | F10: 2600000 | G10: 10 | H10: 3 | I10: 13 | J10: 3.38
A11: 9 | B11: Lakshmi Vilas Bank Ltd | C11: 2017-12-12 | D11: Rights | E11: Equity | F11: 64497155 | G11: 10 | H11: 112 | I11: 122 | J11: 786.87
A12: 10 | B12: SMVD Poly Pack Ltd | C12: 2017-12-13 | D12: SME IPO | E12: Equity | F12: 1640000 | G12: 10 | H12: 45 | I12: 55 | J12: 9.02
A13: 11 | B13: One Point One Solutions Ltd | C13: 2017-12-13 | D13: SME IPO | E13: Equity | F13: 6624000 | G13: 10 | H13: 57 | I13: 67 | J13: 44.38
A14: 12 | B14: Astron Paper & Board Mill Ltd | C14: 2017-12-15 | D14: IPO | E14: Equity | F14: 14000000 | G14: 10 | H14: 40 | I14: 50 | J14: 69.83
A15: 13 | B15: Ajooni Biotech Ltd | C15: 2017-12-20 | D15: SME IPO | E15: Equity | F15: 2196000 | G15: 10 | H15: 20 | I15: 30 | J15: 6.59
A16: 14 | B16: Moksh Ornaments Ltd | C16: 2017-12-21 | D16: SME IPO | E16: Equity | F16: 2982000 | G16: 10 | H16: 27 | I16: 37 | J16: 11.03
A17: 15 | B17: Sumeet Industries Ltd | C17: 2017-12-27 | D17: Rights | E17: Equity | F17: 24874173 | G17: 10 | H17: 14 | I17: 24 | J17: 59.7
A18: 16 | B18: Jhandewalas Foods Ltd | C18: 2017-12-29 | D18: SME IPO | E18: Equity | F18: 2910000 | G18: 10 | H18: 45 | I18: 55 | J18: 16.01
A19: 17 | B19: Rithwik Facility Management Services Ltd | C19: 2017-12-29 | D19: SME IPO | E19: Equity | F19: 810000 | G19: 10 | H19: 40 | I19: 50 | J19: 4.05
A20: 18 | B20: Brand Concepts Ltd | C20: 2017-12-29 | D20: SME IPO | E20: Equity | F20: 2805000 | G20: 10 | H20: 35 | I20: 45 | J20: 12.62
A22: Note: 1. All the issues are compiled from the Prospectus’ of Issuer Companies filed with SEBI.
A23: Source: SEBI.

Sheet 3
A1: Table 3: Open Offers under SEBI Takeover Code closed
A2: S.No. | B2: Target Company | C2: Acquirer | D2: Offer Opening Date | E2: Offer Closing Date | F2: Offer Size | H2: Offer Price (`) per share
F3: No. of Shares | G3: Percent of Equity Capital
A4: 1 | B4: UNION QUALITY PLASTICS LTD | C4: JAVVARI KAPISH RAJESH SINGH AND OTHERS | D4: 2017-12-04 | E4: 2017-12-15 | F4: 1230800 | G4: 26 | H4: 40.4
A5: 2 | B5: TRC FINANCIAL SERVICES LTD. | C5: JUPITER CAPITAL PVT LTD | D5: 2017-12-06 | E5: 2017-12-19 | F5: 1300234 | G5: 26 | H5: 18
A6: 3 | B6: Confidence Futuristic Energetech Ltd( Formerly Globe Industrial Resources Ltd.) | C6: Confidence Petroleum India Ltd. | D6: 2017-12-07 | E6: 2017-12-20 | F6: 993200 | G6: 49.66 | H6: 30
A7: 4 | B7: OTCO INTERNATIIONAL LTD | C7: Mr. PRADEEP KUMAR PANDA | D7: 2017-12-13 | E7: 2017-12-27 | F7: 674343 | G7: 26 | H7: 37
A9: Source: SEBI.

Sheet 4
A1: Table 4: Substantial Acquisition of Shares and Takeovers
A2: Year/Month | B2: Open Offers
B3: Objectives | H3: Total
B4: Change in Control of Management | D4: Consolidation of Holdings | F4: Substantial Acquisition | H4: No. of offers | I4: Amount (₹ crore)
B5: No. of offers | C5: Amount (₹ crore) | D5: No. of offers | E5: Amount (₹ crore) | F5: No. of offers | G5: Amount (₹ crore)
A6: 2016-17 | B6: 42 | C6: 5338.1431 | D6: 4 | E6: 78.2977 | F6: 3 | G6: 365.6304 | H6: 49 | I6: 5782.0712
A7: 2017-18$ | B7: 35 | C7: 1487.39 | D7: 3 | E7: 38.17 | F7: 4 | G7: 220.93 | H7: 42 | I7: 1746.49
A8: 2017-04-01 | B8: 9 | C8: 586.93 | D8: 0 | E8: 0 | F8: 0 | G8: 0 | H8: 9 | I8: 586.93
A9: 2017-05-01 | B9: 4 | C9: 438.1 | D9: 1 | E9: 2.9 | F9: 0 | G9: 0 | H9: 5 | I9: 441
A10: 2017-06-01 | B10: 5 | C10: 72.62 | D10: 0 | E10: 0 | F10: 1 | G10: 2.24 | H10: 6 | I10: 74.86
A11: 2017-07-01 | B11: 3 | C11: 13.18 | D11: 0 | E11: 0 | F11: 0 | G11: 0 | H11: 3 | I11: 13.18
A12: 2017-08-01 | B12: 1 | C12: 1.25 | D12: 0 | E12: 0 | F12: 1 | G12: 123.77 | H12: 2 | I12: 125.02
A13: 2017-09-01 | B13: 3 | C13: 0.75 | D13: 0 | E13: 0 | F13: 0 | G13: 0 | H13: 3 | I13: 0.75
A14: 2017-10-01 | B14: 2 | C14: 6.33 | D14: 1 | E14: 32.77 | F14: 2 | G14: 94.92 | H14: 5 | I14: 134.02
A15: 2017-11-01 | B15: 5 | C15: 357.94 | D15: 0 | E15: 0 | F15: 0 | G15: 0 | H15: 5 | I15: 357.94
A16: 2017-12-01 | B16: 3 | C16: 10.29 | D16: 1 | E16: 2.5 | F16: 0 | G16: 0 | H16: 4 | I16: 12.79
A18: $ indicates as on December 31, 2017
A19: Source: SEBI.

Sheet 5
A1: Table 5: Capital Raised from the Primary Market through though Public and Rights Issues
A2: Year/ Month | B2: Total | D2: Category-wise | H2: Issue-type | L2: Instrument-wise
D3: Public | F3: Rights | H3: Listed | J3: IPOs | L3: Equities | P3: CCPS/FCDs* | R3: Debt
L4: At Par | N4: At Premium
B5: No. of issues | C5: Amount (₹ crore) | D5: No. of issues | E5: Amount (₹ crore) | F5: No. of issues | G5: Amount (₹ crore) | H5: No. of issues | I5: Amount (₹ crore) | J5: No. of issues | K5: Amount (₹ crore) | L5: No. of issues | M5: Amount (₹ crore) | N5: No. of issues | O5: Amount (₹ crore) | P5: No. of issues | Q5: Amount (₹ crore) | R5: No. of issues | S5: Amount (₹ crore)
A6: 2016-17 | B6: 133 | C6: 61848.23 | D6: 121 | E6: 58432.85 | F6: 12 | G6: 3415.38 | H6: 28 | I6: 32753.13 | J6: 105 | K6: 29095.23 | L6: 1 | M6: 2.6 | N6: 117 | O6: 32517.99 | P6: 0 | Q6: 0 | R6: 15 | S6: 29327.64
A7: 2017-18$ | B7: 153 | C7: 72786.71 | D7: 139 | E7: 68265.57 | F7: 14 | G7: 4521.14 | H7: 20 | I7: 8658.39 | J7: 133 | K7: 64128.32 | L7: 1 | M7: 2.01 | N7: 147 | O7: 68632.37 | P7: 0 | Q7: 0 | R7: 5 | S7: 4124.65
A8: 2017-04-30 | B8: 12 | C8: 3200.37 | D8: 10 | E8: 2832.53 | F8: 2 | G8: 367.84 | H8: 3 | I8: 2336.56 | J8: 9 | K8: 863.81 | L8: 0 | M8: 0 | N8: 11 | O8: 1231.65 | P8: 0 | Q8: 0 | R8: 1 | S8: 1968.72
A9: 2017-05-31 | B9: 7 | C9: 1480.08 | D9: 7 | E9: 1480.08 | F9: 0 | G9: 0 | H9: 0 | I9: 0 | J9: 7 | K9: 1480.08 | L9: 0 | M9: 0 | N9: 7 | O9: 1480.08 | P9: 0 | Q9: 0 | R9: 0 | S9: 0
A10: 2017-06-30 | B10: 15 | C10: 5631.56 | D10: 14 | E10: 5511.85 | F10: 1 | G10: 119.71 | H10: 1 | I10: 119.71 | J10: 14 | K10: 5511.85 | L10: 0 | M10: 0 | N10: 15 | O10: 5631.56 | P10: 0 | Q10: 0 | R10: 0 | S10: 0
A11: 2017-07-31 | B11: 15 | C11: 2820.4 | D11: 14 | E11: 2621.43 | F11: 1 | G11: 198.97 | H11: 3 | I11: 1911.49 | J11: 12 | K11: 908.91 | L11: 0 | M11: 0 | N11: 13 | O11: 1107.88 | P11: 0 | Q11: 0 | R11: 2 | S11: 1712.52
A12: 2017-08-31 | B12: 12 | C12: 1919.68 | D12: 12 | E12: 1919.68 | F12: 0 | G12: 0 | H12: 1 | I12: 214.62 | J12: 11 | K12: 1705.06 | L12: 1 | M12: 2.01 | N12: 10 | O12: 1703.05 | P12: 0 | Q12: 0 | R12: 1 | S12: 214.62
A13: 2017-09-30 | B13: 42 | C13: 17162.96 | D13: 40 | E13: 17141.73 | F13: 2 | G13: 21.23 | H13: 2 | I13: 21.23 | J13: 40 | K13: 17141.73 | L13: 0 | M13: 0 | N13: 42 | O13: 17162.96 | P13: 0 | Q13: 0 | R13: 0 | S13: 0
A14: 2017-10-31 | B14: 11 | C14: 18607.52 | D14: 9 | E14: 16204.78 | F14: 2 | G14: 2402.74 | H14: 2 | I14: 2402.74 | J14: 9 | K14: 16204.78 | L14: 0 | M14: 0 | N14: 11 | O14: 18607.52 | P14: 0 | Q14: 0 | R14: 0 | S14: 0
A15: 2017-11-30 | B15: 20 | C15: 19495.97 | D15: 16 | E15: 18931.89 | F15: 4 | G15: 564.08 | H15: 5 | I15: 576.68 | J15: 15 | K15: 18919.29 | L15: 0 | M15: 0 | N15: 20 | O15: 19485.97 | P15: 0 | Q15: 0 | R15: 0 | S15: 0
A16: 2017-12-31 | B16: 19 | C16: 2468.17 | D16: 17 | E16: 1621.6 | F16: 2 | G16: 846.57 | H16: 3 | I16: 1075.36 | J16: 16 | K16: 1392.81 | L16: 0 | M16: 0 | N16: 18 | O16: 2239.38 | P16: 0 | Q16: 0 | R16: 1 | S16: 228.79
A18: Notes: 1. The total provides category-wise total of any of the three sub-categories viz. public plus rights or issuer-type(listed plus IPOs) or instrument-wise(equities plus CCPS/FCDs plus debt). 2. Amount for public debt issue for last two months is provisional and may get updated 3. All the Issues are compiled from the Prospectus’ of Issuer Companies filed with SEBI. 4. * CCPS: Compulsory Convertible Preference Shares, FCDs: Fully Convertible Debentures.
A19: 5. Equity public issues also includes issues listed on SME platform.
A20: 6. The figures of public debt issue have been taken as per the closing dates of the issues.
A21: $ indicates as on December 31, 2017
A22: Source: SEBI.

Sheet 6
A1: Table 6: Issues Listed on SME Platform
A2: Year/ Month | B2: Total
B4: No. of issue | C4: Amount (₹ crore)
A5: 2016-17 | B5: 79 | C5: 1105.2845
A6: 2017-18$ | B6: 104 | C6: 1389.0208
A7: 2017-04-30 | B7: 8 | C7: 135.2606
A8: 2017-05-31 | B8: 5 | C8: 44.048
A9: 2017-06-30 | B9: 9 | C9: 72.6898
A10: 2017-07-31 | B10: 10 | C10: 98.5752
A11: 2017-08-31 | B11: 9 | C11: 110.7912
A12: 2017-09-30 | B12: 33 | C12: 475.33
A13: 2017-10-31 | B13: 3 | C13: 46.996
A14: 2017-11-30 | B14: 14 | C14: 236.85
A15: 2017-12-31 | B15: 13 | C15: 168.48
A17: $ indicates as on December 31, 2017
A18: Source: SEBI

Sheet 7
A1: Table 7: Industry-wise Classification of Capital Raised through Public and Rights Issues
A2: Industry | B2: 2017-18$ | D2: 2017-12-01
B3: No. of issues | C3: Amount (₹ crore) | D3: No. of issues | E3: Amount (₹ crore)
A4: Airlines | B4: 0 | C4: 0 | D4: 0 | E4: 0
A5: Automobile | B5: 0 | C5: 0 | D5: 0 | E5: 0
A6: Banking and Finance | B6: 7 | C6: 5814.26 | D6: 2 | E6: 1015.66
A7: Cement & Construction | B7: 13 | C7: 1656.79 | D7: 2 | E7: 26.69
A8: Chemical | B8: 2 | C8: 19.58 | D8: 0 | E8: 0
A9: Consumer Services | B9: 2 | C9: 791.47 | D9: 0 | E9: 0
A10: Electrical Equipment/ Production | B10: 3 | C10: 21.56 | D10: 0 | E10: 0
A11: Engineering | B11: 13 | C11: 1633.85 | D11: 0 | E11: 0
A12: Electronics | B12: 1 | C12: 599.28 | D12: 0 | E12: 0
A13: Entertainment | B13: 2 | C13: 498.97 | D13: 0 | E13: 0
A14: Financial Services | B14: 8 | C14: 15076.63 | D14: 0 | E14: 0
A15: Food Processing | B15: 8 | C15: 1862.4 | D15: 1 | E15: 16.01
A16: Healthcare and pharma | B16: 11 | C16: 2510.68 | D16: 2 | E16: 510.8
A17: Hotels | B17: 0 | C17: 0 | D17: 0 | E17: 0
A18: Information Technology | B18: 13 | C18: 914.8 | D18: 1 | E18: 44.38
A19: Misc. | B19: 57 | C19: 21535.25 | D19: 9 | E19: 785.91 | H19: 72,
A20: Roads & Highways | B20: 0 | C20: 0 | D20: 0 | E20: 0
A21: Telecommunication | B21: 1 | C21: 776.69 | D21: 0 | E21: 0
A22: Textile | B22: 5 | C22: 141.13 | D22: 1 | E22: 59.7
A23: Plastic | B23: 3 | C23: 24.54 | D23: 1 | E23: 9.02
A24: Power | B24: 0 | C24: 0 | D24: 0 | E24: 0
A25: Printing | B25: 1 | C25: 18.28 | D25: 0 | E25: 0
A26: Oil & Natural Gas | B26: 1 | C26: 728.56 | D26: 0 | E26: 0
A27: Insurance | B27: 2 | C27: 18161.98 | D27: 0 | E27: 0
A28: Total | B28: 153 | C28: 72786.7 | D28: 19 | E28: 2468.17
A30: $ indicates as on December 31, 2017
A31: Source: SEBI.

Sheet 8
A1: Table 8: Sector-wise and Region-wise Distribution of Capital Mobilised through Public and Rights Issues
A2: Year/ Month | B2: Total | D2: Sector-wise | H2: Region-wise
D3: Private | F3: Public | H3: Northern | J3: Eastern | L3: Western | N3: Southern
B4: No. of issue | C4: Amount (₹ crore) | D4: No. of issue | E4: Amount (₹ crore) | F4: No. of issue | G4: Amount (₹ crore) | H4: No. of issue | I4: Amount (₹ crore) | J4: No. of issue | K4: Amount (₹ crore) | L4: No. of issue | M4: Amount (₹ crore) | N4: No. of issue | O4: Amount (₹ crore)
A5: 2016-17 | B5: 133 | C5: 61848.23 | D5: 117 | E5: 31396.6 | F5: 16 | G5: 30451.63 | H5: 21 | I5: 5480.04 | J5: 8 | K5: 1215.34 | L5: 80 | M5: 44374.51 | N5: 24 | O5: 10778.34
A6: 2017-18$ | B6: 153 | C6: 72786.71 | D6: 143 | E6: 36966.48 | F6: 10 | G6: 35820.23 | H6: 38 | I6: 7706.41 | J6: 5 | K6: 1759.81 | L6: 93 | M6: 55960.23 | N6: 17 | O6: 7360.25
A7: 2017-04-30 | B7: 12 | C7: 3200.37 | D7: 11 | E7: 1231.65 | F7: 1 | G7: 1968.72 | H7: 3 | I7: 833.19 | J7: 0 | K7: 0 | L7: 8 | M7: 398.46 | N7: 1 | O7: 1968.72
A8: 2017-05-31 | B8: 7 | C8: 1480.08 | D8: 6 | E8: 255.73 | F8: 1 | G8: 1224.35 | H8: 3 | I8: 1247.13 | J8: 0 | K8: 0 | L8: 4 | M8: 232.94 | N8: 0 | O8: 0
A9: 2017-06-30 | B9: 15 | C9: 5631.56 | D9: 15 | E9: 5631.56 | F9: 0 | G9: 0 | H9: 3 | I9: 1918.24 | J9: 0 | K9: 0 | L9: 10 | M9: 2816.92 | N9: 2 | O9: 896.4
A10: 2017-07-31 | B10: 15 | C10: 2820.4 | D10: 13 | E10: 1107.88 | F10: 2 | G10: 1712.52 | H10: 4 | I10: 823.82 | J10: 1 | K10: 561.99 | L10: 9 | M10: 1235.62 | N10: 1 | O10: 198.97
A11: 2017-08-31 | B11: 12 | C11: 1919.68 | D11: 10 | E11: 263.05 | F11: 2 | G11: 1656.63 | H11: 2 | I11: 27.14 | J11: 0 | K11: 0 | L11: 6 | M11: 72.67 | N11: 4 | O11: 1819.87
A12: 2017-09-30 | B12: 42 | C12: 17162.96 | D12: 41 | E12: 8776.56 | F12: 1 | G12: 8386.4 | H12: 13 | I12: 1299.88 | J12: 1 | K12: 600.65 | L12: 23 | M12: 14708.59 | N12: 5 | O12: 553.84
A13: 2017-10-31 | B13: 11 | C13: 18607.52 | D13: 10 | E13: 7431.68 | F13: 1 | G13: 11175.84 | H13: 2 | I13: 1017.34 | J13: 0 | K13: 0 | L13: 8 | M13: 16687.44 | N13: 1 | O13: 902.74
A14: 2017-11-30 | B14: 20 | C14: 19495.97 | D14: 19 | E14: 10028.99 | F14: 1 | G14: 9466.98 | H14: 4 | I14: 530.65 | J14: 2 | K14: 546.98 | L14: 14 | M14: 18418.34 | N14: 0 | O14: 0
A15: 2017-12-31 | B15: 19 | C15: 2468.17 | D15: 18 | E15: 2239.38 | F15: 1 | G15: 228.79 | H15: 4 | I15: 9.02 | J15: 1 | K15: 50.19 | L15: 11 | M15: 1389.25 | N15: 3 | O15: 1019.71
A17: $ indicates as on December 31, 2017
A18: Source: SEBI.

Sheet 9
A1: Table 9: Size-wise Classification of Capital Raised through Public and Rights Issues
A2: Year/ Month | B2: Total | D2: < 5 crore | F2: ≥ 5crore - < 10crore | H2: ≥ 10 crore - < 50 crore | J2: ≥ 50 crore - < 100 crore | L2: ≥ 100 crore
B3: No. of issue | C3: Amount (₹ crore) | D3: No. of issue | E3: Amount (₹ crore) | F3: No. of issue | G3: Amount (₹ crore) | H3: No. of issue | I3: Amount (₹ crore) | J3: No. of issue | K3: Amount (₹ crore) | L3: No. of issue | M3: Amount (₹ crore)
A4: 2016-17 | B4: 133 | C4: 61848.23 | D4: 26 | E4: 89.74 | F4: 25 | G4: 175.16 | H4: 33 | I4: 701.98 | J4: 4 | K4: 264.09 | L4: 45 | M4: 60617.26
A5: 2017-18$ | B5: 153 | C5: 72786.706 | D5: 20 | E5: 73.85 | F5: 28 | G5: 182.406 | H5: 60 | I5: 1187.16 | J5: 4 | K5: 255.88 | L5: 41 | M5: 71087.41
A6: 2017-04-30 | B6: 12 | C6: 3200.38 | D6: 2 | E6: 6.59 | F6: 3 | G6: 18.81 | H6: 2 | I6: 51.36 | J6: 2 | K6: 126.35 | L6: 3 | M6: 2997.27
A7: 2017-05-31 | B7: 7 | C7: 1480.07 | D7: 2 | E7: 6.8 | F7: 1 | G7: 5.07 | H7: 2 | I7: 32.17 | J7: 0 | K7: 0 | L7: 2 | M7: 1436.03
A8: 2017-06-30 | B8: 15 | C8: 5631.56 | D8: 2 | E8: 5.56 | F8: 4 | G8: 26.52 | H8: 3 | I8: 40.61 | J8: 0 | K8: 0 | L8: 6 | M8: 5558.87
A9: 2017-07-31 | B9: 15 | C9: 2820.4 | D9: 2 | E9: 7.53 | F9: 4 | G9: 22.4 | H9: 5 | I9: 104.52 | J9: 0 | K9: 0 | L9: 4 | M9: 2685.95
A10: 2017-08-31 | B10: 12 | C10: 1919.68 | D10: 2 | E10: 6.07 | F10: 1 | G10: 5.57 | H10: 6 | I10: 99.16 | J10: 0 | K10: 0 | L10: 3 | M10: 1808.88
A11: 2017-09-30 | B11: 42 | C11: 17162.96 | D11: 4 | E11: 16.45 | F11: 9 | G11: 58.34 | H11: 22 | I11: 422.57 | J11: 0 | K11: 0 | L11: 7 | M11: 16665.6
A12: 2017-10-31 | B12: 11 | C12: 18607.516 | D12: 0 | E12: 0 | F12: 1 | G12: 6.396 | H12: 2 | I12: 40.6 | J12: 0 | K12: 0 | L12: 8 | M12: 18560.52
A13: 2017-11-30 | B13: 20 | C13: 19495.97 | D13: 2 | E13: 8.71 | F13: 2 | G13: 17.69 | H13: 12 | I13: 265.44 | J13: 0 | K13: 0 | L13: 4 | M13: 19204.13
A14: 2017-12-31 | B14: 19 | C14: 2468.17 | D14: 4 | E14: 16.14 | F14: 3 | G14: 21.61 | H14: 6 | I14: 130.73 | J14: 2 | K14: 129.53 | L14: 4 | M14: 2170.16
A16: $ indicates as on December 31, 2017
A17: Source: SEBI.

Sheet 10
A1: Table 10: Capital Raised by Listed Companies from the Primary Market through QIPs
A2: Year/ Month | B2: Only NSE | D2: Only BSE | F2: Both NSE and BSE | H2: Total
B3: No. of issues | C3: Amount (₹ crore) | D3: No. of issues | E3: Amount (₹ crore) | F3: No. of issues | G3: Amount (₹ crore) | H3: No. of issues | I3: Amount (₹ crore)
A4: 2016-17 | B4: 0 | C4: 0 | D4: 0 | E4: 0 | F4: 20 | G4: 8464.34924 | H4: 20 | I4: 8464.34924
A5: 2017-18$ | B5: 0 | C5: 0 | D5: 0 | E5: 0 | F5: 37 | G5: 57711.21971 | H5: 37 | I5: 57711.21971
A6: 2017-04-01 | B6: 0 | C6: 0 | D6: 0 | E6: 0 | F6: 2 | G6: 5206.646888 | H6: 2 | I6: 5206.646888
A7: 2017-05-01 | B7: 0 | C7: 0 | D7: 0 | E7: 0 | F7: 5 | G7: 7298.04 | H7: 5 | I7: 7298.04
A8: 2017-06-01 | B8: 0 | C8: 0 | D8: 0 | E8: 0 | F8: 1 | G8: 15000 | H8: 1 | I8: 15000
A9: 2017-07-01 | B9: 0 | C9: 0 | D9: 0 | E9: 0 | F9: 4 | G9: 2774.66 | H9: 4 | I9: 2774.66
A10: 2017-08-01 | B10: 0 | C10: 0 | D10: 0 | E10: 0 | F10: 1 | G10: 873.92232 | H10: 1 | I10: 873.92232
A11: 2017-09-01 | B11: 0 | C11: 0 | D11: 0 | E11: 0 | F11: 3 | G11: 5500.151691 | H11: 3 | I11: 5500.151691
A12: 2017-10-01 | B12: 0 | C12: 0 | D12: 0 | E12: 0 | F12: 6 | G12: 7280.38 | H12: 6 | I12: 7280.38
A13: 2017-11-01 | B13: 0 | C13: 0 | D13: 0 | E13: 0 | F13: 7 | G13: 2740.898815 | H13: 7 | I13: 2740.898815
A14: 2017-12-01 | B14: 0 | C14: 0 | D14: 0 | E14: 0 | F14: 8 | G14: 11036.52 | H14: 8 | I14: 11036.52
A16: Notes: 1. The above data includes both "no. of issues" and "Amount" raised on conversion of convertible securities issued on QIP basis. 2. Aug-17, Includes one issue of Institutional Placement Programme (Issue Size of Rs. 873.92 crore).
A17: $ indicates as on December 31, 2017
A18: Source: BSE and NSE.

Sheet 11
A1: Table 11: Preferential Allotments Listed at BSE and NSE
A2: Year/ Month | B2: Only BSE | D2: Only NSE | F2: Both NSE and BSE | H2: Total
B3: No. of issues | C3: Amount (₹ crore) | D3: No. of issues | E3: Amount (₹ crore) | F3: No. of issues | G3: Amount (₹ crore) | H3: No. of issues | I3: Amount (₹ crore)
A4: 2016-17 | B4: 188 | C4: 2957 | D4: 17 | E4: 1219 | F4: 205 | G4: 40073 | H4: 410 | I4: 44250
A5: 2017-18$ | B5: 143 | C5: 2088.36 | D5: 13 | E5: 600.767 | F5: 151 | G5: 37978.02497 | H5: 307 | I5: 40667.15197
A6: 2017-04-01 | B6: 18 | C6: 426.95 | D6: 0 | E6: 0 | F6: 23 | G6: 1407.68 | H6: 41 | I6: 1834.63
A7: 2017-05-01 | B7: 24 | C7: 196.66 | D7: 3 | E7: 315.897 | F7: 21 | G7: 1864.3118 | H7: 48 | I7: 2376.8688
A8: 2017-06-01 | B8: 19 | C8: 108.84 | D8: 0 | E8: 0 | F8: 21 | G8: 4716.43357 | H8: 40 | I8: 4825.27357
A9: 2017-07-01 | B9: 14 | C9: 95.4 | D9: 1 | E9: 7.5 | F9: 13 | G9: 457.84 | H9: 28 | I9: 560.74
A10: 2017-08-17 | B10: 13 | C10: 276.36 | D10: 2 | E10: 32.11 | F10: 15 | G10: 5184.1256 | H10: 30 | I10: 5492.5956
A11: 2017-09-17 | B11: 12 | C11: 62.08 | D11: 0 | E11: 0 | F11: 13 | G11: 8081.73 | H11: 25 | I11: 8143.81
A12: 2017-10-01 | B12: 9 | C12: 142.81 | D12: 1 | E12: 2.8 | F12: 13 | G12: 2981.89 | H12: 23 | I12: 3127.5
A13: 2017-11-01 | B13: 18 | C13: 475.54 | D13: 0 | E13: 0 | F13: 11 | G13: 1037.424 | H13: 29 | I13: 1512.964
A14: 2017-12-01 | B14: 16 | C14: 303.72 | D14: 6 | E14: 242.46 | F14: 21 | G14: 12246.59 | H14: 43 | I14: 12792.77
A16: $ indicates as on December 31, 2017
A17: Source: BSE and NSE.

Sheet 12
A1: Table 12: Private Placement of Corporate Debt Reported to BSE and NSE
A2: Year/ Month | B2: Only NSE | D2: Only BSE | F2: Both NSE and BSE | H2: Total
B3: No. of Issues | C3: Amount (₹ crore) | D3: No. of Issues | E3: Amount (₹ crore) | F3: No. of Issues | G3: Amount (₹ crore) | H3: No. of Issues | I3: Amount (₹ crore)
A4: 2016-17 | B4: 1023 | C4: 219720.6 | D4: 2177 | E4: 254212.71 | F4: 177 | G4: 166782.2 | H4: 3377 | I4: 640715.51
A5: 2017-18$ | B5: 581 | C5: 129844.93 | D5: 1238 | E5: 182278.16 | F5: 124 | G5: 147937.7 | H5: 1943 | I5: 460060.79
A6: 2017-04-01 | B6: 88 | C6: 20353.77 | D6: 194 | E6: 24969.46 | F6: 19 | G6: 18495.5 | H6: 301 | I6: 63818.73
A7: 2017-05-01 | B7: 156 | C7: 12433.26 | D7: 133 | E7: 8226.41 | F7: 12 | G7: 12729.2 | H7: 301 | I7: 33388.87
A8: 2017-06-01 | B8: 95 | C8: 20830.7 | D8: 249 | E8: 29706.62 | F8: 26 | G8: 24800 | H8: 370 | I8: 75337.32
A9: 2017-07-01 | B9: 60 | C9: 13995.2 | D9: 96 | E9: 20890.95 | F9: 6 | G9: 14147 | H9: 162 | I9: 49033.15
A10: 2017-08-01 | B10: 50 | C10: 14841 | D10: 94 | E10: 19796.13 | F10: 11 | G10: 16915 | H10: 155 | I10: 51552.13
A11: 2017-09-01 | B11: 33 | C11: 12049.75 | D11: 127 | E11: 20926.37 | F11: 10 | G11: 17845 | H11: 170 | I11: 50821.12
A12: 2017-10-01 | B12: 26 | C12: 11283.25 | D12: 177 | E12: 24988.02 | F12: 10 | G12: 7875 | H12: 213 | I12: 44146.27
A13: 2017-11-01 | B13: 30 | C13: 10840 | D13: 99 | E13: 20694 | F13: 16 | G13: 19321 | H13: 145 | I13: 50855
A14: 2017-12-01 | B14: 43 | C14: 13218 | D14: 69 | E14: 12080.2 | F14: 14 | G14: 15810 | H14: 126 | I14: 41108.2
A16: $ indicates as on December 31, 2017
A17: Source: SEBI

Sheet 13
A1: Table 13: Trading in the Corporate Debt Market
A2: Year/ Month | B2: BSE | D2: NSE | F2: MSEI
B3: No. of Trades | C3: Traded Value (₹ crore) | D3: No. of Trades | E3: Traded Value (₹ crore) | F3: No. of Trades | G3: Traded Value (₹ crore)
A4: 2016-17 | B4: 24372 | C4: 292153.95 | D4: 64123 | E4: 1178508.53 | F4: 0 | G4: 0
A5: 2017-18$ | B5: 21694 | C5: 350236.38 | D5: 45823 | E5: 987927.94 | F5: 1 | G5: 0.22
A6: 2017-04-01 | B6: 2287 | C6: 37605.48 | D6: 4718 | E6: 101728.74 | F6: 0 | G6: 0
A7: 2017-05-01 | B7: 2933 | C7: 49041.36 | D7: 4132 | E7: 76901.32 | F7: 0 | G7: 0
A8: 2017-06-01 | B8: 2290 | C8: 35324.66 | D8: 5984 | E8: 134048.72 | F8: 0 | G8: 0
A9: 2017-07-01 | B9: 2450 | C9: 37248.73 | D9: 5777 | E9: 124342.88 | F9: 0 | G9: 0
A10: 2017-08-01 | B10: 2347 | C10: 32928.93 | D10: 5072 | E10: 109894.88 | F10: 0 | G10: 0
A11: 2017-09-01 | B11: 2227 | C11: 36603.46 | D11: 5247 | E11: 114711.97 | F11: 0 | G11: 0
A12: 2017-10-01 | B12: 2098 | C12: 38274.01 | D12: 4657 | E12: 104884.8 | F12: 0 | G12: 0
A13: 2017-11-01 | B13: 2463 | C13: 40696.37 | D13: 5265 | E13: 117574.91 | F13: 1 | G13: 0.22
A14: 2017-12-01 | B14: 2599 | C14: 42513.38 | D14: 4971 | E14: 103839.72 | F14: 0 | G14: 0
A16: $ indicates as on December 31, 2017
A17: Source: SEBI

Sheet 14
A1: Table 14: Ratings Assigned for Long-term Corporate Debt Securities (Maturity ≥ 1 year)
A2: Grade Period | B2: Investment Grade | J2: Non-Investment Grade | L2: Total
B3: Highest Safety (AAA) | D3: High Safety (AA) | F3: Adequate Safety (A) | H3: Moderate Safety (BBB)
B4: No. of issue | C4: Amount (₹ crore) | D4: No. of issue | E4: Amount (₹ crore) | F4: No. of issue | G4: Amount (₹ crore) | H4: No. of issue | I4: Amount (₹ crore) | J4: No. of issue | K4: Amount (₹ crore) | L4: No. of issue | M4: Amount (₹ crore)
A5: 2016-17 | B5: 244 | C5: 1308971.35 | D5: 418 | E5: 309641.04 | F5: 252 | G5: 61125.48 | H5: 173 | I5: 10267.57 | J5: 117 | K5: 12714.49 | L5: 1204 | M5: 1700855.69
A6: 2017-18$ | B6: 216 | C6: 1045375.64 | D6: 413 | E6: 300067.34 | F6: 165 | G6: 52701.34 | H6: 154 | I6: 12337.27 | J6: 63 | K6: 6697.06 | L6: 1011 | M6: 1417178.65
A7: 2017-04-01 | B7: 26 | C7: 331327.82 | D7: 44 | E7: 37500.82 | F7: 18 | G7: 3446.02 | H7: 8 | I7: 437.71 | J7: 9 | K7: 788.32 | L7: 105 | M7: 373500.69
A8: 2017-05-01 | B8: 15 | C8: 133934.05 | D8: 29 | E8: 45167.65 | F8: 6 | G8: 1365 | H8: 5 | I8: 363.66 | J8: 9 | K8: 1482.48 | L8: 64 | M8: 182312.84
A9: 2017-06-01 | B9: 28 | C9: 150054.1 | D9: 48 | E9: 27365 | F9: 11 | G9: 1532.25 | H9: 13 | I9: 1346.97 | J9: 7 | K9: 537.77 | L9: 107 | M9: 180836.09
A10: 2017-07-01 | B10: 23 | C10: 123721.63 | D10: 56 | E10: 37135.92 | F10: 19 | G10: 2671.67 | H10: 28 | I10: 2049.18 | J10: 6 | K10: 175.34 | L10: 132 | M10: 165753.74
A11: 2017-08-01 | B11: 26 | C11: 89618.06 | D11: 29 | E11: 28699 | F11: 16 | G11: 3847 | H11: 14 | I11: 351.69 | J11: 7 | K11: 936.32 | L11: 92 | M11: 123452.07
A12: 2017-09-01 | B12: 25 | C12: 65474.33 | D12: 72 | E12: 36089.9 | F12: 12 | G12: 1370.17 | H12: 27 | I12: 2364.93 | J12: 8 | K12: 436.32 | L12: 144 | M12: 105735.65
A13: 2017-10-01 | B13: 24 | C13: 43216.25 | D13: 54 | E13: 38664.67 | F13: 18 | G13: 2386.17 | H13: 12 | I13: 1590.41 | J13: 7 | K13: 990.24 | L13: 115 | M13: 86847.74
A14: 2017-11-01 | B14: 22 | C14: 39439.5 | D14: 41 | E14: 27406.03 | F14: 30 | G14: 15227.41 | H14: 11 | I14: 1164.59 | J14: 3 | K14: 600 | L14: 107 | M14: 83837.53
A15: 2017-12-01 | B15: 27 | C15: 68589.9 | D15: 40 | E15: 22038.35 | F15: 35 | G15: 20855.65 | H15: 36 | I15: 2668.13 | J15: 7 | K15: 750.27 | L15: 145 | M15: 114902.3
A17: $ indicates as on December 31, 2017
A18: Source: Credit Rating Agencies.

Sheet 15
A1: Table 15: Review of Accepted Ratings of Corporate Debt Securities (Maturity ≥ 1 year)
A2: Grade Period | B2: Upgraded | D2: Downgraded | F2: Reaffirmed | H2: Rating Watch | J2: Withdrawn/ Suspended | L2: Total
B3: No. of issue | C3: Amount (₹ crore) | D3: No. of issue | E3: Amount (₹ crore) | F3: No. of issue | G3: Amount (₹ crore) | H3: No. of issue | I3: Amount (₹ crore) | J3: No. of issue | K3: Amount (₹ crore) | L3: No. of issue | M3: Amount (₹ crore)
A4: 2016-17 | B4: 368 | C4: 79324.57 | D4: 189 | E4: 177619.89 | F4: 2647 | G4: 9057498.642 | H4: 59 | I4: 50382.75 | J4: 600 | K4: 261346.32 | L4: 3850 | M4: 9889175.152
A5: 2017-18$ | B5: 277 | C5: 121558.47 | D5: 253 | E5: 268207.26 | F5: 2792 | G5: 7930289.242 | H5: 72 | I5: 95997.26 | J5: 676 | K5: 210689.2 | L5: 4070 | M5: 8626741.432
A6: 2017-04-01 | B6: 11 | C6: 19557.17 | D6: 14 | E6: 9678.8 | F6: 181 | G6: 807639.496 | H6: 2 | I6: 1591.26 | J6: 64 | K6: 24349.25 | L6: 272 | M6: 862815.976
A7: 2017-05-01 | B7: 24 | C7: 8266.27 | D7: 27 | E7: 117005.36 | F7: 137 | G7: 545575.65 | H7: 9 | I7: 55832.14 | J7: 87 | K7: 19714.71 | L7: 284 | M7: 746394.13
A8: 2017-06-01 | B8: 40 | C8: 18343.99 | D8: 30 | E8: 19734.28 | F8: 434 | G8: 931612.743 | H8: 3 | I8: 384.87 | J8: 70 | K8: 14682.29 | L8: 577 | M8: 984758.173
A9: 2017-07-01 | B9: 56 | C9: 6917.24 | D9: 73 | E9: 33747.6 | F9: 369 | G9: 968893.21 | H9: 13 | I9: 4045 | J9: 82 | K9: 25023.95 | L9: 593 | M9: 1038627
A10: 2017-08-01 | B10: 29 | C10: 7757.42 | D10: 27 | E10: 37924.34 | F10: 223 | G10: 704136.56 | H10: 5 | I10: 2059.5 | J10: 76 | K10: 11812.15 | L10: 360 | M10: 763689.97
A11: 2017-09-01 | B11: 29 | C11: 10649.7 | D11: 24 | E11: 27855.62 | F11: 625 | G11: 2125609.753 | H11: 14 | I11: 9095.89 | J11: 98 | K11: 59432.8 | L11: 790 | M11: 2232643.763
A12: 2017-10-01 | B12: 13 | C12: 2634.82 | D12: 9 | E12: 4099 | F12: 285 | G12: 823420.35 | H12: 8 | I12: 3261.16 | J12: 60 | K12: 16107.68 | L12: 375 | M12: 849523.01
A13: 2017-11-01 | B13: 38 | C13: 41178.35 | D13: 29 | E13: 7297.24 | F13: 175 | G13: 286338.79 | H13: 5 | I13: 4843.44 | J13: 66 | K13: 12821.04 | L13: 313 | M13: 352478.86
A14: 2017-12-01 | B14: 37 | C14: 6253.51 | D14: 20 | E14: 10865.02 | F14: 363 | G14: 737062.69 | H14: 13 | I14: 14884 | J14: 73 | K14: 26745.33 | L14: 506 | M14: 795810.55
A16: $ indicates as on December 31, 2017
A17: Source: Credit Rating Agencies.

Sheet 16
A1: Table 16: Distribution of Turnover on Cash Segments of Exchanges (₹ crore)
A2: Stock Exchanges | B2: 2016-17 | C2: 2017-18$ | D2: 2017-12-01
A3: Ahmedabad | B3: 0 | C3: 0 | D3: 0
A4: BSE | B4: 998260.58 | C4: 800313.96 | D4: 95689.37
A5: Calcutta | B5: 0 | C5: 0 | D5: 0
A6: MSEI | B6: 248.0836186 | C6: 175.0303722 | D6: 1.27807455
A7: NSE | B7: 5055913.288 | C7: 5185452.192 | D7: 598031.8062
A9: $ indicates as on December 31, 2017
A10: Source: Exchanges.

Sheet 17
A1: Table 17: Trends in Cash Segment of BSE
A2: Year/ Month | B2: No. of Companies Listed | C2: No. of Companies Permitted* | D2: No. of companies traded | E2: No. of Trading Days | F2: No. of Trades (Lakh) | G2: Traded Quantity (Lakh) | H2: Turnover (₹ crore) | I2: Average Daily Turnover (₹ crore) | J2: Average Trade Size (`) | K2: Demat Securities Traded (Lakh) | L2: Demat Turnover (₹ crore) | M2: Market Capitalisation (₹ crore) | N2: S&P BSE Sensex
N3: High | O3: Low | P3: Close
A4: 2016-17 | B4: 5834 | C4: 70 | D4: 2948 | E4: 248 | F4: 3918.55 | G4: 707231.16 | H4: 998260.58 | I4: 4025.244274 | J4: 25475.25437 | K4: 707231.16 | L4: 998260.42 | M4: 12154525.46 | N4: 29824.62 | O4: 24523.2 | P4: 29620.5
A5: 2017-18$ | B5: 5616 | C5: 52 | D5: 2937 | E5: 186 | F5: 2716.49 | G5: 560032.89 | H5: 800313.96 | I5: 4302.763226 | J5: 29461.32546 | K5: 560032.89 | L5: 800313.8 | M5: 15173866.88 | N5: 34137.97 | O5: 29241.48 | P5: 34056.83
A6: 2017-04-04 | B6: 5828 | C6: 56 | D6: 2978 | E6: 18 | F6: 287.36 | G6: 57778.28 | H6: 75070.4 | I6: 4170.577778 | J6: 26124.16481 | K6: 57778.28 | L6: 75070.38 | M6: 12484962.9 | N6: 30184.22 | O6: 29241.48 | P6: 29918.4
A7: 2017-05-04 | B7: 5783 | C7: 56 | D7: 2829 | E7: 22 | F7: 314.87 | G7: 63338.03 | H7: 91105.62 | I7: 4141.164545 | J7: 28934.36021 | K7: 63338.03 | L7: 91105.61 | M7: 12580118.73 | N7: 31255.28 | O7: 29804.12 | P7: 31145.8
A8: 2017-06-04 | B8: 5794 | C8: 56 | D8: 2725 | E8: 21 | F8: 260.69 | G8: 54576.56 | H8: 85934.52 | I8: 4092.12 | J8: 32964.2564 | K8: 54576.56 | L8: 85934.5 | M8: 12596811.99 | N8: 31522.87 | O8: 30680.66 | P8: 30921.61
A9: 2017-07-04 | B9: 5811 | C9: 56 | D9: 2845 | E9: 21 | F9: 321.31 | G9: 71393.39 | H9: 88395.24 | I9: 4209.297143 | J9: 27510.88979 | K9: 71393.39 | L9: 88395.23 | M9: 13262245.53 | N9: 32672.66 | O9: 31017.11 | P9: 32514.94
A10: 2017-08-04 | B10: 5627 | C10: 57 | D10: 2682 | E10: 21 | F10: 275.93 | G10: 58309.56 | H10: 79064.47 | I10: 3764.974762 | J10: 28653.81437 | K10: 58309.56 | L10: 79064.43 | M10: 13189762.82 | N10: 32686.48 | O10: 31128.02 | P10: 31730.49
A11: 2017-09-04 | B11: 5650 | C11: 57 | D11: 2669 | E11: 21 | F11: 295.25 | G11: 57815.08 | H11: 84349.14 | I11: 4016.625714 | J11: 28568.71804 | K11: 57815.08 | L11: 84349.13 | M11: 13181353.14 | N11: 32524.11 | O11: 31081.83 | P11: 31283.72
A12: 2017-10-04 | B12: 5680 | C12: 57 | D12: 2853 | E12: 20 | F12: 287.3 | G12: 52683.18 | H12: 77996.6 | I12: 3899.83 | J12: 27148.13784 | K12: 52683.18 | L12: 77996.59 | M12: 14391545.9 | N12: 33340.17 | O12: 31440.48 | P12: 33213.13
A13: 2017-11-04 | B13: 5696 | C13: 52 | D13: 2801 | E13: 22 | F13: 371.98 | G13: 74832.71 | H13: 122708.6 | I13: 5577.663636 | J13: 32987.95634 | K13: 74832.71 | L13: 122708.57 | M13: 14596655.54 | N13: 33865.95 | O13: 32683.59 | P13: 33149.35
A14: 2017-12-04 | B14: 5616 | C14: 52 | D14: 2937 | E14: 20 | F14: 301.8 | G14: 69306.1 | H14: 95689.37 | I14: 4784.4685 | J14: 31706.21935 | K14: 69306.1 | L14: 95689.36 | M14: 15173866.88 | N14: 34137.97 | O14: 29241.48 | P14: 34056.83
A16: Notes: 1. * Excludes Mutual Fund Schemes from Feb 2013. 2. Market capitalisation pertains to the number of companies traded.
A17: $ indicates as on December 31, 2017
A18: Source: BSE .

Sheet 18
A1: Table 18: Trends in Cash Segment of NSE
A2: Year/ Month | B2: No. of Companies Listed | C2: No. of Companies Permitted | D2: No. of Companies Traded | E2: No. of Trading Days | F2: No. of Trades (Lakh) | G2: Traded Quantity (Lakh) | H2: Turnover (₹ crore) | I2: Average Daily Turnover (₹ crore) | J2: Average Trade Size (`) | K2: Demat Securities Traded (Lakh) | L2: Demat Turnover (₹ crore) | M2: Market Capitalisation (₹ crore) | N2: Nifty 50 Index
N3: High | O3: Low | P3: Close
A4: 2016-17 | B4: 1817 | C4: 4 | D4: 1665 | E4: 248 | F4: 19759.71828 | G4: 2624533.688 | H4: 5055913.288 | I4: 20386.74713 | J4: 25586.9705 | K4: 2624533.688 | L4: 5055913.288 | M4: 11978420.9 | N4: 9218.4 | O4: 7516.85 | P4: 9173.75
A5: 2017-18$ | B5: 1897 | C5: 4 | D5: 1750 | E5: 186 | F5: 18003.95052 | G5: 2696124.669 | H5: 5185452.192 | I5: 27878.77522 | J5: 28801.74652 | K5: 2696124.669 | L5: 5185452.192 | M5: 14982295.75 | N5: 10552.4 | O5: 9075.15 | P5: 10530.7
A6: 2017-04-19 | B6: 1831 | C6: 4 | D6: 1668 | E6: 18 | F6: 1673.04198 | G6: 249260.3436 | H6: 472110.1946 | I6: 26228.34414 | J6: 28218.66996 | K6: 249260.3436 | L6: 472110.1946 | M6: 12303874.75 | N6: 9367.15 | O6: 9075.15 | P6: 9304.05
A7: 2017-05-17 | B7: 1814 | C7: 4 | D7: 1669 | E7: 22 | F7: 2093 | G7: 295182 | H7: 588502 | I7: 26750.08281 | J7: 28118.69632 | K7: 295182 | L7: 588502 | M7: 12416788.86 | N7: 9649.6 | O7: 9269 | P7: 9621.25
A8: 2017-06-17 | B8: 1820 | C8: 4 | D8: 1666 | E8: 21 | F8: 1801.70323 | G8: 254139.3297 | H8: 486304.7379 | I8: 23157.36847 | J8: 26991.38958 | K8: 254139.3297 | L8: 486304.7379 | M8: 12430129.17 | N8: 9709.3 | O8: 9448.75 | P8: 9520.9
A9: 2017-07-17 | B9: 1837 | C9: 4 | D9: 1685 | E9: 21 | F9: 1838.48212 | G9: 317988.0738 | H9: 543944.4736 | I9: 25902.11779 | J9: 29586.60668 | K9: 317988.0738 | L9: 543944.4736 | M9: 13121441.34 | N9: 10114.85 | O9: 9543.85 | P9: 10077.1
A10: 2017-08-17 | B10: 1848 | C10: 4 | D10: 1692 | E10: 21 | F10: 1914.09602 | G10: 280389.9995 | H10: 553828.5652 | I10: 26372.78882 | J10: 28934.21017 | K10: 280389.9995 | L10: 553828.5652 | M10: 13055208.03 | N10: 10137.85 | O10: 9685.55 | P10: 9917.9
A11: 2017-09-17 | B11: 1851 | C11: 4 | D11: 1690 | E11: 21 | F11: 2068.26493 | G11: 296602.8749 | H11: 600091.5501 | I11: 28575.7881 | J11: 29014.24964 | K11: 296602.8749 | L11: 600091.5501 | M11: 13045716.34 | N11: 10178.95 | O11: 9687.55 | P11: 9788.6
A12: 2017-10-17 | B12: 1873 | C12: 4 | D12: 1712 | E12: 20 | F12: 2006.67691 | G12: 290190.3007 | H12: 607451.9217 | I12: 30372.59608 | J12: 30271.53592 | K12: 290190.3007 | L12: 607451.9217 | M12: 14208617.46 | N12: 10384.5 | O12: 9831.05 | P12: 9788.6
A13: 2017-11-17 | B13: 1885 | C13: 4 | D13: 1731 | E13: 22 | F13: 2504.44493 | G13: 363845.6589 | H13: 735186.9422 | I13: 33417.58828 | J13: 29355.28481 | K13: 363845.6589 | L13: 735186.9422 | M13: 14392501.05 | N13: 10490.45 | O13: 10094 | P13: 10226.55
A14: 2017-12-01 | B14: 1897 | C14: 4 | D14: 1750 | E14: 20 | F14: 2104.2404 | G14: 348526.0879 | H14: 598031.8062 | I14: 29901.59031 | J14: 28420.31767 | K14: 348526.0879 | L14: 598031.8062 | M14: 14982295.75 | N14: 10552.4 | O14: 10033.35 | P14: 10530.7
A16: Notes: 1. Demat turnover includes turnover of all securities which are available for trading in Demat mode. 2. Market capitalisation pertains to the number of companies traded.
A17: $ indicates as on December 31, 2017
A18: Source: NSE

Sheet 20
A1: Table 20: City-wise Distribution of Turnover on Cash Segments of BSE and NSE
A2: (Percentage share in Turnover)
A3: S.No. | B3: City | C3: BSE | E3: NSE | G3: MSEI
B4: Stock Exchange/City | C4: 2016-17 | D4: 2017-12-01 | E4: 2016-17 | F4: 2017-12-01 | G4: 2016-17 | H4: 2017-12-01
A5: 1 | B5: Ahmedabad | C5: 3.172025287 | D5: 2.639706252 | E5: 2.989013847 | F5: 3.061666426 | G5: 1.359545404 | H5: 0
A6: 2 | B6: Bengaluru | C6: 0.3461018596 | D6: 0.2967447826 | E6: 6.304218474 | F6: 3.031913094 | G6: 0 | H6: 0
A7: 3 | B7: Vadodra | C7: 0.8703025828 | D7: 0.8078760491 | E7: 0.3366697024 | F7: 0.3608985131 | G7: 0 | H7: 0
A8: 4 | B8: Bhubneshwar | C8: 0.017430938 | D8: 0.0152527776 | E8: 0.0002931320432 | F8: 0.0004022212515 | G8: 0 | H8: 0
A9: 5 | B9: Chennai | C9: 0.6916628168 | D9: 0.9915693311 | E9: 1.037228016 | F9: 0.8786513426 | G9: 2.21661653 | H9: 0
A10: 6 | B10: Ernakulum | C10: 0.1130618234 | D10: 0.1135415149 | E10: 1.078520349 | F10: 0.8896059042 | G10: 0 | H10: 0
A11: 7 | B11: Coimbatore | C11: 0.03758251631 | D11: 0.05754790246 | E11: 0.08624776751 | F11: 0.07317850431 | G11: 0.1257428853 | H11: 0
A12: 8 | B12: New Delhi | C12: 3.096543269 | D12: 3.016120013 | E12: 6.707460332 | F12: 6.923495638 | G12: 23.9136113 | H12: 13.16031604
A13: 9 | B13: Guwahati | C13: 0.05435037275 | D13: 0.05466574403 | E13: 0.001354365482 | F13: 0.002654548346 | G13: 0.02720856797 | H13: 0
A14: 10 | B14: Hyderabad | C14: 0.354715202 | D14: 0.2841011316 | E14: 3.58407483 | F14: 3.637674147 | G14: 1.775680631 | H14: 0
A15: 11 | B15: Indore | C15: 0.3293570791 | D15: 0.460989835 | E15: 0.452142035 | F15: 0.6148991362 | G15: 0.2102538059 | H15: 7.991513484
A16: 12 | B16: Jaipur | C16: 0.596848218 | D16: 0.6562943821 | E16: 0.4767818096 | F16: 0.5192704763 | G16: 0.2067192114 | H16: 4.531425808
A17: 13 | B17: Kanpur | C17: 0.3325801708 | D17: 0.3061180014 | E17: 0.1150845214 | F17: 0.09139301201 | G17: 0.4868908744 | H17: 0
A18: 14 | B18: Kolkata | C18: 3.48464075 | D18: 2.624329303 | E18: 4.789977434 | F18: 5.081824682 | G18: 23.7079374 | H18: 0
A19: 15 | B19: Ludhiana | C19: 0.0947698688 | D19: 0.09803083913 | E19: 0.1024102559 | F19: 0.1125391355 | G19: 0.06642931561 | H19: 0
A20: 16 | B20: Mangalore | C20: 0.01918214114 | D20: 0.01514926079 | E20: 0.0004512396346 | F20: 0.0005057035433 | G20: 0 | H20: 0
A21: 17 | B21: Mumbai | C21: 55.94202061 | D21: 61.82541607 | E21: 59.97263513 | F21: 62.83625186 | G21: 8.844283611 | H21: 12.87359372
A22: 18 | B22: Patna | C22: 0.04971091069 | D22: 0.05405948137 | E22: 0.004983533179 | F22: 0.004244934736 | G22: 0 | H22: 0
A23: 19 | B23: Pune | C23: 0.3218350593 | D23: 0.2915379147 | E23: 0.148346956 | F23: 0.12694417 | G23: 0.1755276366 | H23: 0
A24: 20 | B24: Rajkot | C24: 1.752971629 | D24: 1.541899776 | E24: 1.240731539 | F24: 1.40188564 | G24: 0 | H24: 0
A25: 21 | B25: Others | C25: 28.32230689 | D25: 23.84904963 | E25: 10.57137473 | F25: 10.35010091 | G25: 36.88355283 | H25: 61.44315095
B26: Total | C26: 100 | D26: 100 | E26: 100 | F26: 100 | G26: 100 | H26: 100
A28: Notes:
A29: 1. The city-wise distribution of turnover is based on the cities uploaded in the UCC database of the Exchange for clientele trades and member's registered office city for proprietary trades.
A31: Source: BSE, MSEI and NSE.

Sheet 19
A1: Table 19: Trends in Cash Segment of MSEI
A2: Year/ Month | B2: No. of Companies Listed | C2: No. of Companies Permitted | D2: No. of Companies Traded | E2: No. of Trading Days | F2: No. of Trades (Lakh) | G2: Traded Quantity (Lakh) | H2: Turnover (₹ crore) | I2: Average Daily Turnover (₹ crore) | J2: Average Trade Size (`) | K2: Demat Securities Traded (Lakh) | L2: Demat Turnover (₹ crore) | M2: Market Capitalisation (₹ crore) | N2: Nifty 50 Index
N3: High | O3: Low | P3: Close
A4: 2016-17 | B4: 80 | C4: 1311 | D4: 22 | E4: 248 | F4: 0.20202 | G4: 144.71558 | H4: 248.0836186 | I4: 1.000337172 | J4: 122801.514 | K4: 0 | L4: 0 | M4: 11831270.93 | N4: 17870.96 | O4: 14957.95 | P4: 17858.31
A5: 2017-18$ | B5: 3 | C5: 1321 | D5: 3 | E5: 186 | F5: 0.01681 | G5: 140.65925 | H5: 175.0303722 | I5: 0.9410235067 | J5: 1041227.675 | K5: 0 | L5: 0 | M5: 14718085.68 | N5: 20459.59 | O5: 17684.5 | P5: 20459.59
A6: 2017-04-14 | B6: 1 | C6: 1310 | D6: 4 | E6: 18 | F6: 0.00051 | G6: 0.6974 | H6: 2.68649895 | I6: 0.1492499417 | J6: 526764.5 | K6: 0 | L6: 0 | M6: 12137246.8 | N6: 18115.49 | O6: 17684.5 | P6: 18005.14
A7: 2017-05-14 | B7: 4 | C7: 1310 | D7: 6 | E7: 22 | F7: 0.00049 | G7: 3.57926 | H7: 2.88272555 | I7: 0.1310329795 | J7: 588311.3367 | K7: 0 | L7: 0 | M7: 12274447.92 | N7: 18616.3 | O7: 17925.91 | P7: 18605.22
A8: 2017-06-15 | B8: 0 | C8: 1309 | D8: 3 | E8: 21 | F8: 0.00032 | G8: 1.2495 | H8: 0.90657775 | I8: 0.04317036905 | J8: 283305.5469 | K8: 0 | L8: 0 | M8: 12254721.67 | N8: 18725.9 | O8: 18318.73 | P8: 18402.15
A9: 2017-07-31 | B9: 0 | C9: 1304 | D9: 5 | E9: 21 | F9: 0.00105 | G9: 125.5289 | H9: 149.7456184 | I9: 7.130743733 | J9: 14261487.47 | K9: 0 | L9: 0 | M9: 12918713.05 | N9: 19322.13 | O9: 18402.15 | P9: 19322.13
A10: 2017-08-31 | B10: 4 | C10: 1302 | D10: 5 | E10: 21 | F10: 0.00138 | G10: 3.13259 | H10: 3.468947415 | I10: 0.1651879721 | J10: 251373.0011 | K10: 0 | L10: 0 | M10: 12835738.97 | N10: 19396.43 | O10: 18601.32 | P10: 19040.83
A11: 2017-09-30 | B11: 1 | C11: 1308 | D11: 3 | E11: 21 | F11: 0.00227 | G11: 2.002 | H11: 4.1667302 | I11: 0.1984157238 | J11: 183556.3965 | K11: 0 | L11: 0 | M11: 12780674.6 | N11: 19477.48 | O11: 18717.24 | P11: 18771.03416
A12: 2017-10-31 | B12: 4 | C12: 1304 | D12: 2 | E12: 20 | F12: 0.00371 | G12: 2.792 | H12: 6.324478175 | I12: 0.3162239088 | J12: 170471.1098 | K12: 0 | L12: 0 | M12: 13766435.51 | N12: 20037.23 | O12: 18771.03416 | P12: 19977.28
A13: 2017-11-30 | B13: 3 | C13: 1305 | D13: 3 | E13: 22 | F13: 0.00517 | G13: 1.277 | H13: 3.57072125 | I13: 0.1623055114 | J13: 69066.17505 | K13: 0 | L13: 0 | M13: 13796404.1 | N13: 20148.87 | O13: 19549.82 | P13: 19761.04
A14: 2017-12-30 | B14: 3 | C14: 1321 | D14: 3 | E14: 20 | F14: 0.00191 | G14: 0.4006 | H14: 1.27807455 | I14: 0.0639037275 | J14: 66914.89791 | K14: 0 | L14: 0 | M14: 14718085.68 | N14: 20459.59 | O14: 19440.22 | P14: 20459.59
A16: Notes: 1. Demat turnover includes turnover of all securities which are available for trading in Demat mode. 2. Market capitalisation pertains to the number of companies traded.
A17: $ indicates as on December 31, 2017
A18: Source: MSEI

Sheet 21
A1: Table 21: Category-wise Share of Turnover in Cash Segment of BSE
A2: Year/Month | B2: Percentage Share in Turnover
B3: Proprietary | C3: FPI | D3: Mutual Funds | E3: Banks | F3: Others
A4: 2016-17 | B4: 13.4875528 | C4: 12.85844046 | D4: 4.629159519 | E4: 0.08655631603 | F4: 68.9382909
A5: 2017-18$ | B5: 16.27563335 | C5: 15.98232121 | D5: 7.928224151 | E5: 0.1737978821 | F5: 59.64002341
A6: 2017-04-04 | B6: 18.06079584 | C6: 15.55779494 | D6: 5.665604372 | E6: 0.0771799779 | F6: 60.63862486
A7: 2017-05-04 | B7: 17.34624581 | C7: 15.39574016 | D7: 8.237023711 | E7: 0.06957405839 | F7: 58.95141625
A8: 2017-06-04 | B8: 13.03106545 | C8: 18.59195572 | D8: 8.123079359 | E8: 0.8151243993 | F8: 59.43877507
A9: 2017-07-04 | B9: 15.596469 | C9: 15.44203665 | D9: 7.741444208 | E9: 0.1398636121 | F9: 61.08018653
A10: 2017-08-04 | B10: 16.88173463 | C10: 15.0233222 | D10: 7.68668754 | E10: 0.2327265138 | F10: 60.17552912
A11: 2017-09-04 | B11: 17.54549583 | C11: 12.97669941 | D11: 6.748401732 | E11: 0.1116716843 | F11: 62.61773134
A12: 2017-10-04 | B12: 17.07283694 | C12: 12.91346364 | D12: 6.583079808 | E12: 0.07648829312 | F12: 63.35413132
A13: 2017-11-04 | B13: 15.86160178 | C13: 20.15127478 | D13: 6.831949375 | E13: 0.06772097554 | F13: 57.08745309
A14: 2017-12-04 | B14: 15.65797587 | C14: 15.62647773 | D14: 13.14866896 | E14: 0.02564729671 | F14: 55.54123014
A16: $ indicates as on December 31, 2017
A17: Source: BSE.

Sheet 22
A1: Table 22: Category-wise Share of Turnover in Cash Segment of NSE
A2: Year/Month | B2: Percentage Share in Turnover
B3: Proprietary | C3: FPI | D3: Mutual Funds | E3: Banks | F3: Others
A4: 2016-17 | B4: 16.91793265 | C4: 20.27118381 | D4: 6.213797739 | E4: 0.4221846683 | F4: 56.59708579
A5: 2017-18$ | B5: 17.62 | C5: 16.29 | D5: 7.1 | E5: 0.5413017173 | F5: 58.44869828
A6: 2017-04-18 | B6: 16.6152857 | C6: 15.49852618 | D6: 7.218107052 | E6: 0.5995079891 | F6: 60.66808106
A7: 2017-05-17 | B7: 17.43130717 | C7: 18.44243651 | D7: 6.882570468 | E7: 0.597030049 | F7: 57.24368585
A8: 2017-06-17 | B8: 16.82955075 | C8: 18.98525185 | D8: 6.853718 | E8: 0.6238426893 | F8: 56.71
A9: 2017-07-17 | B9: 17.00894233 | C9: 16.35545382 | D9: 7.96648843 | E9: 0.4222131872 | F9: 58.24690224
A10: 2017-08-17 | B10: 18.52856984 | C10: 16.58189623 | D10: 6.638134245 | E10: 0.4843730283 | F10: 57.76702666
A11: 2017-09-17 | B11: 17.77 | C11: 15.98 | D11: 7.17 | E11: 0.52 | F11: 58.56
A12: 2017-10-17 | B12: 17.48701751 | C12: 15.9678445 | D12: 7.332245275 | E12: 0.5524694279 | F12: 58.66042329
A13: 2017-11-17 | B13: 17.72836452 | C13: 15.43777014 | D13: 7.248339035 | E13: 0.4936796915 | F13: 59.09184662
A14: 2017-12-01 | B14: 18.82567671 | C14: 13.90687244 | D14: 7.325999725 | E14: 0.4778529888 | F14: 59.46359813
A16: $ indicates as on December 31, 2017
A17: Source: NSE.

Sheet 23
A1: Table 23: Category-wise Share of Turnover in Cash Segment of MSEI
A2: Year/Month | B2: Percentage Share in Turnover
B3: Proprietary | C3: FPI | D3: Mutual Funds | E3: Banks | F3: Others
A4: 2016-17 | B4: 0.05366745928 | C4: 0 | D4: 0 | E4: 0 | F4: 99.94633254
A5: 2017-18$ | B5: 0 | C5: 0 | D5: 0 | E5: 0 | F5: 100
A6: 2017-04-18 | B6: 0 | C6: 0 | D6: 0 | E6: 0 | F6: 100
A7: 2017-05-17 | B7: 0 | C7: 0 | D7: 0 | E7: 0 | F7: 100
A8: 2017-06-17 | B8: 0 | C8: 0 | D8: 0 | E8: 0 | F8: 100
A9: 2017-07-17 | B9: 0 | C9: 0 | D9: 0 | E9: 0 | F9: 100
A10: 2017-08-17 | B10: 0 | C10: 0 | D10: 0 | E10: 0 | F10: 100
A11: 2017-09-17 | B11: 0 | C11: 0 | D11: 0 | E11: 0 | F11: 100
A12: 2017-10-17 | B12: 0 | C12: 0 | D12: 0 | E12: 0 | F12: 100
A13: 2017-11-17 | B13: 0 | C13: 0 | D13: 0 | E13: 0 | F13: 100
A14: 2017-12-01 | B14: 0 | C14: 0 | D14: 0 | E14: 0 | F14: 100
A16: $ indicates as on December 31, 2017
A17: Source: MSEI.

Sheet 24
A1: Table 24: Component Stocks: S&P BSE Sensex
A2: S.No. | B2: Name of Security | C2: Issued Capital (₹ crore) | D2: Free Float Market Capitalisation (₹ crore) | E2: Weightage (Percent) | F2: Beta | G2: R2 | H2: Daily Volatility (Percent) | I2: Monthly Return (Percent) | J2: Impact Cost (Percent)
A3: 1 | B3: HDFC BANK | C3: 518.02 | D3: 381148.0742 | E3: 11.41718316 | F3: 0.67 | G3: 0.213055 | H3: 0.82 | I3: 1.160875 | J3: 0.03
A4: 2 | B4: RELIANCE | C4: 6333.5 | D4: 297486.5454 | E4: 8.911125641 | F4: 1.12 | G4: 0.018122 | H4: 4.7 | I4: -0.168003 | J4: 0.02
A5: 3 | B5: HDFC | C5: 319.52 | D5: 272512.3877 | E5: 8.163031783 | F5: 0.98 | G5: 0.215815 | H5: 1.18 | I5: 1.939982 | J5: 0.03
A6: 4 | B6: ITC LTD. | C6: 1219.05 | D6: 224245.7419 | E6: 6.71721801 | F6: 1.28 | G6: 0.197268 | H6: 1.62 | I6: 2.91414 | J6: 0.04
A7: 5 | B7: INFOSYS LTD | C7: 1091.97 | D7: 207689.6889 | E7: 6.221286106 | F7: 0.73 | G7: 0.082127 | H7: 1.43 | I7: 6.600338 | J7: 0.03
A8: 6 | B8: ICICI BANK | C8: 1284.41 | D8: 201417.027 | E8: 6.033390288 | F8: 1.71 | G8: 0.282503 | H8: 1.82 | I8: 2.014294 | J8: 0.03
A9: 7 | B9: LARSEN & TOU | C9: 280.21 | D9: 153156.2176 | E9: 4.587751342 | F9: 0.98 | G9: 0.039454 | H9: 2.79 | I9: 3.295393 | J9: 0.04
A10: 8 | B10: TCS LTD. | C10: 191.43 | D10: 134402.9262 | E10: 4.026001782 | F10: 0.29 | G10: 0.017237 | H10: 1.26 | I10: 2.511151 | J10: 0.04
A11: 9 | B11: MARUTISUZUK | C11: 151.04 | D11: 129344.4332 | E11: 3.874476048 | F11: 1.01 | G11: 0.262935 | H11: 1.11 | I11: 13.124978 | J11: 0.02
A12: 10 | B12: KOTAK MAH.BK | C12: 952.21 | D12: 119095.2716 | E12: 3.567465303 | F12: 0.66 | G12: 0.108738 | H12: 1.14 | I12: 0.889822 | J12: 0.06
A13: 11 | B13: STATE BANK | C13: 863.21 | D13: 114879.6374 | E13: 3.441187168 | F13: 1.87 | G13: 0.243446 | H13: 2.14 | I13: -3.417069 | J13: 0.03
A14: 12 | B14: HIND UNI LT | C14: 216.45 | D14: 97719.75069 | E14: 2.927167596 | F14: 0.77 | G14: 0.151259 | H14: 1.12 | I14: 7.407262 | J14: 0.05
A15: 13 | B15: AXIS BANK | C15: 512.78 | D15: 95728.22256 | E15: 2.867511932 | F15: 1.23 | G15: 0.168011 | H15: 1.7 | I15: 4.925373 | J15: 0.03
A16: 14 | B16: INDUSIND BNK | C16: 599.74 | D16: 83978.15303 | E16: 2.51554191 | F16: 0.8 | G16: 0.143231 | H16: 1.19 | I16: -0.680087 | J16: 0.04
A17: 15 | B17: TATA MOTORS | C17: 577.47 | D17: 80926.58974 | E17: 2.424133192 | F17: 1.63 | G17: 0.259108 | H17: 1.8 | I17: 6.561225 | J17: 0.04
A18: 16 | B18: MAH & MAH | C18: 621.6 | D18: 69970.67199 | E18: 2.095951763 | F18: 1.05 | G18: 0.015223 | H18: 4.8 | I18: 6.494151 | J18: 0.06
A19: 17 | B19: SUN PHARMA. | C19: 239.92 | D19: 61627.03276 | E19: 1.846020401 | F19: 1.01 | G19: 0.088678 | H19: 1.92 | I19: 5.713491 | J19: 0.04
A20: 18 | B20: BHARTI ARTL | C20: 1998.7 | D20: 59254.25968 | E20: 1.774944652 | F20: 1.03 | G20: 0.102103 | H20: 1.82 | I20: 6.551273 | J20: 0.05
A21: 19 | B21: YES BANK | C21: 459.74 | D21: 57677.4637 | E21: 1.727712173 | F21: 1.37 | G21: 0.005577 | H21: 10.34 | I21: 2.689048 | J21: 0.05
A22: 20 | B22: ONGC CORPN | C22: 6416.62 | D22: 54955.76224 | E22: 1.646184372 | F22: 0.67 | G22: 0.085621 | H22: 1.29 | I22: 7.809471 | J22: 0.05
A23: 21 | B23: NTPC LTD | C23: 8245.46 | D23: 54060.56673 | E23: 1.619369043 | F23: 0.68 | G23: 0.095976 | H23: 1.25 | I23: -2.045328 | J23: 0.05
A24: 22 | B24: ASIAN PAINTS | C24: 95.92 | D24: 52200.80212 | E24: 1.563660318 | F24: 0.72 | G24: 0.122315 | H24: 1.16 | I24: 0.884338 | J24: 0.06
A25: 23 | B25: HEROMOTOCO | C25: 39.94 | D25: 49147.32882 | E25: 1.472194386 | F25: 0.86 | G25: 0.161084 | H25: 1.21 | I25: 3.953545 | J25: 0.05
A26: 24 | B26: TATA STEEL | C26: 971.22 | D26: 49084.28345 | E26: 1.470305879 | F26: 1.47 | G26: 0.265605 | H26: 1.61 | I26: 5.365748 | J26: 0.03
A27: 25 | B27: BAJAJ AUTO | C27: 289.37 | D27: 45196.50367 | E27: 1.353848532 | F27: 0.78 | G27: 0.159407 | H27: 1.1 | I27: 0.347253 | J27: 0.05
A28: 26 | B28: POWER GRID | C28: 5231.59 | D28: 44022.26037 | E28: 1.318674405 | F28: 0.57 | G28: 0.077455 | H28: 1.15 | I28: -2.719106 | J28: 0.08
A29: 27 | B29: WIPRO LTD. | C29: 904.59 | D29: 39653.89526 | E29: 1.187821259 | F29: 0.46 | G29: 0.003162 | H29: 4.64 | I29: 7.40233 | J29: 0.07
A30: 28 | B30: COAL INDIA | C30: 6207.41 | D30: 34283.51991 | E30: 1.026953178 | F30: 0.65 | G30: 0.071885 | H30: 1.37 | I30: -4.779145 | J30: 0.06
A31: 29 | B31: ADANI PORTS | C31: 414.19 | D31: 31844.40762 | E31: 0.9538902569 | F31: 1.5 | G31: 0.245619 | H31: 1.71 | I31: 1.45418 | J31: 0.06
A32: 30 | B32: DR.REDDY'S | C32: 82.91 | D32: 29214.69391 | E32: 0.8751179237 | F32: 0.58 | G32: 0.036051 | H32: 1.73 | I32: 5.600629 | J32: 0.04
A33: 31 | B33: TATAMTRTDVR | C33: 101.7 | D33: 12448.12896 | E33: 0.37 | F33: 1.63 | G33: 0.244263 | H33: 1.86 | I33: 0.0538 | J33: 0.1
A35: Notes: 1. Beta & R2 are calculated for the trailing 12 months. Beta measures the degree to which any portfolio of stocks is affected as compared to the effect on the market as a whole.
A36: 2. The coefficient of determination (R2) measures the strength of relationship between two variables the return on a security versus that of the market.
A37: 3. Volatility is the standard deviation of the daily returns for the trailing 12 months.
A38: 4. Impact cost is calculated as the difference between actual buy price and ideal buy price, divided by ideal buy price, multiplied by 100. Hence ideal price is calculated as (best buy + best sell)/2.
A39: 5. The above is calculated for a month for the portfolio size of ` 5 lakh. It is calculated for the current month.
A40: Source: BSE.

Sheet 25
A1: Table 25: Component Stocks: Nifty 50 Index
A2: S.No. | B2: Name of Security | C2: Issued Capital (₹ crore) | D2: Free Float Market Capitalisation (₹ crore) | E2: Weightage (Percent) | F2: Beta | G2: R2 | H2: Daily Volatility (Percent) | I2: Monthly Return (Percent) | J2: Impact Cost (Percent)
A3: 1 | B3: HDFC BANK LTD. | C3: 5176128234 | D3: 382825.41 | E3: 9.41 | F3: 0.73 | G3: 0.24 | H3: 0.88 | I3: 1.01 | J3: 0.03
A4: 2 | B4: RELIANCE INDUSTRIES LTD. | C4: 65050705050 | D4: 317549.24 | E4: 7.8 | F4: 0.95 | G4: 0.12 | H4: 0.75 | I4: -0.05 | J4: 0.02
A5: 3 | B5: HOUSING DEVELOPMENT FINANCE CORPORATION LTD. | C5: 3194124080 | D5: 273161.49 | E5: 6.71 | F5: 1 | G5: 0.22 | H5: 0.89 | I5: 2.07 | J5: 0.02
A6: 4 | B6: I T C LTD. | C6: 12188208322 | D6: 224598.21 | E6: 5.52 | F6: 1.16 | G6: 0.17 | H6: 1.16 | I6: 2.81 | J6: 0.02
A7: 5 | B7: INFOSYS LTD. | C7: 11484966335 | D7: 208241.62 | E7: 5.12 | F7: 0.69 | G7: 0.08 | H7: 0.9 | I7: 6.76 | J7: 0.02
A8: 6 | B8: ICICI BANK LTD. | C8: 12843505078 | D8: 201643.03 | E8: 4.96 | F8: 1.56 | G8: 0.25 | H8: 1.15 | I8: 2.1 | J8: 0.03
A9: 7 | B9: LARSEN & TOUBRO LTD. | C9: 2802063242 | D9: 155130.63 | E9: 3.81 | F9: 1.33 | G9: 0.36 | H9: 1.06 | I9: 3.43 | J9: 0.03
A10: 8 | B10: KOTAK MAHINDRA BANK LTD. | C10: 9522077710 | D10: 134668.84 | E10: 3.31 | F10: 0.78 | G10: 0.15 | H10: 0.64 | I10: 0.99 | J10: 0.02
A11: 9 | B11: TATA CONSULTANCY SERVICES LTD. | C11: 1914287591 | D11: 134442.71 | E11: 3.3 | F11: 0.3 | G11: 0.02 | H11: 1.3 | I11: 2.43 | J11: 0.02
A12: 10 | B12: MARUTI SUZUKI INDIA LTD. | C12: 1510400300 | D12: 129320.53 | E12: 3.18 | F12: 1.07 | G12: 0.29 | H12: 1.51 | I12: 13.15 | J12: 0.02
A13: 11 | B13: STATE BANK OF INDIA | C13: 8632053793 | D13: 115028.16 | E13: 2.83 | F13: 1.74 | G13: 0.18 | H13: 1.21 | I13: -3.26 | J13: 0.02
A14: 12 | B14: HINDUSTAN UNILEVER LTD. | C14: 2164478571 | D14: 97702.51 | E14: 2.4 | F14: 0.81 | G14: 0.17 | H14: 0.89 | I14: 7.5 | J14: 0.02
A15: 13 | B15: AXIS BANK LTD. | C15: 4797101600 | D15: 96039.05 | E15: 2.36 | F15: 1.19 | G15: 0.16 | H15: 1.04 | I15: 5.33 | J15: 0.02
A16: 14 | B16: INDUSIND BANK LTD. | C16: 5993676140 | D16: 84005.27 | E16: 2.06 | F16: 0.94 | G16: 0.19 | H16: 0.69 | I16: -0.79 | J16: 0.03
A17: 15 | B17: TATA MOTORS LTD. | C17: 5774697388 | D17: 79801.7 | E17: 1.96 | F17: 1.67 | G17: 0.28 | H17: 1.33 | I17: 6.85 | J17: 0.03
A18: 16 | B18: BHARTI AIRTEL LTD. | C18: 19987000510 | D18: 69868.36 | E18: 1.72 | F18: 1.02 | G18: 0.1 | H18: 1.95 | I18: 6.69 | J18: 0.03
A19: 17 | B19: MAHINDRA & MAHINDRA LTD. | C19: 6215962720 | D19: 70032.14 | E19: 1.72 | F19: 0.94 | G19: 0.19 | H19: 1.62 | I19: 6.8 | J19: 0.02
A20: 18 | B20: SUN PHARMACEUTICAL INDUSTRIES LTD. | C20: 2399309346 | D20: 63036.81 | E20: 1.55 | F20: 1.01 | G20: 0.09 | H20: 1.88 | I20: 5.78 | J20: 0.03
A21: 19 | B21: VEDANTA LTD. | C21: 3717194239 | D21: 61315.12 | E21: 1.51 | F21: 1.94 | G21: 0.29 | H21: 1.83 | I21: 11.66 | J21: 0.02
A22: 20 | B22: YES BANK LTD. | C22: 4595212580 | D22: 57927.25 | E22: 1.42 | F22: 1.2 | G22: 0.16 | H22: 1.34 | I22: 2.69 | J22: 0.02
A23: 21 | B23: OIL & NATURAL GAS CORPORATION LTD. | C23: 64166175900 | D23: 55111.05 | E23: 1.35 | F23: 0.68 | G23: 0.08 | H23: 1.2 | I23: 8.05 | J23: 0.03
A24: 22 | B24: NTPC LTD. | C24: 82454644000 | D24: 53999.55 | E24: 1.33 | F24: 0.73 | G24: 0.11 | H24: 1.01 | I24: -2.29 | J24: 0.03
A25: 23 | B25: ASIAN PAINTS LTD. | C25: 959197790 | D25: 52227.84 | E25: 1.28 | F25: 0.77 | G25: 0.14 | H25: 1.11 | I25: 1.02 | J25: 0.02
A26: 24 | B26: HCL TECHNOLOGIES LTD. | C26: 2784248928 | D26: 49587.47 | E26: 1.22 | F26: 0.23 | G26: 0.01 | H26: 1.11 | I26: 5.01 | J26: 0.03
A27: 25 | B27: HERO MOTOCORP LTD. | C27: 399414042 | D27: 49134.87 | E27: 1.21 | F27: 0.96 | G27: 0.19 | H27: 1.6 | I27: 4.17 | J27: 0.02
A28: 26 | B28: TATA STEEL LTD. | C28: 9712158890 | D28: 49080.98 | E28: 1.21 | F28: 1.57 | G28: 0.29 | H28: 1.3 | I28: 5.51 | J28: 0.02
A29: 27 | B29: BAJAJ AUTO LTD. | C29: 2893670200 | D29: 45337.79 | E29: 1.11 | F29: 0.88 | G29: 0.2 | H29: 1.29 | I29: 0.85 | J29: 0.02
A30: 28 | B30: ULTRATECH CEMENT LTD. | C30: 2745519210 | D30: 45076.7 | E30: 1.11 | F30: 1.12 | G30: 0.22 | H30: 1.13 | I30: 2.78 | J30: 0.03
A31: 29 | B31: POWER GRID CORPORATION OF INDIA LTD. | C31: 52315896480 | D31: 44022.26 | E31: 1.08 | F31: 0.55 | G31: 0.07 | H31: 0.7 | I31: -2.77 | J31: 0.03
A32: 30 | B32: BAJAJ FINANCE LTD. | C32: 1153034616 | D32: 41523.49 | E32: 1.02 | F32: 1.45 | G32: 0.19 | H32: 1.36 | I32: 1.72 | J32: 0.02
A33: 31 | B33: EICHER MOTORS LTD. | C33: 272367080 | D33: 40492.86 | E33: 1 | F33: 1.06 | G33: 0.17 | H33: 1.58 | I33: 1.33 | J33: 0.02
A34: 32 | B34: BHARAT PETROLEUM CORPORATION LTD. | C34: 21692527440 | D34: 40428.8 | E34: 0.99 | F34: 1.16 | G34: 0.15 | H34: 1.47 | I34: 2.75 | J34: 0.03
A35: 33 | B35: HINDALCO INDUSTRIES LTD. | C35: 2244889146 | D35: 39915.81 | E35: 0.98 | F35: 1.98 | G35: 0.33 | H35: 1.68 | I35: 13.77 | J35: 0.02
A36: 34 | B36: WIPRO LTD. | C36: 9733381542 | D36: 39763.3 | E36: 0.98 | F36: 0.41 | G36: 0.04 | H36: 1.12 | I36: 7.66 | J36: 0.03
A37: 35 | B37: INDIAN OIL CORPORATION LTD. | C37: 48559049640 | D37: 39622 | E37: 0.97 | F37: 1.03 | G37: 0.12 | H37: 1.4 | I37: -1.26 | J37: 0.03
A38: 36 | B38: INDIABULLS HOUSING FINANCE LTD. | C38: 851865488 | D38: 38735.01 | E38: 0.95 | F38: 1.18 | G38: 0.14 | H38: 1 | I38: -0.77 | J38: 0.03
A39: 37 | B39: COAL INDIA LTD. | C39: 62074091770 | D39: 34277 | E39: 0.84 | F39: 0.74 | G39: 0.09 | H39: 1.23 | I39: -4.66 | J39: 0.03
A40: 38 | B40: GAIL (INDIA) LTD. | C40: 16913032000 | D40: 32112.27 | E40: 0.79 | F40: 0.97 | G40: 0.11 | H40: 2.13 | I40: 6.67 | J40: 0.02
A41: 39 | B41: ZEE ENTERTAINMENT ENTERPRISES LTD. | C41: 960453620 | D41: 31851.14 | E41: 0.78 | F41: 0.96 | G41: 0.14 | H41: 0.79 | I41: 2.4 | J41: 0.02
A42: 40 | B42: HINDUSTAN PETROLEUM CORPORATION LTD. | C42: 15238226250 | D42: 31255.74 | E42: 0.77 | F42: 1.38 | G42: 0.12 | H42: 1.8 | I42: 0.46 | J42: 0.03
A43: 41 | B43: TECH MAHINDRA LTD. | C43: 4885459220 | D43: 31520.2 | E43: 0.77 | F43: 0.55 | G43: 0.03 | H43: 1.67 | I43: 3.03 | J43: 0.03
A44: 42 | B44: ADANI PORTS AND SPECIAL ECONOMIC ZONE LTD. | C44: 4141903522 | D44: 31083.02 | E44: 0.76 | F44: 1.54 | G44: 0.25 | H44: 1.09 | I44: 1.92 | J44: 0.04
A45: 43 | B45: CIPLA LTD. | C45: 1609889380 | D45: 30857.96 | E45: 0.76 | F45: 0.69 | G45: 0.07 | H45: 1.42 | I45: 1.26 | J45: 0.03
A46: 44 | B46: BHARTI INFRATEL LTD. | C46: 18496082460 | D46: 29422.64 | E46: 0.72 | F46: 0.91 | G46: 0.06 | H46: 1.72 | I46: -1.29 | J46: 0.03
A47: 45 | B47: DR. REDDY'S LABORATORIES LTD. | C47: 829436320 | D47: 29235.41 | E47: 0.72 | F47: 0.55 | G47: 0.03 | H47: 1.28 | I47: 5.7 | J47: 0.02
A48: 46 | B48: UPL LTD. | C48: 1016713494 | D48: 27916.11 | E48: 0.69 | F48: 1.04 | G48: 0.15 | H48: 2.04 | I48: 4.29 | J48: 0.03
A49: 47 | B49: LUPIN LTD. | C49: 903920698 | D49: 21201.6 | E49: 0.52 | F49: 0.7 | G49: 0.05 | H49: 0.64 | I49: 8.24 | J49: 0.03
A50: 48 | B50: AMBUJA CEMENTS LTD. | C50: 3971290458 | D50: 19987.21 | E50: 0.49 | F50: 1.05 | G50: 0.21 | H50: 1.01 | I50: 3.64 | J50: 0.03
A51: 49 | B51: AUROBINDO PHARMA LTD. | C51: 585882409 | D51: 19346.77 | E51: 0.48 | F51: 1.17 | G51: 0.11 | H51: 1.35 | I51: -0.71 | J51: 0.02
A52: 50 | B52: BOSCH LTD. | C52: 305207400 | D52: 18464.03 | E52: 0.45 | F52: 0.95 | G52: 0.15 | H52: 1.36 | I52: -0.83 | J52: 0.04
A54: Notes: 1. Beta & R2 are calculated for the the trailing 12 months. Beta measures the degree to which any portfolio of stocks is affected as compared to the effect on the market as a whole.
A55: 2. The coefficient of determination (R2) measures the strength of relationship between two variables the return on a security versus that of the market.
A56: 3. Volatility is the standard deviation of the daily returns for the the trailing 12 months.
A57: 4. Impact cost is calculated as the difference between actual buy price and ideal buy price, divided by ideal buy price, multiplied by 100. Hence ideal price is calculated as (best buy + best sell)/2.
A58: 5. The above is calculated for a month for the portfolio size of `5 lakh. It is calculated for the current month.
A59: 6. As per NSE circular dated February 22, 2016, the equity securities with Differential Voting Rights (DVRs) would be eligible for inclusion in an index subject to fulfilment of the eligibility criteria laid down by NSE.
A60: Source: NSE.

Sheet 26
A1: Table 26: Component Stocks: SX40 Index
A2: S.No. | B2: Name of Security | C2: Issued Capital (₹ crore) | D2: Free Float Market Capitalisation (₹ crore) | E2: Weightage (Percent) | F2: Beta | G2: R2 | H2: Daily Volatility (Percent) | I2: Monthly Return (Percent) | J2: Impact Cost (Percent)
A3: 1 | B3: Reliance Industries Limited | C3: 6333.503519 | D3: 374805.6804 | E3: 0.09935072606 | F3: 1.11 | G3: 0.03 | H3: 0.3512 | I3: -0.0005428586939 | J3: 0
A4: 2 | B4: ITC Limited | C4: 1218.484922 | D4: 283499.6545 | E4: 0.07514799798 | F4: 1.29 | G4: 0.2 | H4: 0.2159 | I4: 0.02735042735 | J4: 0
A5: 3 | B5: Infosys Limited | C5: 1148.496633 | D5: 261295.0703 | E5: 0.06926217053 | F5: 0.86 | G5: 0.11 | H5: 0.2873 | I5: 0.06328870975 | J5: 0
A6: 4 | B6: HDFC Bank Limited | C6: 518.0247234 | D6: 210149.756 | E6: 0.05570494775 | F6: 0.64 | G6: 0.18 | H6: 0.1985 | I6: 0.009987182226 | J6: 0
A7: 5 | B7: Larsen & Toubro Limited | C7: 280.1513636 | D7: 194461.2524 | E7: 0.05154635491 | F7: 1.33 | G7: 0.35 | H7: 0.3269 | I7: 0.03314126763 | J7: 0
A8: 6 | B8: Tata Consultancy Services Limited | C8: 197.0427941 | D8: 190986.1732 | E8: 0.05062520652 | F8: 0.42 | G8: 0.03 | H8: 0.217 | I8: 0.02376721457 | J8: 0
A9: 7 | B9: Maruti Suzuki India Limited | C9: 151.04003 | D9: 161911.0109 | E9: 0.0429181769 | F9: 1.03 | G9: 0.26 | H9: 0.1921 | I9: 0.1161872851 | J9: 0
A10: 8 | B10: Housing Development Finance Corporation Limited | C10: 319.518309 | D10: 149967.714 | E10: 0.03975233581 | F10: 0.84 | G10: 0.15 | H10: 0.2505 | I10: 0.02028765201 | J10: 0
A11: 9 | B11: Hindustan Unilever Limited | C11: 216.4478571 | D11: 122176.6781 | E11: 0.03238569295 | F11: 0.84 | G11: 0.18 | H11: 0.2538 | I11: 0.06974448953 | J11: 0
A12: 10 | B12: ICICI Bank Limited | C12: 1284.397948 | D12: 110743.5136 | E12: 0.02935507401 | F12: 1.48 | G12: 0.22 | H12: 0.5873 | I12: 0.02054140127 | J12: 0
A13: 11 | B13: Tata Motors Limited | C13: 577.4696856 | D13: 99796.27553 | E13: 0.02645326086 | F13: 1.71 | G13: 0.28 | H13: 0.411 | I13: 0.06414264212 | J13: 0
A14: 12 | B14: Mahindra & Mahindra Limited | C14: 621.596272 | D14: 87869.88719 | E14: 0.02329190178 | F14: 0.99 | G14: 0.03 | H14: 0.2633 | I14: -0.8726534416 | J14: 0
A15: 13 | B15: Sun Pharmaceuticals Industries Limited | C15: 240.6749516 | D15: 79166.31034 | E15: 0.0209848218 | F15: 1.12 | G15: 0.11 | H15: 0.4019 | I15: 0.05462663048 | J15: 0
A16: 14 | B16: Bharti Airtel Limited | C16: 1998.700051 | D16: 74130.61398 | E16: 0.01964999654 | F16: 1.02 | G16: 0.1 | H16: 0.6006 | I16: 0.0626829038 | J16: 0
A17: 15 | B17: Oil & Natural Gas Corporation Limited | C17: 6416.61759 | D17: 68809.02667 | E17: 0.01823938942 | F17: 0.69 | G17: 0.09 | H17: 0.379 | I17: 0.07453893443 | J17: 0
A18: 16 | B18: Vedanta Limited | C18: 371.7194239 | D18: 68708.42647 | E18: 0.01821272306 | F18: 1.9 | G18: 0.27 | H18: 0.4251 | I18: 0.1044255835 | J18: 0
A19: 17 | B19: Kotak Mahindra Bank Limited | C19: 952.207771 | D19: 68142.88977 | E19: 0.01806281476 | F19: 0.7 | G19: 0.12 | H19: 0.2813 | I19: 0.009800039596 | J19: 0
A20: 18 | B20: NTPC Limited | C20: 8245.4644 | D20: 67938.05415 | E20: 0.01800851844 | F20: 0.77 | G20: 0.11 | H20: 0.2514 | I20: -0.02344632768 | J20: 0
A21: 19 | B21: HCL Technologies Limited | C21: 285.4248928 | D21: 66217.29023 | E21: 0.01755239103 | F21: 0.32 | G21: 0.02 | H21: 0.3232 | I21: 0.04772599663 | J21: 0
A22: 20 | B22: Asian Paints Limited | C22: 95.919779 | D22: 65988.23553 | E22: 0.0174916749 | F22: 0.75 | G22: 0.13 | H22: 0.2952 | I22: 0.01014242555 | J22: 0
A23: 21 | B23: State Bank of India | C23: 863.2053793 | D23: 63037.60149 | E23: 0.01670954259 | F23: 1.67 | G23: 0.17 | H23: 0.9778 | I23: -0.03372055502 | J23: 0
A24: 22 | B24: Hero MotoCorp Limited | C24: 39.9414042 | D24: 62155.72293 | E24: 0.01647578072 | F24: 0.98 | G24: 0.2 | H24: 0.1988 | I24: 0.04002483389 | J24: 0
A25: 23 | B25: Tata Steel Limited | C25: 971.215889 | D25: 61424.11558 | E25: 0.01628185164 | F25: 1.54 | G25: 0.28 | H25: 0.2907 | I25: 0.0522255598 | J25: 0
A26: 24 | B26: Ultratech Cement Limited | C26: 274.551921 | D26: 56509.98245 | E26: 0.01497924946 | F26: 1.11 | G26: 0.21 | H26: 0.3487 | I26: 0.02703328241 | J26: 0
A27: 25 | B27: Power Grid Corporation of India Limited | C27: 5231.589648 | D27: 55514.53801 | E27: 0.01471538439 | F27: 0.59 | G27: 0.08 | H27: 0.2653 | I27: -0.02845021213 | J27: 0
A28: 26 | B28: Bajaj Auto Limited | C28: 289.36702 | D28: 53162.47432 | E28: 0.01409191669 | F28: 0.87 | G28: 0.19 | H28: 0.2269 | I28: 0.008429325654 | J28: 0
A29: 27 | B29: Axis Bank Limited | C29: 512.7759384 | D29: 53063.99154 | E29: 0.0140658116 | F29: 1.09 | G29: 0.13 | H29: 0.5519 | I29: 0.05062505541 | J29: 0
A30: 28 | B30: Eicher Motors Limited | C30: 27.236708 | D30: 51373.11205 | E30: 0.01361760573 | F30: 1.04 | G30: 0.16 | H30: 0.2803 | I30: 0.0130780779 | J30: 0
A31: 29 | B31: Indian Oil Corporation Limited | C31: 4855.904964 | D31: 50746.40175 | E31: 0.01345148199 | F31: 1.07 | G31: 0.12 | H31: 0.3547 | I31: -0.01273967314 | J31: 0
A32: 30 | B32: Wipro Limited | C32: 973.3381542 | D32: 50619.03022 | E32: 0.01341771928 | F32: 0.66 | G32: 0.01 | H32: 0.2042 | I32: 0.07112171838 | J32: 0
A33: 31 | B33: Hindalco Industries Limited | C33: 224.4889146 | D33: 50460.26556 | E33: 0.01337563512 | F33: 1.91 | G33: 0.3 | H33: 0.3913 | I33: 0.121001645 | J33: 0
A34: 32 | B34: Bharat Petroleum Corporation Limited | C34: 2169.214044 | D34: 49269.84721 | E34: 0.0130600878 | F34: 1.16 | G34: 0.15 | H34: 0.3695 | I34: 0.02675294572 | J34: 0
A35: 33 | B35: Coal India Limited | C35: 6316.3644 | D35: 47015.24083 | E35: 0.01246245337 | F35: 0.77 | G35: 0.1 | H35: 0.2779 | I35: -0.0488686062 | J35: 0
A36: 34 | B36: IndusInd Bank Limited | C36: 599.735344 | D36: 46173.16 | E36: 0.01223924079 | F36: 0.84 | G36: 0.15 | H36: 0.3114 | I36: -0.007914367154 | J36: 0
A37: 35 | B37: Zee Entertainment Enterprises Limited | C37: 96.045362 | D37: 40016.61423 | E37: 0.01060730903 | F37: 0.97 | G37: 0.14 | H37: 0.3664 | I37: 0.02346167068 | J37: 0
A38: 36 | B38: Tech Mahindra Limited | C38: 488.545922 | D38: 39523.88721 | E38: 0.01047670059 | F38: 0.66 | G38: 0.05 | H38: 0.3577 | I38: 0.02936216645 | J38: 0
A39: 37 | B39: Adani Ports And Special Economic Zone Limited | C39: 414.1903522 | D39: 38739.02287 | E39: 0.01026865453 | F39: 1.55 | G39: 0.25 | H39: 0.3491 | I39: 0.01885862196 | J39: 0
A40: 38 | B40: Dr. Reddy's Laboratories Limited | C40: 85.4499205 | D40: 38416.56636 | E40: 0.01018318014 | F40: 0.61 | G40: 0.04 | H40: 0.3786 | I40: 0.053910198 | J40: 0
A41: 39 | B41: Yes Bank Limited | C41: 459.744143 | D41: 31805.18867 | E41: 0.008430684892 | F41: 1.26 | G41: 0.02 | H41: 0.4784 | I41: 0.02617801047 | J41: 0
A42: 40 | B42: Lupin Limited | C42: 90.3954922 | D42: 26760.71739 | E42: 0.007093533642 | F42: 0.72 | G42: 0.05 | H42: 0.7191 | I42: 0.07614958762 | J42: 0
A44: Notes: 1. Beta & R2 are calculated for the the trailing 12 months. Beta measures the degree to which any portfolio of stocks is affected as compared to the effect on the market as a whole.
A45: 2. The coefficient of determination (R2) measures the strength of relationship between two variables the return on a security versus that of the market.
A46: 3. Volatility is the standard deviation of the daily returns for the the trailing 12 months.
A47: 4. Impact cost is calculated as the difference between actual buy price and ideal buy price, divided by ideal buy price, multiplied by 100. Hence ideal price is calculated as (best buy + best sell)/2.
A48: 5. The above is calculated for a month for the portfolio size of `5 lakh. It is calculated for the current month.
A49: 6. As per NSE circular dated February 22, 2016, the equity securities with Differential Voting Rights (DVRs) would be eligible for inclusion in an index subject to fulfilment of the eligibility criteria laid down by NSE.
A50: Source: MSEI.

Sheet 27
A1: Table 27: Advances/Declines in Cash Segment of BSE, MSEI and NSE
A2: Year/ Month | B2: BSE | E2: NSE | H2: MSEI
B3: Advances | C3: Declines | D3: Advance / Decline Ratio | E3: Advances | F3: Declines | G3: Advance / Decline Ratio | H3: Advances | I3: Declines | J3: Advance / Decline Ratio
A4: 2016-17 | B4: 2137 | C4: 1650 | D4: 1.295151515 | E4: 993 | F4: 627 | G4: 1.583732057 | H4: 8 | I4: 8 | J4: 1
A5: 2017-18$ | B5: 2030 | C5: 1330 | D5: 1.526315789 | E5: 1161 | F5: 506 | G5: 2.294466403 | H5: 3 | I5: 4 | J5: 0.75
A6: 2017-04-04 | B6: 2511 | C6: 1077 | D6: 2.331476323 | E6: 1327 | F6: 351 | G6: 3.780626781 | H6: 4 | I6: 0 | J6: 0
A7: 2017-05-01 | B7: 1616 | C7: 1941 | D7: 0.8325605358 | E7: 766 | F7: 931 | G7: 0.82 | H7: 2 | I7: 2 | J7: 1
A8: 2017-06-04 | B8: 1310 | C8: 2171 | D8: 0.6034085675 | E8: 668 | F8: 1022 | G8: 0.6536203523 | H8: 1 | I8: 1 | J8: 1
A9: 2017-07-04 | B9: 2005 | C9: 1411 | D9: 1.42097803 | E9: 1060 | F9: 634 | G9: 1.65 | H9: 1 | I9: 3 | J9: 0.3333333333
A10: 2017-08-04 | B10: 995 | C10: 2401 | D10: 0.4144106622 | E10: 484 | F10: 1237 | G10: 0.39 | H10: 3 | I10: 2 | J10: 1.5
A11: 2017-09-04 | B11: 1835 | C11: 1500 | D11: 1.223333333 | E11: 1060 | F11: 660 | G11: 1.606060606 | H11: 2 | I11: 1 | J11: 2
A12: 2017-10-04 | B12: 1871 | C12: 1508 | D12: 1.24071618 | E12: 986 | F12: 741 | G12: 1.330634278 | H12: 2 | I12: 0 | J12: 0
A13: 2017-11-04 | B13: 2120 | C13: 1337 | D13: 1.585639491 | E13: 1179 | F13: 576 | G13: 2.046875 | H13: 1 | I13: 2 | J13: 0.5
A14: 2017-12-04 | B14: 2058 | C14: 1371 | D14: 1.501094092 | E14: 1089 | F14: 685 | G14: 1.589781022 | H14: 1 | I14: 1 | J14: 1
A16: Note: Advance/Decline is calculated based on the average price methodology. | P16: `
A17: Source: BSE, MSEI and NSE

Sheet 28
A1: Table 28: Trading Frequency in Cash Segment of BSE and NSE
A2: Month | B2: BSE | E2: NSE | H2: MSEI
B3: No. of Companies Listed | C3: No. of companies Traded | D3: Percent of Traded to Listed | E3: No. of Companies Listed | F3: No. of companies Traded | G3: Percent of Traded to Listed | H3: No. of Companies Listed | I3: No. of companies Traded | J3: Percent of Traded to Listed
A5: 2016-17 | B5: 5834 | C5: 2948 | D5: 50.53136784 | E5: 1817 | F5: 1665 | G5: 91.63456247 | H5: 80 | I5: 22 | J5: =I5/H5*100 -> 27.5
A6: 2017-18$ | B6: 5616 | C6: 2937 | D6: 52.29700855 | E6: 1897 | F6: 1750 | G6: 92.25092251 | H6: 3 | I6: 3 | J6: 100
A7: 2017-04-04 | B7: 5828 | C7: 2978 | D7: 51.09814688 | E7: 1831 | F7: 1668 | G7: 91.09776079 | H7: 1 | I7: 4 | J7: =I7/H7*100 -> 400
A8: 2017-05-05 | B8: 5783 | C8: 2829 | D8: 48.91924607 | E8: 1814 | F8: 1669 | G8: 92.00661521 | H8: 4 | I8: 6 | J8: =I8/H8*100 -> 150
A9: 2017-06-05 | B9: 5794 | C9: 2725 | D9: 47.03141181 | E9: 1820 | F9: 1666 | G9: 91.53846154 | H9: 0 | I9: 3 | J9: NA
A10: 2017-07-05 | B10: 5811 | C10: 2845 | D10: 48.95887111 | E10: 1837 | F10: 1685 | G10: 91.72563963 | H10: 0 | I10: 5 | J10: NA
A11: 2017-08-05 | B11: 5627 | C11: 2682 | D11: 47.66305314 | E11: 1848 | F11: 1692 | G11: 91.55844156 | H11: 4 | I11: 5 | J11: 125
A12: 2017-09-04 | B12: 5650 | C12: 2669 | D12: 47.23893805 | E12: 1851 | F12: 1690 | G12: 91.30199892 | H12: 1 | I12: 3 | J12: 300
A13: 2017-10-04 | B13: 5680 | C13: 2853 | D13: 50.22887324 | E13: 1873 | F13: 1712 | G13: 91.40416444 | H13: 4 | I13: 2 | J13: 50
A14: 2017-11-04 | B14: 5696 | C14: 2801 | D14: =C14/B14*100 -> 49.17485955 | E14: 1885 | F14: 1731 | G14: =F14/E14*100 -> 91.83023873 | H14: 3 | I14: 3 | J14: 100
A15: 2017-12-04 | B15: 5616 | C15: 2937 | D15: =C15/B15*100 -> 52.29700855 | E15: 1897 | F15: 1750 | G15: =F15/E15*100 -> 92.25092251 | H15: 3 | I15: 3 | J15: 100
A16: Note: At NSE, number of companies traded also includes the number of companies not available for trading but permitted to trade only in the first week of every month.
A18: ## Two companies got delisted in the month of April-2017 and June-2017, one in each of the months, respectively.
A19: $ indicates as on December 31, 2017
A20: Source: BSE and NSE

Sheet 29
A1: Table 29: Daily Volatility of Major Indices (percent)
A2: Year/ Month | B2: BSE Sensex | C2: BSE 100 | D2: BSE 500 | E2: Nifty 50 | F2: Nifty Next 50 | G2: Nifty 500 | H2: SX40
A3: 2016-17 | B3: 0.7680748725 | C3: 0.8021802533 | D3: 0.7964401685 | E3: 0.7826642418 | F3: 0.9689422824 | G3: 0.8020996798 | H3: 0.762819023
A4: 2017-18$ | B4: 0.5639132135 | C4: 0.5853337437 | D4: 0.6077121186 | E4: 0.5619611701 | F4: 0.8186213065 | G4: 0.606905786 | H4: 0.5606307209
A5: 2017-04-04 | B5: 0.5764199871 | C5: 0.513858132 | D5: 0.4873061183 | E5: 0.484007982 | F5: 0.5802374817 | G5: 0.4536745923 | H5: 0.5319038049
A6: 2017-05-04 | B6: 0.5804323386 | C6: 0.6403064292 | D6: 0.7098349695 | E6: 0.5675048529 | F6: 1.018546315 | G6: 0.6883916656 | H6: 0.5486064042
A7: 2017-06-04 | B7: 0.3384528306 | C7: 0.3544128098 | D7: 0.3867092865 | E7: 0.34 | F7: 0.53 | G7: 0.38 | H7: 0.3263972561
A8: 2017-07-04 | B8: 0.498978419 | C8: 0.4642570385 | D8: 0.4381585285 | E8: 0.42 | F8: 0.54 | G8: 0.39 | H8: 0.5381841112
A9: 2017-08-04 | B9: 0.6883402898 | C9: 0.7736837294 | D9: 0.8467957583 | E9: 0.7 | F9: 1.22 | G9: 0.83 | H9: 0.713079094
A10: 2017-09-04 | B10: 0.5994807974 | C10: 0.6867649255 | D10: 0.7568725917 | E10: 0.6 | F10: 0.91 | G10: 0.71 | H10: 0.6213663645
A11: 2017-10-04 | B11: 0.4830792788 | C11: 0.4648084773 | D11: 0.4331125048 | E11: 0.46 | F11: 0.5 | G11: 0.43 | H11: 0.4761900761
A12: 2017-11-04 | B12: 0.6106426385 | C12: 0.5799975648 | D12: 0.5672928801 | E12: 0.5217995645 | F12: 0.6851662941 | G12: 0.5333959677 | H12: 0.549203579
A13: 2017-12-04 | B13: 0.5803900059 | C13: 0.6377007499 | D13: 0.6416547781 | E13: 0.5452406692 | F13: 0.7252648616 | G13: 0.5648874614 | H13: 0.549203579
A14: Note: Volatility is calculated as the standard deviation of the natural log of daily returns in indices for the respective period.
A16: $ indicates as on December 31, 2017
A17: Source: BSE and NSE.

Sheet 30
A1: Table 30: Percentage Share of Top ‘N’ Securities/Members in Turnover of Cash Segment (percent)
A2: Year/Month | B2: BSE | G2: NSE
A3: Top | B3: 5 | C3: 10 | D3: 25 | E3: 50 | F3: 100 | G3: 5 | H3: 10 | I3: 25 | J3: 50 | K3: 100
A4: Securities
A5: 2016-17 | B5: 10.0146 | C5: 15.5944 | D5: 28.3171 | E5: 40.9935 | F5: 55.7935 | G5: 10.74170344 | H5: 19.20319449 | I5: 33.79531623 | J5: 48.85941968 | K5: 67.72209163
A6: 2017-18$ | B6: 11.4052 | C6: 16.5027 | D6: 27.1541 | E6: 38.187 | F6: 53.056 | G6: 9.155847014 | H6: 15.6476199 | I6: 29.05429372 | J6: 43.10729681 | K6: 61.22458884
A7: 2017-04-04 | B7: 12.8415 | C7: 18.7198 | D7: 30.6358 | E7: 42.706 | F7: 56.6357 | G7: 13.89261825 | H7: 24.33490908 | I7: 40.59969657 | J7: 57.2439742 | K7: 74.51137923
A8: 2017-05-04 | B8: 11.9795 | C8: 18.3444 | D8: 30.544 | E8: 43.4907 | F8: 59.6738 | G8: 10.11044052 | H8: 17.16678666 | I8: 32.2062193 | J8: 47.99942662 | K8: 67.25844155
A9: 2017-06-04 | B9: 23.3194 | C9: 29.7717 | D9: 39.9772 | E9: 50.4278 | F9: 63.5222 | G9: 10.20247937 | H9: 17.4141845 | I9: 32.74787178 | J9: 48.06053754 | K9: 66.84471382
A10: 2017-07-04 | B10: 14.0266 | C10: 20.4713 | D10: 32.0159 | E10: 44.255 | F10: 59.5597 | G10: 11.24202004 | H10: 18.52836394 | I10: 33.27231044 | J10: 48.09159319 | K10: 66.4718955
A11: 2017-08-04 | B11: 13.8162 | C11: 19.3984 | D11: 31.6198 | E11: 44.804 | F11: 60.7008 | G11: 11.84544861 | H11: 18.36141385 | I11: 33.48360726 | J11: 48.58582659 | K11: 67.64683095
A12: 2017-09-04 | B12: 10.8606 | C12: 17.3468 | D12: 27.7504 | E12: 40.2813 | F12: 55.8516 | G12: 9.354890654 | H12: 15.55217983 | I12: 30.51650295 | J12: 45.34876042 | K12: 62.99835834
A13: 2017-10-04 | B13: 10.2834 | C13: 15.0543 | D13: 25.3704 | E13: 36.8363 | F13: 51.4555 | G13: 11.53724748 | H13: 18.85383773 | I13: 31.71710749 | J13: 46.10427208 | K13: 62.98632799
A14: 2017-11-04 | B14: 25.4693 | C14: 29.6908 | D14: 38.1895 | E14: 47.6431 | F14: 59.4142 | G14: 8.748087637 | H14: 15.45710772 | I14: 29.0080802 | J14: 43.55846516 | K14: 60.87960102
A15: 2017-12-04 | B15: 13.6196 | C15: 19.6199 | D15: 31.1962 | E15: 42.56 | F15: 55.6444 | G15: 8.588681411 | H15: 14.69914233 | I15: 28.49979958 | J15: 42.33853311 | K15: 60.04180653
A16: Members
A17: 2016-17 | B17: 19.38 | C17: 29.36 | D17: 49.27 | E17: 66.13 | F17: 80.4 | G17: 18.49895624 | H17: 28.89772652 | I17: 50.72231927 | J17: 67.89510659 | K17: 81.70442569
A18: 2017-18$ | B18: 21.42 | C18: 34.42 | D18: 55.95 | E18: 71.09 | F18: 83.04 | G18: 19.27336296 | H18: 30.3280001 | I18: 50.81855918 | J18: 68.08251884 | K18: 81.68155381
A19: 2017-04-04 | B19: 20.44 | C19: 31.98 | D19: 53.6 | E19: 69.22 | F19: 81.63 | G19: 18.09342361 | H19: 29.43433098 | I19: 51.40370474 | J19: 69.18009205 | K19: 82.78272068
A20: 2017-05-04 | B20: 22.77 | C20: 35.02 | D20: 54.74 | E20: 70.41 | F20: 83.03 | G20: 19.27607242 | H20: 30.5402729 | I20: 52.24749154 | J20: 69.12200019 | K20: 82.17860094
A21: 2017-06-04 | B21: 32.63 | C21: 43.36 | D21: 63.64 | E21: 76.61 | F21: 86.61 | G21: 19.23960226 | H21: 31.74543066 | I21: 52.80988384 | J21: 69.27223737 | K21: 82.03347318
A22: 2017-07-04 | B22: 20.6 | C22: 32.57 | D22: 53.4 | E22: 69.04 | F22: 81.79 | G22: 18.82694875 | H22: 30.13218043 | I22: 50.04287393 | J22: 67.32684066 | K22: 81.10462567
A23: 2017-08-04 | B23: 23.6 | C23: 35.28 | D23: 57.46 | E23: 72.29 | F23: 83.22 | G23: 20.1496027 | H23: 31.88847727 | I23: 52.99757146 | J23: 69.48196032 | K23: 82.7826782
A24: 2017-09-04 | B24: 23.84 | C24: 35.37 | D24: 55.62 | E24: 69.97 | F24: 82.19 | G24: 18.91246828 | H24: 30.15809186 | I24: 50.68423815 | J24: 68.18980791 | K24: 81.87862808
A25: 2017-10-04 | B25: 23.71 | C25: 35.23 | D25: 54.99 | E25: 69.38 | F25: 81.99 | G25: 19.62071155 | H25: 30.60120638 | I25: 50.81535301 | J25: 68.03635341 | K25: 82.1015503
A26: 2017-11-04 | B26: 31.21 | C26: 42.77 | D26: 61.2 | E26: 74.68 | F26: 84.75 | G26: 19.26094384 | H26: 30.66591704 | I26: 51.22066943 | J26: 67.83106667 | K26: 81.57675162
A27: 2017-12-04 | B27: 31.73 | C27: 43.24 | D27: 63.54 | E27: 76.75 | F27: 86.32 | G27: 19.73529725 | H27: 31.73125368 | I27: 51.86226111 | J27: 68.16059533 | K27: 82.00508598
A28: Notes: 1. Data for Top N scrips has been compiled for all markets except Auction market & Retail Debt Market and includes series EQ, BE,BT, BL and IL.
A29: $ indicates as on December 31, 2017
A30: Source: BSE and NSE

Sheet 31
A1: Table 31: Settlement Statistics for Cash Segment of BSE
A2: Year/ Month | B2: No. of Trades(Lakh) | C2: Quantity Settled (Lakh) | D2: Delivered Quantity (Lakh) | E2: Percent of Delivered Quantity to Traded Quantity | F2: Value Settled (` crore) | G2: Delivered Value (` crore) | H2: Percent of Delivered Value to Total Turnover | I2: Delivered Quantity in Demat Mode (Lakh) | J2: Percent of Demat Delivered Quantity to Total Delivered Quantity | K2: Delivered Value in Demat Mode (` crore) | L2: Percent of Demat Delivered Value to Total Delivered Value | M2: Short Delivery (Auctioned quantity) (Lakh) | N2: Percent of Short Delivery to Delivery Quantity | O2: Funds Pay-in (` crore) | P2: Securities Pay-in (` crore) | Q2: SettlementGuarantee Fund (`crore)
A3: 2016-17 | B3: 3918.50883 | C3: 707223 | D3: 303781.6063 | E3: 41.94223772 | F3: 998260.58 | G3: 464996.2974 | H3: 37.43805885 | I3: 303449.1679 | J3: 99.94442953 | K3: 464969.7468 | L3: 99.99 | M3: 714.67051 | N3: 0.2445689484 | O3: 117489.538 | P3: 298363.24 | Q3: 148.66
A4: 2017-18$ | B4: 2716.42561 | C4: 559993 | D4: 220500.9479 | E4: 39.3896121 | F4: 800313.94 | G4: 295378.3117 | H4: 36.59214614 | I4: 220381.9216 | J4: 99.94354912 | K4: 295368.8995 | L4: 99.99075521 | M4: 439.9183123 | N4: 0.2013968937 | O4: 113751.3631 | P4: 220500.9479 | Q4: 188.74
A5: 2017-04-04 | B5: 287.35 | C5: 57778 | D5: 23452.3835 | E5: 40.59050763 | F5: 75070.4 | G5: 26771.10015 | H5: 35.6613261 | I5: 23452.25747 | J5: 99.99 | K5: 26770.97559 | L5: 99.99 | M5: 41.57 | N5: 0.1772537252 | O5: 10589.51401 | P5: 23452.3835 | Q5: 149.62
A6: 2017-05-04 | B6: 314.87893 | C6: 63339 | D6: 25591.07049 | E6: 40.40333837 | F6: 91105.62 | G6: 32596.85559 | H6: 35.77919298 | I6: 25591.07049 | J6: 99.99 | K6: 32596.85559 | L6: 99.99 | M6: 47.61238 | N6: 0.1860507556 | O6: 13409.23446 | P6: 25591.07049 | Q6: 180.7
A7: 2017-06-04 | B7: 260.68967 | C7: 54577 | D7: 22232.7089 | E7: 40.73640709 | F7: 85934.52 | G7: 36881.54949 | H7: 42.91820039 | I7: 22232.7089 | J7: 100 | K7: 36881.54949 | L7: 100 | M7: 38.67563 | N7: 0.173958244 | O7: 13886.1303 | P7: 22232.7089 | Q7: 181.73
A8: 2017-07-04 | B8: 321.29397 | C8: 71354 | D8: 26689.9496 | E8: 37.40498024 | F8: 88395.24 | G8: 29549.89676 | H8: 33.42928506 | I8: 26689.91497 | J8: 99.99 | K8: 29549.88739 | L8: 99.99 | M8: 55.33 | N8: 0.2073067676 | O8: 10495.16958 | P8: 26689.9496 | Q8: 182.86
A9: 2017-08-04 | B9: 275.9277 | C9: 58309 | D9: 23428.61438 | E9: 40.18009978 | F9: 79064.47 | G9: 28024.81925 | H9: 35.4455285 | I9: 23428.32006 | J9: 99.99 | K9: 28024.76627 | L9: 99.99 | M9: 40.35116 | N9: 0.1722324089 | O9: 12214.78043 | P9: 23428.61438 | Q9: 184.01
A10: 2017-09-04 | B10: 295.2219 | C10: 57815 | D10: 22473.00099 | E10: 38.87053704 | F10: 84349.14 | G10: 29393.71538 | H10: 34.84767644 | I10: 22473.00099 | J10: 99.99 | K10: 29393.71538 | L10: 99.99 | M10: 38.07866234 | N10: 0.169441822 | O10: 10835.56871 | P10: 22473.00099 | Q10: 185.23
A11: 2017-10-04 | B11: 287.27836 | C11: 52682 | D11: 19750.4357 | E11: 37.48991249 | F11: 77996.6 | G11: 25440.30635 | H11: 32.61719914 | I11: 19738.84302 | J11: 99.94130418 | K11: 25436.79798 | L11: 99.98620941 | M11: 61.17883 | N11: 0.3099413169 | O11: 8237.272993 | P11: 19750.4357 | Q11: 186.43
A12: 2017-11-04 | B12: 371.98508 | C12: 74832 | D12: 30441.69703 | E12: 40.68005269 | F12: 122708.58 | G12: 52130.64254 | H12: 42.48329052 | I12: 30431.17353 | J12: 99.96543064 | K12: 52125.73572 | L12: 99.99058746 | M12: 55.29925 | N12: 0.1817190847 | O12: 20034.58263 | P12: 30441.69703 | Q12: 187.55
A13: 2017-12-04 | B13: 301.8 | C13: 69307 | D13: 26441.08734 | E13: 38.15067358 | F13: 95689.37 | G13: 34589.42615 | H13: 36.14761614 | I13: 26344.63218 | J13: 99.63520729 | K13: 34588.61603 | L13: 99.99 | M13: 61.8224 | N13: 0.2346679186 | O13: 14049.10995 | P13: 26441.08734 | Q13: 188.74
A14: $ indicates as on December 31, 2017
A15: Source: BSE.

Sheet 32
A1: Table 32: Settlement Statistics for Cash Segment of NSE
A2: Year/ Month | B2: No. of Trades (Lakh) | C2: Quantity Settled (Lakh) | D2: Delivered Quantity (Lakh) | E2: Percent of Delivered Quantity to Traded Quantity | F2: Value Settled (` crore) | G2: Delivered Value (` crore) | H2: Percent of Delivered Value to Total Turnover | I2: Delivered Quantity in Demat Mode (Lakh) | J2: Percent of Demat Delivered Quantity to Total Delivered Quantity | K2: Delivered Value in Demat Mode (` crore) | L2: Percent of Demat Delivered Value to Total Delivered Value | M2: Short Delivery (Auctioned quantity) (Lakh) | N2: Percent of Short Delivery to Delivery Quantity | O2: Funds Pay-in (` crore) | P2: Securities Pay-in (` crore) | Q2: Settlement Guarantee Fund (` crore)
A3: 2016-17 | B3: 19728.3405 | C3: 2584979.494 | D3: 725682.1391 | E3: 28.09964605 | F3: 4998105.692 | G3: 1479963.126 | H3: 29.56786991 | I3: 724494.5039 | J3: 100 | K3: 1478866.697 | L3: 100 | M3: 1187.636965 | N3: 0.1741982789 | O3: 409421.97 | P3: 1479963.126 | Q3: 197.17
A4: 2017-18$ | B4: 17932.23933 | C4: 2634744.386 | D4: 701201.3495 | E4: 26.61363862 | F4: 5155960.63 | G4: 1470710.987 | H4: 28.52448055 | I4: 699997.4363 | J4: 100 | K4: 1469533.157 | L4: 100 | M4: 1203.9132 | N4: 0.1719882299 | O4: 362374.58 | P4: 1470710.987 | Q4: 218.31
A5: 2017-04-14 | B5: 1678.94715 | C5: 249467.1359 | D5: 72463.98224 | E5: 29.04750639 | F5: 474912.1023 | G5: 143865.507 | H5: 30.29308083 | I5: 72373.59786 | J5: 100 | K5: 143748.4913 | L5: 100 | M5: 90.38438 | N5: 0.124885846 | O5: 31734.77 | P5: 143865.507 | Q5: 197.84
A6: 2017-05-17 | B6: 2051.2987 | C6: 289353.4848 | D6: 78718.36561 | E6: 27.20491362 | F6: 581636.726 | G6: 166371.4452 | H6: 28.60401308 | I6: 78619.32414 | J6: 100 | K6: 166252.2027 | L6: 100 | M6: 99.04147 | N6: 0.1259759876 | O6: 39228.17 | P6: 166371.4452 | Q6: 202.73
A7: 2017-06-19 | B7: 1847.10666 | C7: 252857.1932 | D7: 66111.92089 | E7: 26.14595221 | F7: 495032.0786 | G7: 144966.7346 | H7: 29.28431123 | I7: 66014.00775 | J7: 100 | K7: 144866.9799 | L7: 100 | M7: 97.91314 | N7: 0.1483217628 | O7: 37937.43 | P7: 144966.7346 | Q7: 200
A8: 2017-07-22 | B8: 1829.51367 | C8: 316019.1115 | D8: 85405.23688 | E8: 27.02533922 | F8: 537173.4408 | G8: 155963.5274 | H8: 29.03410994 | I8: 85211.89487 | J8: 100 | K8: 155842.5568 | L8: 100 | M8: 193.34201 | N8: 0.2263819141 | O8: 39435.67 | P8: 155963.5274 | Q8: 204.54
A9: 2017-08-17 | B9: 1908.25445 | C9: 280299.5726 | D9: 72132.68777 | E9: 25.73414119 | F9: 553001.3819 | G9: 148406.2684 | H9: 26.83650951 | I9: 71884.88142 | J9: 100 | K9: 148252.9112 | L9: 100 | M9: 247.80635 | N9: 0.3447266589 | O9: 39754.03 | P9: 148406.2684 | Q9: 209.96
A10: 2017-09-17 | B10: 2034.68673 | C10: 292471.5706 | D10: 77362.03273 | E10: 26.4511291 | F10: 589711.528 | G10: 164302.5417 | H10: 27.8615109 | I10: 77253.89192 | J10: 100 | K10: 164174.0059 | L10: 100 | M10: 108.14081 | N10: 0.1399810512 | O10: 40163.6 | P10: 164302.5417 | Q10: 209.21
A11: 2017-10-17 | B11: 1991.0093 | C11: 282106.9642 | D11: 76300.11553 | E11: 27.04651966 | F11: 602655.252 | G11: 175442.7306 | H11: 29.11162394 | I11: 76157.151 | J11: 100 | K11: 175295.7819 | L11: 100 | M11: 142.96453 | N11: 0.1877230544 | O11: 43090.29 | P11: 175442.7306 | Q11: 211.38
A12: 2017-11-17 | B12: 2475.83242 | C12: 355488.2615 | D12: 92837.16296 | E12: 26.1153948 | F12: 722943.4668 | G12: 201297.8497 | H12: 27.84420345 | I12: 92737.25405 | J12: 100 | K12: 201169.4453 | L12: 100 | M12: 99.90891 | N12: 0.1077333063 | O12: 48046.5 | P12: 201297.8497 | Q12: 217.05
A13: 2017-12-01 | B13: 2115.59025 | C13: 316681.0918 | D13: 79869.84489 | E13: 25.22090739 | F13: 598894.6537 | G13: 170094.3823 | H13: 28.401386 | I13: 79745.43329 | J13: 100 | K13: 169930.7817 | L13: 100 | M13: 124.4116 | N13: 0.1560109399 | O13: 42984.12 | P13: 170094.3823 | Q13: 218.31
A14: $ indicates as on December 31, 2017
A15: Source: NSE.

Sheet 33
A1: Table 33: Settlement Statistics for Cash Segment of MSEI
A2: Month/ Year | B2: No. of Trades(Lakh) | C2: Traded Quantity (Lakh) | D2: Delivered Quantity (Lakh) | E2: Percent of Delivered Quantity to Traded Quantity | F2: Turnover (` crore) | G2: Delivered Value (` crore) | H2: Percent of Delivered Value to Total Turnover | I2: Delivered Quantity in Demat Mode (Lakh) | J2: Percent of Demat Delivered Quantity to Total Delivered Quantity | K2: Delivered Value in Demat Mode (` crore) | L2: Percent of Demat Delivered Value to Total Delivered Value | M2: Short Delivery (Auctioned quantity) (Lakh) | N2: Percent of Short Delivery to Delivery Quantity | O2: Funds Pay-in (` crore) | P2: Securities Pay-in (` crore) | Q2: Settlement Guarantee Fund(` crore)
A3: 1 | B3: 2 | C3: 3 | D3: 4 | E3: 5 | F3: 6 | G3: 7 | H3: 8 | I3: 9 | J3: 10 | K3: 11 | L3: 12 | M3: 13 | N3: 14 | O3: 17 | P3: 18 | Q3: 19
A4: 2016-17 | B4: 0.20196 | C4: 144.7155 | D4: 141.11568 | E4: 97.51248484 | F4: 248.0834529 | G4: 237.1166655 | H4: 95.57939586 | I4: 141.11568 | J4: 100 | K4: 237.1166655 | L4: 100 | M4: 0.0352 | N4: 0.02494407425 | O4: 210.8014388 | P4: 237.1166655 | Q4: 0.298596524
A5: 2017-18 | B5: =SUM(B6:B14) -> 0.01681 | C5: =SUM(C6:C14) -> 140.65925 | D5: =SUM(D6:D14) -> 16.99215 | E5: =D5/C5*100 -> 12.08036443 | F5: =SUM(F6:F14) -> 175.0276467 | G5: =SUM(G6:G14) -> 25.88346724 | H5: =G5/F5*100 -> 14.78821645 | I5: =SUM(I6:I14) -> 16.99215 | J5: 100 | K5: =SUM(K6:K14) -> 25.88346724 | L5: 100 | M5: 0 | N5: 0 | O5: =SUM(O6:O14) -> 25.88764669 | P5: =SUM(P6:P14) -> 25.88346724 | Q5: 0.31
A6: 2017-04-01 | B6: 0.00051 | C6: 0.6974 | D6: 0.6974 | E6: 100 | F6: 2.68649895 | G6: 2.68649895 | H6: 100 | I6: 0.6974 | J6: 100 | K6: 2.68649895 | L6: 100 | M6: 0 | N6: 0 | O6: 2.68649895 | P6: 2.68649895 | Q6: 0.298596524
A7: 2017-05-01 | B7: 0.00049 | C7: 3.57926 | D7: 1.91216 | E7: =D7/C7*100 -> 53.42333331 | F7: 2.88 | G7: 1.96582055 | H7: =G7/F7*100 -> 68.25765799 | I7: 1.91216 | J7: 100 | K7: 1.96582055 | L7: 100 | M7: 0 | N7: 0 | O7: 1.97 | P7: 1.96582055 | Q7: 0.31
A8: 2017-06-01 | B8: 0.00032 | C8: 1.2495 | D8: 1.2495 | E8: =D8/C8*100 -> 100 | F8: 0.90657775 | G8: 0.90657775 | H8: =G8/F8*100 -> 100 | I8: 1.2495 | J8: 100 | K8: 0.90657775 | L8: 100 | M8: 0 | N8: 0 | O8: 0.90657775 | P8: 0.90657775 | Q8: 0.31
A9: 2017-07-01 | B9: 0.00105 | C9: 125.5289 | D9: 3.5289 | E9: =D9/C9*100 -> 2.811225144 | F9: 149.7456184 | G9: 1.5156184 | H9: =G9/F9*100 -> 1.012128713 | I9: 3.5289 | J9: 100 | K9: 1.5156184 | L9: 100 | M9: 0 | N9: 0 | O9: 1.5156184 | P9: 1.5156184 | Q9: 0.31
A10: 2017-08-01 | B10: 0.00138 | C10: 3.13259 | D10: 3.13259 | E10: =D10/C10*100 -> 100 | F10: 3.468947415 | G10: 3.468947415 | H10: =G10/F10*100 -> 100 | I10: 3.13259 | J10: 100 | K10: 3.468947415 | L10: 100 | M10: 0 | N10: 0 | O10: 3.468947415 | P10: 3.468947415 | Q10: 0.31
A11: 2017-09-01 | B11: 0.00227 | C11: 2.002 | D11: 2.002 | E11: =D11/C11*100 -> 100 | F11: 4.1667302 | G11: 4.1667302 | H11: =G11/F11*100 -> 100 | I11: 2.002 | J11: 100 | K11: 4.1667302 | L11: 100 | M11: 0 | N11: 0 | O11: 4.1667302 | P11: 4.1667302 | Q11: 0.31
A12: 2017-10-01 | B12: 0.00371 | C12: 2.792 | D12: 2.792 | E12: 100 | F12: 6.324478175 | G12: 6.324478175 | H12: 100 | I12: 2.792 | J12: 100 | K12: 6.324478175 | L12: 100 | M12: 0 | N12: 0 | O12: 6.324478175 | P12: 6.324478175 | Q12: 0.31
A13: 2017-11-01 | B13: 0.00517 | C13: 1.277 | D13: 1.277 | E13: =D13/C13*100 -> 100 | F13: 3.57072125 | G13: 3.57072125 | H13: =G13/F13*100 -> 100 | I13: 1.277 | J13: 100 | K13: 3.57072125 | L13: 100 | M13: 0 | N13: 0 | O13: 3.57072125 | P13: 3.57072125 | Q13: 0.31
A14: 2017-12-01 | B14: 0.00191 | C14: 0.4006 | D14: 0.4006 | E14: 100 | F14: 1.27807455 | G14: 1.27807455 | H14: 100 | I14: 0.4006 | J14: 100 | K14: 1.27807455 | L14: 100 | M14: 0 | N14: 0 | O14: 1.27807455 | P14: 1.27807455 | Q14: 0.31
A15: $ indicates as on December 31, 2017
A16: Source: MSEI

Sheet 34
A1: Table 34: Trends in Equity Derivatives Segment at BSE (Turnover in Notional Value)
A2: Year/ Month | B2: No. of Trading Days | C2: Index Futures | E2: Stock Futures | G2: Index Options | K2: Stock Options | O2: Total | Q2: Open Interest at the end of month
G3: Call | I3: Put | K3: Call | M3: Put
C4: No. of Contracts | D4: Turnover (` crore) | E4: No. of Contracts | F4: Turnover (` crore) | G4: No. of Contracts | H4: Turnover (` crore) | I4: No. of Contracts | J4: Turnover (` crore) | K4: No. of Contracts | L4: Turnover (` crore) | M4: No. of Contracts | N4: Turnover (` crore) | O4: No. of Contracts | P4: Turnover (` crore) | Q4: No. of Contracts | R4: Value (` crore)
A5: 2016-17 | B5: 248 | C5: 32288 | D5: 2266.958876 | E5: 2901 | F5: 203.0703815 | G5: 24433 | H5: 1254.894012 | I5: 63916 | J5: 3214.450981 | K5: 0 | L5: 0 | M5: 0 | N5: 0 | O5: 123538 | P5: 6939.37425 | Q5: 107 | R5: 7.71
A6: 2017-18$ | B6: 186 | C6: 44101 | D6: 3216.207412 | E6: 335 | F6: 27.85855125 | G6: 82 | H6: 5.920746 | I6: 32 | J6: 2.284462875 | K6: 3 | L6: 0.17922 | M6: 0 | N6: 0 | O6: 44553 | P6: 3252.450392 | Q6: 7 | R6: 0.49
A7: 2017-04-04 | B7: 18 | C7: 18597 | D7: 1330.182557 | E7: 51 | F7: 4.34145825 | G7: 82 | H7: 5.920746 | I7: 32 | J7: 2.284462875 | K7: 0 | L7: 0 | M7: 0 | N7: 0 | O7: 18762 | P7: 1342.729224 | Q7: 91 | R7: 6.52
A8: 2017-05-04 | B8: 22 | C8: 14812 | D8: 1080.579984 | E8: 69 | F8: 5.400565 | G8: 0 | H8: 0 | I8: 0 | J8: 0 | K8: 0 | L8: 0 | M8: 0 | N8: 0 | O8: 14881 | P8: 1085.980549 | Q8: 281 | R8: 21.06
A9: 2017-06-04 | B9: 21 | C9: 6267 | D9: 468.0082673 | E9: 43 | F9: 3.4235345 | G9: 0 | H9: 0 | I9: 0 | J9: 0 | K9: 0 | L9: 0 | M9: 0 | N9: 0 | O9: 6310 | P9: 471.4318018 | Q9: 66 | R9: 5
A10: 2017-07-04 | B10: 21 | C10: 4165 | D10: 317.3206725 | E10: 59 | F10: 4.350795 | G10: 0 | H10: 0 | I10: 0 | J10: 0 | K10: 1 | L10: 0.063855 | M10: 0 | N10: 0 | O10: 4225 | P10: 321.7353225 | Q10: 117 | R10: 9.18
A11: 2017-08-04 | B11: 21 | C11: 248 | D11: 19.1747115 | E11: 28 | F11: 2.311677 | G11: 0 | H11: 0 | I11: 0 | J11: 0 | K11: 2 | L11: 0.115365 | M11: 0 | N11: 0 | O11: 278 | P11: 21.6017535 | Q11: 1 | R11: 0.08
A12: 2017-09-04 | B12: 21 | C12: 11 | D12: 0.864372 | E12: 21 | F12: 2.26628675 | G12: 0 | H12: 0 | I12: 0 | J12: 0 | K12: 0 | L12: 0 | M12: 0 | N12: 0 | O12: 32 | P12: 3.13065875 | Q12: 6 | R12: 0.6
A13: 2017-10-04 | B13: 20 | C13: 1 | D13: 0.076848 | E13: 21 | F13: 2.653005 | G13: 0 | H13: 0 | I13: 0 | J13: 0 | K13: 0 | L13: 0 | M13: 0 | N13: 0 | O13: 22 | P13: 2.729853 | Q13: 11 | R13: 0.73
A14: 2017-11-04 | B14: 22 | C14: 0 | D14: 0 | E14: 24 | F14: 1.75256475 | G14: 0 | H14: 0 | I14: 0 | J14: 0 | K14: 0 | L14: 0 | M14: 0 | N14: 0 | O14: 24 | P14: 1.75256475 | Q14: 4 | R14: 0.29
A15: 2017-12-04 | B15: 20 | C15: 0 | D15: 0 | E15: 19 | F15: 1.358665 | G15: 0 | H15: 0 | I15: 0 | J15: 0 | K15: 0 | L15: 0 | M15: 0 | N15: 0 | O15: 19 | P15: 1.358665 | Q15: 7 | R15: 0.49
A16: Note: 1. Notional Turnover = (Strike Price + Premium) * Quantity.
A17: $ indicates as on December 31, 2017
A18: Source: BSE.
Q21: `

Sheet 35
A1: Table 35: Trends in Equity Derivatives Segment at NSE (Turnover in Notional Value)
A2: Year/ Month | B2: No. of Trading Days | C2: Index Futures | E2: Stock Futures | G2: Index Options | K2: Stock Options | O2: Total | Q2: Open Interest at the end of month
G3: Call | I3: Put | K3: Call | M3: Put
C4: No. of Contracts | D4: Turnover (` crore) | E4: No. of Contracts | F4: Turnover (` crore) | G4: No. of Contracts | H4: Turnover (` crore) | I4: No. of Contracts | J4: Turnover (` crore) | K4: No. of Contracts | L4: Turnover (` crore) | M4: No. of Contracts | N4: Turnover (` crore) | O4: No. of Contracts | P4: Turnover (` crore) | Q4: No. of Contracts | R4: Value (` crore)
A5: 2016-17 | B5: 248 | C5: 66535071 | D5: 4335940.867 | E5: 173860130 | F5: 11129587.19 | G5: 548735127 | H5: 38097964.38 | I5: 518509789 | J5: 34699323.31 | K5: 61205774 | L5: 4147487.925 | M5: 30900238 | N5: 1959997.94 | O5: 1399746129 | P5: 94370301.62 | Q5: 3542404 | R5: 249497.4754
A6: 2017-18$ | B6: 186 | C6: 39910085 | D6: 3271423.868 | E6: 156143708 | F6: 11347701.48 | G6: 547278540 | H6: 48805976.18 | I6: 523596151 | J6: 45060110.39 | K6: 62543398 | L6: 4863379.428 | M6: 29194925 | N6: 2143045.452 | O6: 1358666807 | P6: 115491636.8 | Q6: 4074351 | R6: 317935.0268
A7: 2017-04-14 | B7: 18 | C7: 4174077 | D7: 314579.8914 | E7: 15323013 | F7: 1160682.481 | G7: 46181751 | H7: 3729736.053 | I7: 45548822 | J7: 3554410.943 | K7: 6024771 | L7: 487146.9431 | M7: 2823557 | N7: 213125.2427 | O7: 120075991 | P7: 9459681.554 | Q7: 3718137 | R7: 263898.8491
A8: 2017-05-17 | B8: 22 | C8: 4816269 | D8: 375948.8303 | E8: 19724492 | F8: 1402147.883 | G8: 55223511 | H8: 4617328.236 | I8: 57343652 | J8: 4630977.84 | K8: 7598657 | L8: 580166.6691 | M8: 3814715 | N8: 274832.9243 | O8: 148521296 | P8: 11881402.38 | Q8: 4312372 | R8: 312587.6945
A9: 2017-06-17 | B9: 21 | C9: 4052219 | D9: 322143.5969 | E9: 15718759 | F9: 1110361.737 | G9: 56299371 | H9: 4863586.137 | I9: 53752489 | J9: 4520106.946 | K9: 5627829 | L9: 425458.79 | M9: 2655447 | N9: 190610.0891 | O9: 138106114 | P9: 11432267.3 | Q9: 3687855 | R9: 263318.857
A10: 2017-07-17 | B10: 21 | C10: 4224510 | D10: 346731.6644 | E10: 16974717 | F10: 1234362.977 | G10: 54692544 | H10: 4820709.928 | I10: 58510108 | J10: 4995039.078 | K10: 7194451 | L10: 550014.7945 | M10: 3389270 | N10: 245582.5572 | O10: 144985600 | P10: 12192441 | Q10: 3997987 | R10: 303766.9552
A11: 2017-08-17 | B11: 21 | C11: 4789537 | D11: 399317.4522 | E11: 17470818 | F11: 1257968.434 | G11: 71981496 | H11: 6527897.158 | I11: 65275950 | J11: 5712285.54 | K11: 7430204 | L11: 568668.5201 | M11: 3739525 | N11: 269013.2508 | O11: 170687530 | P11: 14735150.36 | Q11: 3371674 | R11: 246903.9524
A12: Sepr-17 | B12: 21 | C12: 4467175 | D12: 369891.0697 | E12: 17314055 | F12: 1280396.017 | G12: 64918248 | H12: 5776218.301 | I12: 61418880 | J12: 5298926.277 | K12: 7078836 | L12: 569008.2852 | M12: 3284450 | N12: 255920.7395 | O12: 158481644 | P12: 13550360.69 | Q12: 4023390 | R12: 295655.1892
A13: 2017-10-17 | B13: 20 | C13: 4238220 | D13: 358296.2744 | E13: 16836256 | F13: 1261299.554 | G13: 61461946 | H13: 5619655.981 | I13: 57594920 | J13: 5062586.053 | K13: 6748271 | L13: 545499.1479 | M13: 3070077 | N13: 234377.5208 | O13: 149949690 | P13: 13081714.53 | Q13: 4642195 | R13: 351390.9427
A14: 2017-11-17 | B14: 22 | C14: 4378831 | D14: 377959.2597 | E14: 19600435 | F14: 1396413.447 | G14: 72949308 | H14: 6887013.941 | I14: 64619921 | J14: 5931258.105 | K14: 7877171 | L14: 606165.1921 | M14: 3518583 | N14: 252658.712 | O14: 172944249 | P14: 15451468.66 | Q14: 3963228 | R14: 293504.6161
A15: 2017-12-01 | B15: 20 | C15: 4769247 | D15: 406555.8289 | E15: 17181163 | F15: 1244068.95 | G15: 63570365 | H15: 5963830.444 | I15: 59531409 | J15: 5354519.603 | K15: 6963208 | L15: 531251.086 | M15: 2899301 | N15: 206924.4152 | O15: 154914693 | P15: 13707150.33 | Q15: 4074351 | R15: 317935.0268
A16: Note: 1. Notional Turnover = (Strike Price + Premium) * Quantity.
A17: $ indicates as on December 31, 2017
A18: Source: NSE.

Sheet 36
A1: Table 36: Settlement Statistics in Equity Derivatives Segment at BSE and NSE (` crore)
A2: Year/ Month | B2: BSE | H2: NSE
B3: Index/Stock Futures | D3: Index/Stock Options | F3: Total | G3: Settlement Gurantee Fund | H3: Index/Stock Futures | J3: Index/Stock Options | L3: Total | M3: Settlement Gurantee Fund
B4: MTM Settlement | C4: Final Settlement | D4: Premium Settlement | E4: Exercise Settlement | H4: MTM Settlement | I4: Final Settlement | J4: Premium Settlement | K4: Exercise Settlement
A5: 2016-17 | B5: 15.1 | C5: 1.11 | D5: 33.38 | E5: 0.01 | F5: 49.6 | G5: 192.09 | H5: 70441.81 | I5: 2049.23 | J5: 15021.65 | K5: 2579.88 | L5: 90092.57 | M5: 1051.99
A6: 2017-18$ | B6: 10.22 | C6: 0.32 | D6: 0.06 | E6: 0 | F6: 10.6 | G6: 17.59 | H6: 76395.53 | I6: 1631.13 | J6: 13685.71 | K6: 2581.55 | L6: 94293.92 | M6: 1567.82
A7: 2017-04-04 | B7: 2.08 | C7: 0.04 | D7: 0.05 | E7: 0.01 | F7: 2.17 | G7: 16.73 | H7: 5356.92 | I7: 79.83 | J7: 1278.31 | K7: 244.02 | L7: 6959.08 | M7: 1100.35
A8: 2017-05-04 | B8: 2.41 | C8: 0.07 | D8: 0.05 | E8: 0 | F8: 2.48 | G8: 16.84 | H8: 10259.5 | I8: 394.85 | J8: 1239.48 | K8: 192.7 | L8: 12086.53 | M8: 1132.63
A9: 2017-06-04 | B9: 2.71 | C9: 0.12 | D9: 0.05 | E9: 0 | F9: 2.83 | G9: 16.95 | H9: 5229.8 | I9: 144.04 | J9: 1329.6 | K9: 407.73 | L9: 7111.17 | M9: 1146.38
A10: 2017-07-04 | B10: 1.32 | C10: 0.04 | D10: 0.05 | E10: 0 | F10: 1.36 | G10: 17.06 | H10: 6552.16 | I10: 162.87 | J10: 1649.59 | K10: 143.75 | L10: 8508.37 | M10: 1196.51
A11: 2017-08-04 | B11: 1.09 | C11: 0.03 | D11: 0.01 | E11: 0 | F11: 1.13 | G11: 17.18 | H11: 11556.76 | I11: 90.31 | J11: 1583.68 | K11: 169.63 | L11: 13400.38 | M11: 1218
A12: 2017-09-04 | B12: 0.13 | C12: 0.03 | D12: 0.01 | E12: 0 | F12: 0.13 | G12: 17.29 | H12: 9253.98 | I12: 145.17 | J12: 1443.76 | K12: 153.22 | L12: 10996.13 | M12: 1421.87
A13: 2017-10-04 | B13: 0.18 | C13: 0.03 | D13: 0.01 | E13: 0 | F13: 0.18 | G13: 17.41 | H13: 8666.89 | I13: 166.7 | J13: 1708.13 | K13: 226.84 | L13: 10768.56 | M13: 1432.32
A14: 2017-11-04 | B14: 0.23 | C14: 0.02 | D14: 0.01 | E14: 0 | F14: 0.25 | G14: 17.5 | H14: 9469.04 | I14: 362.52 | J14: 1347.12 | K14: 155.08 | L14: 11333.76 | M14: 1465.19
A15: 2017-12-04 | B15: 0.07 | C15: 0.02 | D15: 0.01 | E15: 0 | F15: 0.07 | G15: 17.59 | H15: 10050.48 | I15: 84.84 | J15: 2106.04 | K15: 888.58 | L15: 13129.94 | M15: 1567.82
A16: $ indicates as on December 31, 2017
A17: Source: BSE and NSE

Sheet 37
A1: Table 37: Category-wise Share of Turnover & Open Interest in Equity Derivative Segment of BSE
A2: Month | B2: Percentage Share in Turnover | G2: Percentage Share in Open Interest
B3: Pro | C3: FII | D3: Mutual Funds | E3: Banks | F3: Others | G3: Pro | H3: FII | I3: Mutual Funds | J3: Banks | K3: Others
A4: 2016-17 | B4: 72.46182578 | C4: 0 | D4: 0 | E4: 0 | F4: 27.53817422 | G4: 65.88785047 | H4: 0 | I4: 0 | J4: 0 | K4: 34.11214953
A5: 2017-18$ | B5: 90.84462598 | C5: 1.550968804 | D5: 0 | E5: 0 | F5: 7.604405217 | G5: 0 | H5: 0 | I5: 0 | J5: 0 | K5: 100
A6: 2017-04-04 | B6: 94.93904741 | C6: 0.1764741418 | D6: 0 | E6: 0 | F6: 4.884478443 | G6: 91.03 | H6: 0 | I6: 0 | J6: 0 | K6: 8.97
A7: 2017-05-04 | B7: 95.74258497 | C7: 0 | D7: 0 | E7: 0 | F7: 4.257415031 | G7: 94.3308 | H7: 0 | I7: 0 | J7: 0 | K7: 5.6692
A8: 2017-06-04 | B8: 81.41976395 | C8: 8.156319969 | D8: 0 | E8: 0 | F8: 10.42391608 | G8: 45.55 | H8: 0 | I8: 0 | J8: 0 | K8: 54.45
A9: 2017-07-04 | B9: 76.04883813 | C9: 2.966862031 | D9: 0 | E9: 0 | F9: 20.98429984 | G9: 25.0931 | H9: 0 | I9: 0 | J9: 0 | K9: 74.9069
A10: 2017-08-04 | B10: 37.98510587 | C10: 0.3610436069 | D10: 0 | E10: 0 | F10: 61.65385052 | G10: 0 | H10: 0 | I10: 0 | J10: 0 | K10: 100
A11: 2017-09-04 | B11: 47.43416621 | C11: 0 | D11: 0 | E11: 0 | F11: 52.56583379 | G11: 50 | H11: 0 | I11: 0 | J11: 0 | K11: 50
A12: 2017-10-04 | B12: 44.70081356 | C12: 0 | D12: 0 | E12: 0 | F12: 55.29918644 | G12: 50 | H12: 0 | I12: 0 | J12: 0 | K12: 50
A13: 2017-11-04 | B13: 41.70216108 | C13: 0 | D13: 0 | E13: 0 | F13: 58.29783892 | G13: 0 | H13: 0 | I13: 0 | J13: 0 | K13: 100
A14: 2017-12-04 | B14: 0 | C14: 0 | D14: 0 | E14: 0 | F14: 100 | G14: 0 | H14: 0 | I14: 0 | J14: 0 | K14: 100
A15: $ indicates as on December 31, 2017
A16: Source: BSE.

Sheet 38
A1: Table 38: Category-wise Share of Turnover & Open Interest in Equity Derivative Segment of NSE
A2: Month | B2: Percentage Share in Turnover | G2: Percentage Share in Open Interest
B3: Pro | C3: FII | D3: Mutual Funds | E3: Banks | F3: Others | G3: Pro | H3: FII | I3: Mutual Funds | J3: Banks | K3: Others
A4: 2016-17 | B4: 42.06696664 | C4: 13.74733923 | D4: 0.403701418 | E4: 0 | F4: 43.78368626 | G4: 13.24015082 | H4: 31.23721383 | I4: 8.679193192 | J4: 0 | K4: 46.84344215
A5: 2017-18$ | B5: 42.62 | C5: 10.93 | D5: 0.46 | E5: 0 | F5: 45.99 | G5: 13.07105267 | H5: 21.20960138 | I5: 12.2327841 | J5: 0 | K5: 53.48656185
A6: 2017-04-01 | B6: 41.72366767 | C6: 10.82097879 | D6: 0.4775833522 | E6: 0 | F6: 46.97777019 | G6: 14.31780602 | H6: 26.2394786 | I6: 9.237141944 | J6: 0 | K6: 50.20557344
A7: 2017-05-17 | B7: 41.39281172 | C7: 11.83577908 | D7: 0.3950157508 | E7: 0 | F7: 46.37639345 | G7: 15.44207172 | H7: 26.19249061 | I7: 8.714404592 | J7: 0 | K7: 49.65038379
A8: 2017-06-17 | B8: 41.71159579 | C8: 10.70141934 | D8: 0.4097506388 | E8: 0 | F8: 47.18 | G8: 13.70737562 | H8: 27.42326567 | I8: 9.720354982 | J8: 0 | K8: 49.14832583
A9: 2017-07-17 | B9: 42.96347283 | C9: 10.71205341 | D9: 0.417081626 | E9: 0 | F9: 45.90739213 | G9: 15.06029536 | H9: 24.23540253 | I9: 10.22632395 | J9: 0 | K9: 50.47797816
A10: 2017-08-17 | B10: 42.2528061 | C10: 11.05136055 | D10: 0.3810002481 | E10: 0 | F10: 46.3148331 | G10: 12.06851731 | H10: 24.33115187 | I10: 12.95687438 | J10: 0 | K10: 50.64345643
A11: 2017-09-17 | B11: 42.01 | C11: 11.04 | D11: 0.47 | E11: 0 | F11: 46.48 | G11: 12.84 | H11: 24.84 | I11: 11.87 | J11: 0 | K11: 50.46
A12: 2017-10-17 | B12: 43.48732082 | C12: 9.729373799 | D12: 0.5434007791 | E12: 0 | F12: 46.2399046 | G12: 14.09624415 | H12: 23.5991753 | I12: 11.66794193 | J12: 0 | K12: 50.63663862
A13: 2017-11-17 | B13: 44.02 | C13: 10.94 | D13: 0.48 | E13: 0 | F13: 44.56 | G13: 12.033666 | H13: 25.31134351 | I13: 13.7843858 | J13: 0 | K13: 48.86936832
A14: 2017-12-01 | B14: 43.23332776 | C14: 11.5676889 | D14: 0.5159036979 | E14: 0 | F14: 44.68307965 | G14: 13.07105267 | H14: 21.20960138 | I14: 12.2327841 | J14: 0 | K14: 53.48656185
A15: $ indicates as on December 31, 2017
A16: Source: NSE.

Sheet 39
A1: Table 39: Instrument-wise Turnover in Index Derivatives at BSE
A2: Month | B2: Turnover (in Percentage)
B3: BSE 30 SENSEX | C3: BSE SENSEX 50 | D3: BSE BANKEX | E3: BSE OIL & GAS INDEX | F3: BSE TECK INDEX | G3: BSE100 | H3: HANG SENG Index Futures | I3: MICEX Index Futures | J3: FTSE/JSE Top 40 Futures | K3: IBOVESPA Futures
A4: 2016-17 | B4: 3.319691208 | C4: 96.67467365 | D4: 0 | E4: 0 | F4: 0 | G4: 5.866236227e-05 | H4: 0.005635137716 | I4: 0 | J4: 0 | K4: 0
A5: 2017-18$ | B5: 0 | C5: 100 | D5: 0 | E5: 0 | F5: 0 | G5: 5.866236227e-05 | H5: 0 | I5: 0 | J5: 0 | K5: 0
A6: 2017-04-04 | B6: 0 | C6: 100 | D6: 0 | E6: 0 | F6: 0 | G6: 0 | H6: 5.866236227e-05 | I6: 0 | J6: 0 | K6: 0
A7: 2017-05-05 | B7: 0 | C7: 100 | D7: 0 | E7: 0 | F7: 0 | G7: 0 | H7: 5.866236227e-05 | I7: 0 | J7: 0 | K7: 0
A8: 2017-06-05 | B8: 0 | C8: 100 | D8: 0 | E8: 0 | F8: 0 | G8: 0 | H8: 5.866236227e-05 | I8: 0 | J8: 0 | K8: 0
A9: 2017-07-05 | B9: 0 | C9: 100 | D9: 0 | E9: 0 | F9: 0 | G9: 0 | H9: 5.866236227e-05 | I9: 0 | J9: 0 | K9: 0
A10: 2017-08-05 | B10: 0 | C10: 100 | D10: 0 | E10: 0 | F10: 0 | G10: 0 | H10: 0 | I10: 0 | J10: 0 | K10: 0
A11: 2017-09-04 | B11: 0 | C11: 100 | D11: 0 | E11: 0 | F11: 0 | G11: 0 | H11: 0 | I11: 0 | J11: 0 | K11: 0
A12: 2017-10-04 | B12: 0 | C12: 100 | D12: 0 | E12: 0 | F12: 0 | G12: 0 | H12: 0 | I12: 0 | J12: 0 | K12: 0
A13: 2017-11-04 | B13: 0 | C13: 0 | D13: 0 | E13: 0 | F13: 0 | G13: 0 | H13: 0 | I13: 0 | J13: 0 | K13: 0
A14: 2017-12-04 | B14: 0 | C14: 0 | D14: 0 | E14: 0 | F14: 0 | G14: 0 | H14: 0 | I14: 0 | J14: 0 | K14: 0
A15: $ indicates as on December 31, 2017
A16: Source: BSE.

Sheet 40
A1: Table 40: Instrument-wise Turnover in Index Derivatives at NSE
A2: Month | B2: Turnover (in Percentage)
B3: NIFTY | C3: CNXIT | D3: BANKNIFTY | E3: NFTYMCAP50 | F3: CNXPSE | G3: CNXINFRA | H3: FTSE100 | I3: S&P500 | J3: DJIA | K3: India VIX
A4: 2016-17 | B4: 54.46601422 | C4: 0.005027588363 | D4: 45.51838663 | E4: 1.524862918e-06 | F4: 6.978600663e-07 | G4: 1.419005169e-06 | H4: 2.810257707e-06 | I4: 0.005700738139 | J4: 0.004112411067 | K4: 1.915707791e-05
A5: 2017-18$ | B5: 35.14832999 | C5: 0.002848070718 | D5: 64.84354953 | E5: 0.0008569739715 | F5: 2.291946736e-06 | G5: 2.569810688e-06 | H5: 7.006973897e-07 | I5: 0.002805742428 | J5: 0.001516808137 | K5: 0
A6: 2017-04-16 | B6: 38.23717445 | C6: 0.0050561464 | D6: 61.74978571 | E6: 0 | F6: 0 | G6: 0 | H6: 0 | I6: 0.004160317721 | J6: 0.002946741814 | K6: 0
A7: 2017-05-17 | B7: 38.76215482 | C7: 0.004378848587 | D7: 61.22659859 | E7: 0 | F7: 9.527594696e-06 | G7: 0 | H7: 0 | I7: 0.004451428427 | J7: 0.002264514055 | K7: 0
A8: 2017-06-17 | B8: 34.45 | C8: 0.004989477682 | D8: 65.54 | E8: 0 | F8: 0 | G8: 1.235480814e-05 | H8: 0 | I8: 0.004633731767 | J8: 0.001680302743 | K8: 0
A9: 2017-07-17 | B9: 36.70445393 | C9: 0.003877780414 | D9: 63.28493213 | E9: 1.382733257e-05 | F9: 0 | G9: 0 | H9: 0 | I9: 0.005029293391 | J9: 0.001675013518 | K9: 0
A10: 2017-08-17 | B10: 31.88593369 | C10: 0.002005547664 | D10: 68.1050407 | E10: 0 | F10: 9.698168325e-06 | G10: 3.510681749e-06 | H10: 0 | I10: 0.004550251736 | J10: 0.002449695667 | K10: 0
A11: 2017-09-17 | B11: 38.95660465 | C11: 0.001837496 | D11: 61.03692781 | E11: 9.59368e-06 | F11: 0 | G11: 0 | H11: 0 | I11: 0.002720835 | J11: 0.001899615 | K11: 0
A12: 2017-10-17 | B12: 32.96781401 | C12: 0.001624350326 | D12: 67.02778802 | E12: 0 | F12: 0 | G12: 7.729514415e-06 | H12: 6.164916791e-06 | I12: 0.001209246065 | J12: 0.001550476437 | K12: 0
A13: 2017-11-17 | B13: 31.77965717 | C13: 0.001589134012 | D13: 68.21873926 | E13: 0 | F13: 0 | G13: 7.729514415e-06 | H13: 6.164916791e-06 | I13: 0.001209246065 | J13: 0.001550476437 | K13: 0
A14: 2017-12-01 | B14: 35.05616386 | C14: 0.001959293937 | D14: 64.93479841 | E14: 0.007078436192 | F14: 0 | G14: 0 | H14: 0 | I14: 0.001209246065 | J14: 0.001550476437 | K14: 0
A15: $ indicates as on December 31, 2017
A16: Source: NSE.

Sheet 41
A1: Table 41: Trends in Currency Derivatives Segment at NSE
A2: Year/ Month | C2: Currency Futures | E2: Currency Options | I2: Total
B3: No. of Trading Days | C3: No. of Contracts | D3: Turnover (` crore) | E3: Call | G3: Put | I3: No. of Contracts | J3: Turnover (` crore) | K3: Open Interest at the end of
D4: Turnover (` crore) | E4: No. of Contracts | F4: Turnover (` crore) | G4: No. of Contracts | H4: Turnover (` crore) | K4: No. of Contracts | L4: Value (` crore)
A5: 2016-17 | B5: 242 | C5: 362615931 | D5: 2489778.936 | E5: 205484781 | F5: 1396641.054 | G5: 144350727 | H5: 970655.8649 | I5: 712451439 | J5: 4857075.855 | K5: 4734914 | L5: 30871.42925
A6: 2017-18$ | B6: 183 | C6: 276525905 | D6: 1832876.583 | E6: 157057134 | F6: 1025253.906 | G6: 124500130 | H6: 805924.9804 | I6: 558083169 | J6: 3664055.469 | K6: 3805136 | L6: 24671.1496
A7: 2017-04-14 | B7: 18 | C7: 27621713 | D7: 181185.6294 | E7: 18853378 | F7: 123279.4286 | G7: 14430861 | H7: 93539.26978 | I7: 60905952 | J7: 398004.3278 | K7: 4675628 | L7: 30260.30696
A8: 2017-05-17 | B8: 21 | C8: 27752227 | D8: 182960.4647 | E8: 17856365 | F8: 116543.0349 | G8: 14483328 | H8: 93619.01167 | I8: 60091920 | J8: 393122.5113 | K8: 4430643 | L8: 28809.46189
A9: 2017-06-17 | B9: 21 | C9: 24883610 | D9: 165606.9226 | E9: 14766432 | F9: 96352.87181 | G9: 9704177 | H9: 62771.73816 | I9: 49354219 | J9: 324731.5325 | K9: 3881086 | L9: 25366.88169
A10: 2017-07-17 | B10: 21 | C10: 23904725 | D10: 158914.5923 | E10: 14807555 | F10: 96590.0817 | G10: 10344505 | H10: 66973.58584 | I10: 49056785 | J10: 322478.2598 | K10: 4636459 | L10: 30103.98601
A11: 2017-08-17 | B11: 20 | C11: 25688528 | D11: 169544.8992 | E11: 18540246 | F11: 120133.3289 | G11: 12930611 | H11: 82973.74328 | I11: 57159385 | J11: 372651.9714 | K11: 4818635 | L11: 31171.93417
A12: 2017-09-17 | B12: 21 | C12: 41799966 | D12: 277485.8996 | E12: 22173475 | F12: 144782.0436 | G12: 20923664 | H12: 135356.2751 | I12: 84897105 | J12: 557624.2183 | K12: 6013600 | L12: 39665.5869
A13: 2017-10-17 | B13: 20 | C13: 29918578 | D13: 199645.6009 | E13: 16293776 | F13: 107111.3116 | G13: 15094323 | H13: 98431.51985 | I13: 61306677 | J13: 405188.4323 | K13: 3715748 | L13: 24327.74706
A14: 2017-11-17 | B14: 22 | C14: 40166428 | D14: 267316.2356 | E14: 18663086 | F14: 122276.4493 | G14: 16404923 | H14: 106584.4656 | I14: 75234437 | J14: 496177.1505 | K14: 3771733 | L14: 24646.70562
A15: 2017-12-01 | B15: 19 | C15: 34790130 | D15: 230216.3384 | E15: 15102821 | F15: 98185.35549 | G15: 10183738 | H15: 65675.37109 | I15: 60076689 | J15: 394077.065 | K15: 3805136 | L15: 24671.1496
A16: Notes: 1. Trading Value :- For Futures, Value of contract = Traded Qty*Traded Price. 2. For Options, Value of contract = Traded Qty*(Strike Price+Traded Premium)
A17: $ indicates as on December 31, 2017
A18: Source: NSE.
J20: 348330.8009
J21: 426596.5433
J22: 547667.7512
J23: 315238.645
J24: 336005.4577
J25: 423295.6106
J26: 2397134.809

Sheet 42
A1: Table 42: Trends in Currency Derivatives Segment at MSEI
A2: Year/ Month | B2: No. of Trading Days | C2: Currency Futures | E2: Currency Options | I2: Total | K2: Open Interest at the end of
E3: Call | G3: Put
C4: No. of Contracts | D4: Turnover (` crore) | E4: No. of Contracts | F4: Turnover (` crore) | G4: No. of Contracts | H4: Turnover (` crore) | I4: No. of Contracts | J4: Turnover (` crore) | K4: No. of Contracts | L4: Value (` crore)
A5: 2016-17 | B5: 242 | C5: 42223837 | D5: 285472.8428 | E5: 954966 | F5: 6432.813287 | G5: 877609 | H5: 6022.018027 | I5: 44056412 | J5: 297927.6741 | K5: 232589 | L5: 1518.351434
A6: 2017-18$ | B6: 183 | C6: 11785272 | D6: 76331.73494 | E6: 928680 | F6: 6077.862177 | G6: 818935 | H6: 5340.554427 | I6: 13532887 | J6: 87750.15155 | K6: 128412 | L6: 825.9834607
A7: 2017-04-01 | B7: 18 | C7: 1471757 | D7: 9535.469075 | E7: 57763 | F7: 377.9840852 | G7: 39504 | H7: 256.3452735 | I7: 1569024 | J7: 10169.79843 | K7: 231735 | L7: 1503.566905
A8: 2017-05-01 | B8: 21 | C8: 1992752 | D8: 12902.94265 | E8: 51486 | F8: 338.2519687 | G8: 51822 | H8: 341.1540608 | I8: 2096060 | J8: 13582.34868 | K8: 292390 | L8: 1906.213555
A9: 2017-06-01 | B9: 21 | C9: 1981564 | D9: 12832.31002 | E9: 123257 | F9: 801.9618605 | G9: 87099 | H9: 568.2704352 | I9: 2191920 | J9: 14202.54231 | K9: 225653 | L9: 1475.587687
A10: 2017-07-01 | B10: 21 | C10: 1821292 | D10: 11788.63914 | E10: 64998 | F10: 427.2278887 | G10: 67821 | H10: 440.6535662 | I10: 1954111 | J10: 12656.52059 | K10: 321444 | L10: 2083.119914
A11: 2017-08-01 | B11: 20 | C11: 1166727 | D11: 7500.124806 | E11: 88805 | F11: 575.9253918 | G11: 100211 | H11: 645.8078983 | I11: 1355743 | J11: 8721.858097 | K11: 307427 | L11: 1983.167174
A12: 2017-09-01 | B12: 21 | C12: 884575 | D12: 5777.237919 | E12: 170441 | F12: 1120.346526 | G12: 152547 | H12: 998.139935 | I12: 1207563 | J12: 7895.724379 | K12: 235695 | L12: 1557.601215
A13: 2017-10-01 | B13: 20 | C13: 524618 | D13: 3432.519392 | E13: 173420 | F13: 1140.820027 | G13: 177921 | H13: 1168.667743 | I13: 875959 | J13: 5742.007163 | K13: 194392 | L13: 1272.074757
A14: 2017-11-01 | B14: 22 | C14: 674203 | D14: 4389.338282 | E14: 112294 | F14: 735.8777675 | G14: 67014 | H14: 439.5775652 | I14: 853511 | J14: 5564.793615 | K14: 120557 | L14: 784.0476203
A15: 2017-12-01 | B15: 19 | C15: 1267784 | D15: 8173.15367 | E15: 86216 | F15: 559.4666612 | G15: 74996 | H15: 481.9379493 | I15: 1428996 | J15: 9214.558281 | K15: 128412 | L15: 825.9834607
A16: $ indicates as on December 31, 2017
A17: Source: MSEI

Sheet 43
A1: Table 43: Trends in Currency Derivatives Segment at BSE
A2: Year/ Month | B2: No. of Trading Days | C2: Currency Futures | E2: Currency Options | I2: Total | K2: Open Interest at the end of
E3: Call | G3: Put
C4: No. of Contracts | D4: Turnover (` crore) | E4: No. of Contracts | F4: Turnover (` crore) | G4: No. of Contracts | H4: Turnover (` crore) | I4: No. of Contracts | J4: Turnover (` crore) | K4: No. of Contracts | L4: Value (` crore)
A5: 2016-17 | B5: 242 | C5: 268339687 | D5: 1807828.531 | E5: 111541346 | F5: 758231.2708 | G5: 90544169 | H5: 605588.1356 | I5: 470425202 | J5: 3171647.937 | K5: 1598346 | L5: 10381.87
A6: 2017-18$ | B6: 183 | C6: 206019443 | D6: 1335394.956 | E6: 113225948 | F6: 743758.97 | G6: 170857957 | H6: 1081381.451 | I6: 490103348 | J6: 3160535.263 | K6: 1258826 | L6: 8087.775391
A7: 2017-04-04 | B7: 18 | C7: 20518735 | D7: 132905.016 | E7: 17411265 | F7: 114292.9985 | G7: 14234398 | H7: 91523.0905 | I7: 52164398 | J7: 338721.105 | K7: 1456658 | L7: 9363.42934
A8: 2017-05-04 | B8: 21 | C8: 22099454 | D8: 143176.7204 | E8: 18403355 | F8: 120531.741 | G8: 19125359 | H8: 122579.4723 | I8: 59628168 | J8: 386287.9337 | K8: 1396753 | L8: 9023.05
A9: 2017-06-04 | B9: 21 | C9: 20163249 | D9: 130748.0423 | E9: 18063571 | F9: 118403.2807 | G9: 17900534 | H9: 114706.874 | I9: 56127354 | J9: 363858.197 | K9: 1038281 | L9: 6741.29
A10: 2017-07-04 | B10: 21 | C10: 20009031 | D10: 129619.0515 | E10: 16488120 | F10: 107779.8119 | G10: 18259597 | H10: 116903.872 | I10: 54756748 | J10: 354302.7354 | K10: 1704163 | L10: 10936.3991
A11: 2017-08-04 | B11: 20 | C11: 21796615 | D11: 140054.3086 | E11: 11728854 | F11: 76715.1975 | G11: 12913328 | H11: 81281.6325 | I11: 46438797 | J11: 298051.1386 | K11: 1666466 | L11: 10686.43174
A12: 2017-09-04 | B12: 21 | C12: 30341298 | D12: 196980.6325 | E12: 10375576 | F12: 68219.127 | G12: 14815275 | H12: 92794.2524 | I12: 55532149 | J12: 357993.8976 | K12: 1610602 | L12: 10315.15648
A13: 2017-10-04 | B13: 20 | C13: 21913065 | D13: 143093.5007 | E13: 7716174 | F13: 51379.3997 | G13: 23289847 | H13: 146375.2872 | I13: 52919086 | J13: 340848.1876 | K13: 933150 | L13: 6046.100325
A14: 2017-11-04 | B14: 22 | C14: 28566808 | D14: 185853.766 | E14: 9267404 | F14: 61644.6519 | G14: 24406399 | H14: 153754.687 | I14: 62240611 | J14: 401253.1049 | K14: 1076949 | L14: 6963.037751
A15: 2017-12-04 | B15: 19 | C15: 20611188 | D15: 132963.9177 | E15: 3771629 | F15: 24792.7618 | G15: 25913220 | H15: 161462.2833 | I15: 50296037 | J15: 319218.9628 | K15: 1258826 | L15: 8087.775391
A16: $ indicates as on December 31, 2017
A17: Source: BSE

Sheet 44
A1: Table 44: Settlement Statistics of Currency Derivatives Segment (` crore)
A2: Year/ Month | B2: NSE | F2: Total | G2: MSEI | K2: Total | L2: BSE | P2: Total
B3: Currency Futures | D3: Currency Options | F3: Total | G3: Currency Futures | I3: Currency options | K3: Total | L3: Currency Futures | N3: Currency Options | P3: Total
B4: MTM Settlement | C4: Final Settlement | D4: Premium Settlement | E4: Exercise Settlement | G4: MTM Settlement | H4: Final Settlement | I4: Premium Settlement | J4: Exercise Settlement | L4: MTM Settlement | M4: Final Settlement | N4: Premium Settlement | O4: Exercise Settlement
E5: Exercise Settlement | J5: Exercise Settlement | O5: Exercise Settlement
A6: 2016-17 | B6: 5131.697013 | C6: 193.0951762 | D6: 1098.314286 | E6: 451.1365427 | F6: 6874.243017 | G6: 562.1709618 | H6: 19.354808 | I6: 14.6116175 | J6: 9.32955545 | K6: 605.4669427 | L6: 3594.3 | M6: 105.16 | N6: 2896.64 | O6: 223.14 | P6: 6819.24
A7: 2017-18$ | B7: 2635.567947 | C7: 95.81984327 | D7: 781.7851628 | E7: 341.4545478 | F7: 3854.627501 | G7: 243.8325455 | H7: 11.28539985 | I7: 18.89632425 | J7: 14.67942308 | K7: 288.6936927 | L7: 2333.42 | M7: 91.78 | N7: 2322.18 | O7: 155.84 | P7: 4903.22
A8: 2017-04-14 | B8: 330.323578 | C8: 16.76868003 | D8: 122.5572205 | E8: 73.55751504 | F8: 543.2069936 | G8: 39.93764 | H8: 2.83 | I8: 1.54 | J8: 0.53 | K8: 44.83764 | L8: 318.99 | M8: 16.06 | N8: 407.52 | O8: 39.05 | P8: 781.62
A9: 2017-05-01 | B9: 417.3638808 | C9: 3.27102645 | D9: 95.928765 | E9: 35.3284269 | F9: 551.8920991 | G9: 49.85 | H9: 0.54 | I9: 1.7 | J9: 0.57 | K9: 52.66 | L9: 353.53 | M9: 4.64 | N9: 494.94 | O9: 10.58 | P9: 863.69
A10: 2017-06-17 | B10: 149.78 | C10: 1.43 | D10: 68.01 | E10: 17.91 | F10: 237.13 | G10: 17.02 | H10: 0.054 | I10: 0.67 | J10: 0.21 | K10: 17.954 | L10: 147.71 | M10: 0.83 | N10: 344.92 | O10: 8.74 | P10: 502.2
A11: 2017-07-17 | B11: 189.1700613 | C11: 8.06473797 | D11: 77.01362825 | E11: 29.33283268 | F11: 303.5812602 | G11: 20.08 | H11: 1.91 | I11: 1.83 | J11: 1.39 | K11: 25.21 | L11: 149.65 | M11: 9.58 | N11: 312.13 | O11: 15.53 | P11: 486.89
A12: 2017-08-17 | B12: 334.2249465 | C12: 4.31159811 | D12: 81.68204775 | E12: 22.8781414 | F12: 443.0967338 | G12: 31.3 | H12: 1.08 | I12: 3.27 | J12: 2.42 | K12: 38.07 | L12: 277.93 | M12: 7.41 | N12: 166.83 | O12: 16.88 | P12: 469.05
A13: 2017-09-17 | B13: 425.2593337 | C13: 24.03190491 | D13: 121.7171393 | E13: 67.24768092 | F13: 638.2560588 | G13: 30.42445975 | H13: 2.35 | I13: 2.653343 | J13: 4.58 | K13: 40.00780275 | L13: 351.59 | M13: 23.02 | N13: 179.43 | O13: 22.96 | P13: 577
A14: 2017-10-17 | B14: 393.4345845 | C14: 29.50679655 | D14: 89.24174625 | E14: 35.04123307 | F14: 547.2243604 | G14: 25 | H14: 1.37 | I14: 4.63 | J14: 1.74 | K14: 32.74 | L14: 304.37 | M14: 20.46 | N14: 165.44 | O14: 14.3 | P14: 504.57
A15: 2017-11-17 | B15: 246.646646 | C15: 5.25958754 | D15: 63.0976725 | E15: 37.79038234 | F15: 352.7942884 | G15: 22.6 | H15: 0.99 | I15: 2.04 | J15: 2.83 | K15: 28.46 | L15: 274.71 | M15: 5.02 | N15: 147.58 | O15: 15.62 | P15: 442.93
A16: 2017-12-01 | B16: 149.369026 | C16: 3.17749035 | D16: 62.53534925 | E16: 22.36624386 | F16: 237.4481095 | G16: 8.19044575 | H16: 0.16139985 | I16: 0.56298125 | J16: 0.40942308 | K16: 9.32424993 | L16: 154.94 | M16: 4.76 | N16: 103.39 | O16: 12.18 | P16: 275.27
A17: $ indicates as on December 31, 2017
A18: Source: Respective stock exchanges

Sheet 45
A1: Table 45: Instrument-wise Turnover in Currency Derivatives of NSE
A2: Month | B2: Turnover (in ₹ crore) | F2: Open Interest as on last day of the month (in lots)
B3: USDINR | C3: EURINR | D3: GBPINR | E3: JPYINR | F3: USDINR | G3: EURINR | H3: GBPINR | I3: JPYINR
A4: 2016-17 | B4: 4507897.788 | C4: 99183.96814 | D4: 183698.5956 | E4: 66295.5029 | F4: 4606551 | G4: 67631 | H4: 43717 | I4: 17015
A5: 2017-18$ | B5: 3387399.045 | C5: 110047.4234 | D5: 134623.4491 | E5: 31985.55104 | F5: 3577756 | G5: 141027 | H5: 59996 | I5: 26357
A6: 2017-04-16 | B6: 375224.3865 | C6: 8047.30245 | D6: 11271.90484 | E6: 3460.733965 | F6: 4514665 | G6: 94594 | H6: 48928 | I6: 17441
A7: 2017-05-17 | B7: 366872.0968 | C7: 10063.13914 | D7: 12755.49623 | E7: 3431.779132 | F7: 4285462 | G7: 82866 | H7: 47918 | I7: 14397
A8: 2017-06-17 | B8: 292101.9527 | C8: 10516.07332 | D8: 18247.69552 | E8: 3865.810946 | F8: 3684399 | G8: 117120 | H8: 56481 | I8: 23086
A9: 2017-07-17 | B9: 292472.9354 | C9: 12008.79538 | D9: 14174.46442 | E9: 3822.064648 | F9: 4399055 | G9: 150348 | H9: 65561 | I9: 21495
A10: 2017-08-17 | B10: 342196.62 | C10: 14549.51647 | D10: 12336.69234 | E10: 3569.142606 | F10: 4582455 | G10: 161486 | H10: 51059 | I10: 23635
A11: 2017-09-17 | B11: 522245.3015 | C11: 14490.99886 | D11: 16930.23131 | E11: 3957.686614 | F11: 5787102 | G11: 129707 | H11: 70376 | I11: 26415
A12: 2017-10-17 | B12: 378394.704 | C12: 11034.05799 | D12: 13104.16401 | E12: 2655.506295 | F12: 3521235 | G12: 113957 | H12: 48987 | I12: 31569
A13: 2017-11-17 | B13: 458531.7043 | C13: 16330.63579 | D13: 17438.87813 | E13: 3875.932233 | F13: 3553278 | G13: 129213 | H13: 64954 | I13: 24288
A14: 2017-12-17 | B14: 359359.3441 | C14: 13006.90398 | D14: 18363.92231 | E14: 3346.894602 | F14: 3577756 | G14: 141027 | H14: 59996 | I14: 26357
A15: $ indicates as on December 31, 2017
A16: Source: NSE.

Sheet 46
A1: Table 46: Instrument-wise Turnover in Currency Derivative Segment of MSEI
A2: Month | B2: Turnover (₹ crore) | F2: Open Interest as on last day of the month (in lots)
B3: USDINR | C3: EURINR | D3: GBPINR | E3: JPYINR | F3: USDINR | G3: EURINR | H3: GBPINR | I3: JPYINR
A4: 2016-17 | B4: 289589.3689 | C4: 2173.138413 | D4: 4391.664496 | E4: 1773.490779 | F4: 226074 | G4: 1546 | H4: 3268 | I4: 1701
A5: 2017-18$ | B5: 86542.33933 | C5: 388.0495223 | D5: 639.52661 | E5: 180.2361053 | F5: 127201 | G5: 498 | H5: 689 | I5: 24
A6: 2017-04-30 | B6: 9917.624371 | C6: 106.76672 | D6: 118.2574837 | E6: 27.14985875 | F6: 228201 | G6: 138 | H6: 2794 | I6: 602
A7: 2017-05-30 | B7: 13432.29495 | C7: 33.952948 | D7: 90.8457415 | E7: 25.25503425 | F7: 291263 | G7: 128 | H7: 900 | I7: 99
A8: 2017-06-30 | B8: 14084.05389 | C8: 27.767698 | D8: 74.107005 | E8: 16.613743 | F8: 223861 | G8: 607 | H8: 970 | I8: 215
A9: 2017-07-30 | B9: 12440.14484 | C9: 67.946026 | D9: 59.57494475 | E9: 88.85478625 | F9: 319547 | G9: 952 | H9: 745 | I9: 200
A10: 2017-08-30 | B10: 8606.550835 | C10: 34.21089025 | D10: 73.3782255 | E10: 7.71814525 | F10: 302583 | G10: 736 | H10: 3775 | I10: 333
A11: 2017-09-30 | B11: 7746.326415 | C11: 44.40878775 | D11: 99.43977875 | E11: 5.54939825 | F11: 231419 | G11: 982 | H11: 3241 | I11: 53
A12: 2017-10-30 | B12: 5675.318106 | C12: 24.33657075 | D12: 38.6564345 | E12: 3.69605125 | F12: 192965 | G12: 156 | H12: 1248 | I12: 23
A13: 2017-11-30 | B13: 5500.383488 | C13: 27.229978 | D13: 33.54563575 | E13: 3.634513 | F13: 119125 | G13: 684 | H13: 729 | I13: 19
A14: 2017-12-30 | B14: 9139.642442 | C14: 21.4299035 | D14: 51.7213605 | E14: 1.76457525 | F14: 127201 | G14: 498 | H14: 689 | I14: 24
A15: $ indicates as on December 31, 2017
A16: Source: MSEI

Sheet 47
A1: Table 47: Instrument-wise Turnover in Currency Derivative Segment of BSE
A2: Month | B2: Turnover (₹ crore) | F2: Open Interest as on last day of the month (in lots)
B3: USDINR | C3: EURINR | D3: GBPINR | E3: JPYINR | F3: USDINR | G3: EURINR | H3: GBPINR | I3: JPYINR
A4: 2016-17 | B4: 3148260.167 | C4: 9756.0035 | D4: 9401.1266 | E4: 4230.64 | F4: 1575230 | G4: 11810 | H4: 9156 | I4: 2150
A5: 2017-18$ | B5: 2826208.717 | C5: 6075.3376 | D5: 7756.0427 | E5: 1276.2026 | F5: 1062394 | G5: 6555 | H5: 7358 | I5: 642
A6: 2017-04-13 | B6: 336519.9502 | C6: 667.483 | D6: 1295.1177 | E6: 238.5541 | F6: 1445427 | G6: 6993 | H6: 2533 | I6: 1705
A7: 2017-05-14 | B7: 384078.536 | C7: 887.1942 | D7: 1208.2427 | E7: 113.9608 | F7: 1389505 | G7: 4175 | H7: 2603 | I7: 470
A8: 2017-06-14 | B8: 361085.9156 | C8: 1051.2675 | D8: 1608.113 | E8: 112.9009 | F8: 1022494 | G8: 8718 | H8: 6242 | I8: 827
A9: 2017-07-15 | B9: 352046.495 | C9: 985.37 | D9: 901.2104 | E9: 369.66 | F9: 1690887 | G9: 9274 | H9: 3319 | I9: 683
A10: 2017-08-15 | B10: 296228.0035 | C10: 848.9404 | D10: 880.4462 | E10: 93.7485 | F10: 1653022 | G10: 7028 | H10: 5627 | I10: 789
A11: 2017-09-15 | B11: 356558.4825 | C11: 601.5169 | D11: 690.6051 | E11: 143.2931 | F11: 1602427 | G11: 2469 | H11: 4406 | I11: 1300
A12: 2017-10-16 | B12: 339898.4986 | C12: 347.0785 | D12: 479.5881 | E12: 123.0224 | F12: 921864 | G12: 2922 | H12: 1706 | I12: 6658
A13: 2017-11-16 | B13: 399792.8355 | C13: 686.4871 | D13: 692.7195 | E13: 81.0628 | F13: 1062394 | G13: 6555 | H13: 7358 | I13: 642
A14: 2017-12-17 | B14: 317627.8653 | C14: 740.5028 | D14: 788.0666 | E14: 62.5281 | F14: 1229653 | G14: 22646 | H14: 5769 | I14: 758
A15: $ indicates as on December 31, 2017
A16: Source: BSE

Sheet 48
A1: Table 48: Maturity-wise Turnover in Currency Derivative Segment of NSE (₹ crore)
A2: Month | B2: Currency Futures | F2: Currency Options
B3: 1 Month | C3: 2 Month | D3: 3 Month | E3: > 3 months | F3: 1 Month | G3: 2 Month | H3: 3 Month | I3: > 3 months
A4: 2016-17 | B4: 1999419.574 | C4: 429520.3277 | D4: 40831.97761 | E4: 20007.0563 | F4: 1954971.527 | G4: 398290.2409 | H4: 13984.87507 | I4: 50.27651475
A5: 2017-18$ | B5: 1425549.874 | C5: 352950.0511 | D5: 37611.58024 | E5: 16765.07764 | F5: 1495731.853 | G5: 315385.7073 | H5: 16463.57566 | I5: 3597.750307
A6: 2017-04-16 | B6: 135414.6572 | C6: 39230.80106 | D6: 4754.742654 | E6: 1785.42844 | F6: 178366.6652 | G6: 38198.92067 | H6: 252.0210635 | I6: 1.0914945
A7: 2017-05-16 | B7: 138347.5135 | C7: 39046.82891 | D7: 3944.549592 | E7: 1621.572703 | F7: 167617.7782 | G7: 41422.29719 | H7: 1118.785546 | I7: 3.18563975
A8: 2017-06-17 | B8: 129961.273 | C8: 30622.6937 | D8: 3417.809811 | E8: 1605.146001 | F8: 128496.799 | G8: 29700.8642 | H8: 841.303657 | I8: 85.6430795
A9: 2017-07-17 | B9: 122478.4492 | C9: 31047.82754 | D9: 3460.359906 | E9: 1927.955664 | F9: 129067.1449 | G9: 30462.76528 | H9: 3974.213986 | I9: 59.54336
A10: 2017-08-17 | B10: 128125.3012 | C10: 33510.57823 | D10: 5121.849567 | E10: 2787.170213 | F10: 165493.8587 | G10: 33149.51041 | H10: 3378.017088 | I10: 1085.685974
A11: 2017-09-17 | B11: 197038.3404 | C11: 70331.4628 | D11: 6970.156798 | E11: 3145.939563 | F11: 214575.1953 | G11: 61349.89283 | H11: 1878.428197 | I11: 2334.802377
A12: 2017-10-17 | B12: 163775.1062 | C12: 32137.87998 | D12: 2533.587581 | E12: 1199.027083 | F12: 174389.2237 | G12: 29666.10162 | H12: 1482.980357 | I12: 4.525745
A13: 2017-11-17 | B13: 216060.1626 | C13: 45755.75127 | D13: 4219.699413 | E13: 1280.622297 | F13: 194779.8607 | G13: 32687.64446 | H13: 1389.862084 | I13: 3.54767925
A14: 2017-12-01 | B14: 194349.0703 | C14: 31266.22759 | D14: 3188.824915 | E14: 1412.215678 | F14: 142945.3273 | G14: 18747.71064 | H14: 2147.963682 | I14: 19.72495825
A15: $ indicates as on December 31, 2017
A16: Source: NSE.

Sheet 49
A1: Table 49: Maturity-wise Turnover in Currency Derivative Segment of MSEI (₹ crore)
A2: Month | B2: Currency Futures | F2: Currency Options
B3: 1 Month | C3: 2 Month | D3: 3 Month | E3: > 3 months | F3: 1 Month | G3: 2 Month | H3: 3 Month | I3: > 3 months
A4: 2016-17 | B4: 231099.2648 | C4: 52784.17715 | D4: 1532.06609 | E4: 57.3390735 | F4: 12098.31952 | G4: 344.8527935 | H4: 11.6629 | I4: 0
A5: 2017-18$ | B5: 58760.55999 | C5: 16051.51338 | D5: 1502.675504 | E5: 16.98605625 | F5: 8143.572807 | G5: 2391.291549 | H5: 582.826 | I5: 300.72625
A6: 2016-04-30 | B6: 7054.838806 | C6: 2209.634204 | D6: 270.9895095 | E6: 0.00654 | F6: 527.173674 | G6: 60.101684 | H6: 47.054 | I6: 0
A7: 2017-05-30 | B7: 9551.712533 | C7: 3207.015243 | D7: 144.017863 | E7: 0.19699 | F7: 118.745901 | G7: 124.437127 | H7: 436.223 | I7: 0
A8: 2017-06-30 | B8: 9278.532281 | C8: 2775.282799 | D8: 769.2546935 | E8: 9.2402415 | F8: 1152.326589 | G8: 191.2177065 | H8: 26.688 | I8: 0
A9: 2017-07-30 | B9: 9127.787278 | C9: 2549.229945 | D9: 111.294932 | E9: 0.327 | F9: 263.758373 | G9: 604.123087 | H9: 0 | I9: 0
A10: 2017-08-30 | B10: 5848.532204 | C10: 1612.208567 | D10: 36.78757575 | E10: 2.59646 | F10: 623.981456 | G10: 584.481834 | H10: 0 | I10: 13.27
A11: 2017-09-30 | B11: 4142.403203 | C11: 1495.1382 | D11: 138.460161 | E11: 1.23635525 | F11: 1734.473116 | G11: 96.557095 | H11: 0 | I11: 287.45625
A12: 2017-10-30 | B12: 2697.428791 | C12: 723.2978397 | D12: 11.78615675 | E12: 0.0066045 | F12: 1813.144168 | G12: 423.4826027 | H12: 72.861 | I12: 0
A13: 2017-11-30 | B13: 3703.621324 | C13: 670.0087863 | D13: 13.1261215 | E13: 2.5820505 | F13: 1046.506832 | G13: 128.948501 | H13: 0 | I13: 0
A14: 2017-12-30 | B14: 7355.70357 | C14: 809.6977953 | D14: 6.9584905 | E14: 0.7938145 | F14: 863.4626985 | G14: 177.941912 | H14: 0 | I14: 0
A15: $ indicates as on December 31, 2017
A16: Source: MSEI

Sheet 50
A1: Table 50: Maturity-wise Turnover in Currency Derivative Segment of BSE (₹ crore)
A2: Month | B2: Currency Futures | F2: Currency Options
B3: 1 Month | C3: 2 Month | D3: 3 Month | E3: > 3 months | F3: 1 Month | G3: 2 Month | H3: 3 Month | I3: > 3 months
A4: 2016-17 | B4: 1570858.134 | C4: 222641.9087 | D4: 13202.43388 | E4: 1118.434679 | F4: 1221761.19 | G4: 137286.8355 | H4: 4461.485166 | I4: 309.19625
A5: 2017-18$ | B5: 1202943.41 | C5: 191396.71 | D5: 11592.02 | E5: 2371.33 | F5: 1551562.46 | G5: 195785.66 | H5: 4082.39 | I5: 796.56
A6: 2017-04-04 | B6: 180181.69 | C6: 25587.92 | D6: 42.36 | E6: 4.87 | F6: 110665.27 | G6: 19729.88 | H6: 1995.48 | I6: 513.61
A7: 2017-05-04 | B7: 122794.78 | C7: 18298.56 | D7: 1764.56 | E7: 317.94 | F7: 199364.44 | G7: 43611.35 | H7: 123.8 | I7: 11.3
A8: 2017-06-04 | B8: 111195.43 | C8: 17370.46 | D8: 1913.48 | E8: 267.76 | F8: 211236.96 | G8: 21828.69 | H8: 30.88 | I8: 13.3
A9: 2017-07-04 | B9: 107680.04 | C9: 19727.28 | D9: 2007.17 | E9: 204.67 | F9: 206342.13 | G9: 18214.34 | H9: 83.97 | I9: 42.89
A10: 2017-08-04 | B10: 118657.73 | C10: 19162.48 | D10: 1821.06 | E10: 412.09 | F10: 143283.65 | G10: 14210.81 | H10: 492.65 | I10: 9.37
A11: 2017-09-04 | B11: 158915.77 | C11: 35525.04 | D11: 2014.5 | E11: 524.84 | F11: 144685.94 | G11: 15695.74 | H11: 510.63 | I11: 121.01
A12: 2017-10-04 | B12: 125696.25 | C12: 16709.1 | D12: 496.66 | E12: 191.66 | F12: 169265.77 | G12: 28153.69 | H12: 334.91 | I12: 0
A13: 2017-11-04 | B13: 160737.1 | C13: 24073.67 | D13: 824.54 | E13: 217.9 | F13: 194538.03 | G13: 20530.41 | H13: 306.21 | I13: 25.27
A14: 2017-12-04 | B14: 117084.62 | C14: 14942.2 | D14: 707.69 | E14: 229.6 | F14: 172180.27 | G14: 13810.75 | H14: 203.86 | I14: 59.81
A15: $ indicates as on December 31, 2017
A16: Source: BSE

Sheet 51
A1: Table 51: Trading Statistics of Interest Rate Futures at BSE, NSE and MSEI
A2: Year/ Month | B2: No. of Trading Days | C2: BSE | G2: NSE | K2: MSEI
C3: Interest RateFutures | E3: Open Interest at the end of | G3: Interest RateFutures | I3: Open Interest at the end of | K3: Interest RateFutures | M3: Open Interest at the end of
C5: No. of Contracts | D5: Traded Value (₹ crore) | E5: No. of Contracts | F5: Value (₹ crore) | G5: No. of Contracts | H5: Traded Value (₹ crore) | I5: No. of Contracts | J5: Value (₹ crore) | K5: No. of Contracts | L5: Traded Value (₹ crore) | M5: No. of Contracts | N5: Value (₹ crore)
A7: 2016-17 | B7: 242 | C7: 6185341 | D7: 127979.4124 | E7: 18044 | F7: 377.6807 | G7: 14807039 | H7: 307809.3201 | I7: 120422 | J7: 2482.449753 | K7: 125175.4976 | L7: 2551.852131 | M7: 0 | N7: 0
A8: 2017-18$ | B8: 183 | C8: 7676259 | D8: 155052.991 | E8: 5901 | F8: 112.5406 | G8: 12009762 | H8: 242431.8829 | I8: 1324.764388 | J8: 183 | K8: 10648 | L8: 218.548133 | M8: 240 | N8: 4.711584
A9: 2017-04-04 | B9: 18 | C9: 534693 | D9: 11046.7248 | E9: 13550 | F9: 279.0231 | G9: 1596049 | H9: 32824.3629 | I9: 88000 | J9: 1803.513356 | K9: 0 | L9: 0 | M9: 0 | N9: 0
A10: 2017-05-04 | B10: 21 | C10: 595544 | D10: 12230.2824 | E10: 4158 | F10: 84.7266 | G10: 1082509 | H10: 22208.39154 | I10: 91173 | J10: 1871.28679 | K10: 0 | L10: 0 | M10: 0 | N10: 0
A11: 2017-06-04 | B11: 21 | C11: 902593 | D11: 18656.9916 | E11: 5410 | F11: 111.7904 | G11: 1298346 | H11: 26851.83214 | I11: 87169 | J11: 1797.472961 | K11: 0 | L11: 0 | M11: 0 | N11: 0
A12: 2017-07-04 | B12: 21 | C12: 1067242 | D12: 21989.5161 | E12: 6406 | F12: 132.0295 | G12: 1094905 | H12: 22437.48364 | I12: 88671 | J12: 1824.448533 | K12: 10376 | L12: 213.195081 | M12: 0 | N12: 0
A13: 2017-08-04 | B13: 20 | C13: 838492 | D13: 17102.2661 | E13: 3 | F13: 0.061 | G13: 1057191 | H13: 21572.84584 | I13: 94787 | J13: 1938.643519 | K13: 12 | L13: 0.246352 | M13: 10 | N13: 0.203382
A14: 2017-09-04 | B14: 21 | C14: 560262 | D14: 11354.9076 | E14: 12757 | F14: 257.6202 | G14: 1195149 | H14: 24201.00721 | I14: 98710 | J14: 1996.673097 | K14: 0 | L14: 0 | M14: 0 | N14: 0
A15: 2017-10-04 | B15: 20 | C15: 947198 | D15: 18967.921 | E15: 27623 | F15: 551.5842 | G15: 1250840 | H15: 25041.38669 | I15: 96539 | J15: 1926.890394 | K15: 0 | L15: 0 | M15: 0 | N15: 0
A16: 2017-11-04 | B16: 22 | C16: 1336981 | D16: 26430.3043 | E16: 47 | F16: 0.9226 | G16: 1845819 | H16: 36432.64852 | I16: 71729 | J16: 1413.219224 | K16: 260 | L16: 5.1067 | M16: 240 | N16: 4.711584
A17: 2017-12-04 | B17: 19 | C17: 893254 | D17: 17274.0771 | E17: 5901 | F17: 112.5406 | G17: 1588954 | H17: 30861.92445 | I17: 83651 | J17: 1612.10628 | K17: 0 | L17: 0 | M17: 0 | N17: 0
A18: $ indicates as on December 31, 2017
A19: Source: BSE, NSE and MSEI

Sheet 52
A1: Table 52: Settlement Statistics in Interest Rate Futures at BSE, NSE and MSEI (₹ crore)
A2: Year/ Month | B2: BSE | D2: NSE | F2: MSEI
B3: MTM Settlement | C3: Physical Delivery Settlement | D3: MTM Settlement | E3: Physical Delivery Settlement | F3: MTM Settlement | G3: Physical Delivery Settlement
A4: 2016-17 | B4: 101.699842 | C4: 8.376342 | D4: 1128.371703 | E4: 41.86266336 | F4: 10.030167 | G4: 0
A5: 2017-18$ | B5: 196.874903 | C5: 10.424153 | D5: 544.4999505 | E5: 19.12767048 | F5: 0.0504 | G5: 0
A6: 2017-04-04 | B6: 24.581016 | C6: 1.24733 | D6: 75.886162 | E6: 1.77860424 | F6: 0 | G6: 0
A7: 2017-05-04 | B7: 22.984909 | C7: 0.930761 | D7: 65.1442585 | E7: 2.0008222 | F7: 0 | G7: 0
A8: 2017-06-04 | B8: 11.013454 | C8: 0.146349 | D8: 56.66 | E8: 1.53 | F8: 0 | G8: 0
A9: 2017-07-04 | B9: 11.300771 | C9: 0.375456 | D9: 36.830774 | E9: 0.88781024 | F9: 0.0281 | G9: 0
A10: 2017-08-04 | B10: 13.358457 | C10: 0.462882 | D10: 38.9333985 | E10: 0.30706518 | F10: 0.0026 | G10: 0
A11: 2017-09-04 | B11: 16.005581 | C11: 0.801449 | D11: 67.55306 | E11: 1.6432105 | F11: 0.0026 | G11: 0
A12: 2017-10-04 | B12: 19.645913 | C12: 0.616628 | D12: 54.0117325 | E12: 0.88853212 | F12: 0.0026 | G12: 0
A13: 2017-11-04 | B13: 43.01236 | C13: 0.905708 | D13: 88.7878385 | E13: 2.21362426 | F13: 0.019716 | G13: 0
A14: 2017-12-04 | B14: 34.972442 | C14: 4.93759 | D14: 60.693892 | E14: 7.87895878 | F14: 0 | G14: 0
A15: $ indicates as on December 31, 2017
A16: Source: NSE, BSE and MSEI

Sheet 53
A1: Table 53: Trends in Foreign Portfolio Investment
A2: Year/Month | B2: Gross Purchase (₹ crore) | C2: Gross Sales (₹ crore) | D2: Net Investment (₹ crore) | E2: Net Investment (US $ mn.) | F2: Cumulative Net Investment (US $ mn.)
A3: 2016-17 | B3: 1507027.7 | C3: 1458616.67 | D3: 48411.03 | E3: 7599.65 | F3: 231187.35
A4: 2017-18$ | B4: 1143761.92 | C4: 1008797 | D4: 134964.92 | E4: 20908.98 | F4: 252096.33
A5: 2017-04-01 | B5: 121630.47 | C5: 98872.23 | D5: 22758.24 | E5: 3513.38 | F5: 234700.73
A6: 2017-05-01 | B6: 148177.26 | C6: 121311.1 | D6: 26866.16 | E6: 4169.96 | F6: 238870.69
A7: 2017-06-01 | B7: 169484.3 | C7: 140182.37 | D7: 29301.93 | E7: 4548.13 | F7: 243418.82
A8: 2017-07-01 | B8: 143879.89 | C8: 119852.03 | D8: 24027.86 | E8: 3732.02 | F8: 247150.84
A9: 2017-08-01 | B9: 124845.86 | C9: 122169.03 | D9: 2676.83 | E9: 426.59 | F9: 247577.43
A10: 2017-09-01 | B10: 127847.98 | C10: 137891.36 | D10: -10043.38 | E10: -1532.75 | F10: 246044.68
A11: 2017-10-01 | B11: 145518.96 | C11: 126399.87 | D11: 19119.09 | E11: 2933.47 | F11: 248978.15
A12: 2017-11-01 | B12: 162377.2 | C12: 142119.01 | D12: 20258.19 | E12: 3118.18 | F12: 252096.33
A13: 2017-12-01 | B13: 141460.51 | C13: 145004.29 | D13: -3543.78 | E13: -551.65 | F13: 251544.68
A14: $ indicates as on December 31, 2017
A15: Source: NSDL, CDSL

Sheet 54
A1: Table 54: Notional Value of Offshore Derivative Instruments (ODIs) Vs Assets Under Custody (AUC) of FPIs/Deemed FPIs (₹ crore)
A2: Year/ Month | B2: Notional value of ODIs on Equity, Debt & Derivatives | C2: Notional value of ODIs on Equity & Debt excluding Derivatives | D2: Assets Under Custody of FPIs/Deemed FPIs | E2: Notional value of ODIs on Equity, Debt & Derivatives as % of Assets Under Custody of FPIs/Deemed FPIs | F2: Notional value of ODIs on Equity & Debt excluding Derivatives as % of Assets Under Custody of FPIs/Deemed FPIs
A3: 2016-17 | B3: 178437 | C3: 124277 | D3: 2705729 | E3: 6.6 | F3: 4.6
A4: 2017-18$ | B4: 152243 | C4: 149243 | D4: 3280283 | E4: 4.6 | F4: 4.5
A5: 2017-04-01 | B5: 168545 | C5: 128380 | D5: 2786083 | E5: 6 | F5: 4.6
A6: 2017-05-01 | B6: 180718 | C6: 133045 | D6: 2856637 | E6: 6.3 | F6: 4.7
A7: 2017-06-01 | B7: 165241 | C7: 132785 | D7: 2883104 | E7: 5.7 | F7: 4.6
A8: 2017-07-01 | B8: 135297 | C8: 127075 | D8: 3055984 | E8: 4.4 | F8: 4.2
A9: 2017-08-01 | B9: 125037 | C9: 116393 | D9: 3035509 | E9: 4.1 | F9: 3.8
A10: 2017-09-01 | B10: 122684 | C10: 113706 | D10: 3003476 | E10: 4.1 | F10: 3.8
A11: 2017-10-01 | B11: 131006 | C11: 120629 | D11: 3170194 | E11: 4.1 | F11: 3.8
A12: 2017-11-01 | B12: 128639 | C12: 123567 | D12: 3188354 | E12: 4 | F12: 3.9
A13: 2017-12-01 | B13: 152243 | C13: 149243 | D13: 3280283 | E13: 4.6 | F13: 4.5
A14: Notes: 1. Figures are compiled based on reports submitted by FPIs/deemed FPIs issuing ODIs. 2. Column 4 Figures are compiled on the basis of reports submitted by custodians & does not includes positions taken by FPIs/deemed FPIs in derivatives. 3. The total value of ODIs excludes the unhedged positions & portfolio hedging positions taken by the FPIs/deemed FPIs issuing ODIs.
A15: $ indicates as on December 31, 2017
A16: Source: SEBI.

Sheet 55
A1: Table 55: Assets under the Custody of Custodians
A2: Client Period | B2: FPIs | D2: Foreign Depositories | F2: FDI Investments | H2: Foreign Venture Capital Investments | J2: OCBs | L2: NRIs | N2: Mutual Funds | P2: Corporates | R2: Banks | T2: Insurance Companies | V2: Local Pension Funds | X2: Financial Institutions | Z2: Others | AB2: Total
B3: No. | C3: Amount (₹ crore) | D3: No. | E3: Amount (₹ crore) | F3: No. | G3: Amount (₹ crore) | H3: No. | I3: Amount (₹ crore) | J3: No. | K3: Amount (₹ crore) | L3: No. | M3: Amount (₹ crore) | N3: No. | O3: Amount (₹ crore) | P3: No. | Q3: Amount (₹ crore) | R3: No. | S3: Amount (₹ crore) | T3: No. | U3: Amount (₹ crore) | V3: No. | W3: Amount (₹ crore) | X3: No. | Y3: Amount (₹ crore) | Z3: No. | AA3: Amount (₹ crore) | AB3: No. | AC3: Amount (₹ crore)
A4: 2016-17 | B4: 8956 | C4: 2705728.63 | D4: 64 | E4: 272829.5 | F4: 1532 | G4: 591977.26 | H4: 188 | I4: 31695.23 | J4: 22 | K4: 2174.73 | L4: 330 | M4: 2848.76 | N4: 1663 | O4: 1536949.49 | P4: 434 | Q4: 73926.82 | R4: 115 | S4: 303380.12 | T4: 766 | U4: 1440522.63 | V4: 96 | W4: 227369.36 | X4: 29 | Y4: 74173.72 | Z4: 11320 | AA4: 543186.91 | AB4: 25515 | AC4: 7806763.16
A5: 2017-18$ | B5: 9171 | C5: 3280283.285 | D5: 64 | E5: 307075.9474 | F5: 1621 | G5: 754297.7103 | H5: 188 | I5: 32266.48112 | J5: 22 | K5: 2400.6 | L5: 380 | M5: 3413.86 | N5: 1486 | O5: 1942726.224 | P5: 456 | Q5: 84269.58563 | R5: 113 | S5: 356059.7009 | T5: 812 | U5: 1620139.431 | V5: 116 | W5: 309420.0022 | X5: 29 | Y5: 104507.32 | Z5: 14326 | AA5: 657420.0512 | AB5: 28784 | AC5: 9454280.198
A6: 2017-04-30 | B6: 8884 | C6: 2786082.88 | D6: 63 | E6: 273675.52 | F6: 1541 | G6: 587640.11 | H6: 190 | I6: 31661.56 | J6: 22 | K6: 2187.26 | L6: 334 | M6: 2943.76 | N6: 1646 | O6: 1664012.38 | P6: 436 | Q6: 76733.59 | R6: 110 | S6: 307675.35 | T6: 774 | U6: 1468849.19 | V6: 115 | W6: 228105.69 | X6: 29 | Y6: 75704.04 | Z6: 11603 | AA6: 551698.94 | AB6: 25747 | AC6: 8056970.27
A7: 2017-05-31 | B7: 8750 | C7: 2856637.184 | D7: 63 | E7: 287842.9829 | F7: 1547 | G7: 599259.5426 | H7: 189 | I7: 31595.51345 | J7: 22 | K7: 2226.695 | L7: 331 | M7: 2847.27 | N7: 1634 | O7: 1656901.779 | P7: 444 | Q7: 78055.54775 | R7: 111 | S7: 308179.8451 | T7: 779 | U7: 1479654.677 | V7: 114 | W7: 245604.4743 | X7: 29 | Y7: 79189.47 | Z7: 11901 | AA7: 557451.0305 | AB7: 25914 | AC7: 8185446.012
A8: 2017-06-30 | B8: 8914 | C8: 2882134.384 | D8: 63 | E8: 284149.1471 | F8: 1566 | G8: 602120.931 | H8: 190 | I8: 31645.9476 | J8: 22 | K8: 2156.905 | L8: 332 | M8: 2892.83 | N8: 1553 | O8: 1619245.814 | P8: 451 | Q8: 79201.01454 | R8: 111 | S8: 307084.293 | T8: 783 | U8: 1482775.633 | V8: 114 | W8: 277223.4203 | X8: 29 | Y8: 77531.26 | Z8: 12401 | AA8: 569590.0665 | AB8: 26529 | AC8: 8217751.646
A9: 2017-07-31 | B9: 8904 | C9: 3055983.627 | D9: 63 | E9: 299895.2694 | F9: 1576 | G9: 633314.9631 | H9: 190 | I9: 31965.36704 | J9: 22 | K9: 2334.65 | L9: 334 | M9: 2775.98 | N9: 1534 | O9: 1736264.587 | P9: 454 | Q9: 79600.1434 | R9: 112 | S9: 319683.445 | T9: 796 | U9: 1521446.891 | V9: 117 | W9: 281285.3812 | X9: 29 | Y9: 72289.42 | Z9: 12726 | AA9: 582997.103 | AB9: 26857 | AC9: 8619836.827
A10: 2017-08-31 | B10: 8911 | C10: 3035509.191 | D10: 64 | E10: 291845.26 | F10: 1586 | G10: 645182.9178 | H10: 189 | I10: 31568.3016 | J10: 22 | K10: 2239.265 | L10: 340 | M10: 2913.92 | N10: 1484 | O10: 1770949.592 | P10: 460 | Q10: 81218.76403 | R10: 112 | S10: 314547.6715 | T10: 796 | U10: 1511599.892 | V10: 116 | W10: 285730.5501 | X10: 29 | Y10: 71308.8 | Z10: 13072 | AA10: 588967.2639 | AB10: 27181 | AC10: 8633581.389
A11: 2017-09-30 | B11: 8968 | C11: 3003475.886 | D11: 64 | E11: 291008.0765 | F11: 1590 | G11: 646487.2162 | H11: 189 | I11: 31506.3568 | J11: 22 | K11: 2251.725 | L11: 347 | M11: 2928.17 | N11: 1491 | O11: 1766677.294 | P11: 465 | Q11: 82485.86958 | R11: 113 | S11: 304365.7093 | T11: 798 | U11: 1494463.795 | V11: 116 | W11: 290770.5082 | X11: 29 | Y11: 69048.28 | Z11: 13421 | AA11: 599581.0773 | AB11: 27613 | AC11: 8585049.964
A12: 2017-10-31 | B12: 9017 | C12: 3170194.001 | D12: 64 | E12: 301266.684 | F12: 1594 | G12: 676379.0871 | H12: 189 | I12: 32444.40944 | J12: 22 | K12: 2305.27 | L12: 353 | M12: 3149.95 | N12: 1438 | O12: 1932655.331 | P12: 470 | Q12: 84055.17829 | R12: 113 | S12: 352178.9021 | T12: 802 | U12: 1578889.063 | V12: 116 | W12: 296165.2666 | X12: 29 | Y12: 71093.25 | Z12: 13622 | AA12: 619058.9423 | AB12: 27829 | AC12: 9119835.335
A13: 2017-11-30 | B13: 9094 | C13: 3188354.352 | D13: 64 | E13: 300233.0229 | F13: 1614 | G13: 710208.7342 | H13: 190 | I13: 32474.41001 | J13: 22 | K13: 2351.295 | L13: 371 | M13: 3223.12 | N13: 1445 | O13: 1961697.401 | P13: 470 | Q13: 84101.09436 | R13: 113 | S13: 350639.8287 | T13: 806 | U13: 1580669.874 | V13: 117 | W13: 302793.6542 | X13: 29 | Y13: 101186.5962 | Z13: 13906 | AA13: 634389.5155 | AB13: 28241 | AC13: 9252322.899
A14: 2017-12-31 | B14: 9171 | C14: 3280283.285 | D14: 64 | E14: 307075.9474 | F14: 1621 | G14: 754297.7103 | H14: 188 | I14: 32266.48112 | J14: 22 | K14: 2400.6 | L14: 380 | M14: 3413.86 | N14: 1486 | O14: 1942726.224 | P14: 456 | Q14: 84269.58563 | R14: 113 | S14: 356059.7009 | T14: 812 | U14: 1620139.431 | V14: 116 | W14: 309420.0022 | X14: 29 | Y14: 104507.32 | Z14: 14326 | AA14: 657420.0512 | AB14: 28784 | AC14: 9454280.198
A15: Notes: 1. With the commencement of FPI Regime from June 1, 2014, the erstwhile FIIs, Sub Accounts and QFIs are merged into a new investor class termed as “Foreign Portfolio Investors (FPIs)”.
A16: 2. "Others" include Portfolio manager, partnership firm, trusts, depository receipts, AIFs, FCCB, HUFs, Brokers etc.
A17: $ indicates as on December 31, 2017
A18: Source: Custodians.

Sheet 56
A1: Table 56: Trends in Resource Mobilization by Mutual Funds (₹ crore)
A2: Year/ Month | B2: Gross Mobilisation | E2: Redemption | H2: Net Inflow/Outflow | K2: Assets at the End of Period
B3: Pvt. Sector | C3: Public Sector | D3: Total | E3: Pvt. Sector | F3: Public Sector | G3: Total | H3: Pvt. Sector | I3: Public Sector | J3: Total
A4: 2016-17 | B4: 14247937.3 | C4: 3367611.559 | D4: 17615548.86 | E4: 13968549.08 | F4: 3303950.879 | G4: 17272499.96 | H4: 279388.2213 | I4: 63660.68016 | J4: 343048.9015 | K4: 1754619.082
A5: 2017-18$ | B5: 12708533.16 | C5: 2703980.739 | D5: 15412513.9 | E5: 12542380.3 | F5: 2654907.851 | G5: 15197288.16 | H5: 166152.8578 | I5: 49072.88782 | J5: 215225.7456 | K5: 2137613.116
A6: 2017-04-30 | B6: 1361008.412 | C6: 276212.0344 | D6: 1637220.446 | E6: 1233420.267 | F6: 253097.0221 | G6: 1486517.289 | H6: 127588.1442 | I6: 23115.0123 | J6: 150703.1565 | K6: 1926302.283
A7: 2017-05-31 | B7: 1358637.885 | C7: 300816.6635 | D7: 1659454.549 | E7: 1399131.861 | F7: 301033.7455 | G7: 1700165.606 | H7: -40493.9755 | I7: -217.0820089 | J7: -40711.05751 | K7: 1903975.405
A8: 2017-06-30 | B8: 1267002.767 | C8: 285368.8585 | D8: 1552371.625 | E8: 1281396.594 | F8: 287567.6128 | G8: 1568964.207 | H8: -14393.8276 | I8: -2198.754286 | J8: -16592.58188 | K8: 1896290.72
A9: 2017-07-31 | B9: 1469015.538 | C9: 331566.9389 | D9: 1800582.477 | E9: 1420665.983 | F9: 316411.7945 | G9: 1737077.777 | H9: 48349.5554 | I9: 15155.1444 | J9: 63504.69981 | K9: 1996905.335
A10: 2017-08-31 | B10: 1342724.49 | C10: 282496.032 | D10: 1625220.522 | E10: 1286290.263 | F10: 277229.5669 | G10: 1563519.83 | H10: 56434.22731 | I10: 5266.465097 | J10: 61700.69241 | K10: 2059288.896
A11: 2017-09-30 | B11: 1501515.7 | C11: 334143.2675 | D11: 1835658.968 | E11: 1509765.366 | F11: 342498.2029 | G11: 1852263.569 | H11: -8249.665599 | I11: -8354.935448 | J11: -16604.60105 | K11: 2040301.382
A12: 2017-10-31 | B12: 1486632.011 | C12: 286557.2652 | D12: 1773189.276 | E12: 1449855.777 | F12: 272185.1563 | G12: 1722040.933 | H12: 36776.23349 | I12: 14372.10892 | J12: 51148.34241 | K12: 2141345.935
A13: 2017-11-30 | B13: 1587032.21 | C13: 324429.3203 | D13: 1911461.53 | E13: 1474802.224 | F13: 310486.5495 | G13: 1785288.774 | H13: 112229.9855 | I13: 13942.77077 | J13: 126172.7563 | K13: 2279032.14
A14: 2017-12-31 | B14: 1334964.15 | C14: 282390.3585 | D14: 1617354.509 | E14: 1487051.97 | F14: 294398.2005 | G14: 1781450.17 | H14: -152087.8194 | I14: -12007.84193 | J14: -164095.6613 | K14: 2137613.116
A15: $ indicates as on December 31, 2017
A16: Source: SEBI.
F21: `

Sheet 57
A1: Table 57: Type-wise Resource Mobilisation by Mutual Funds: Open-ended and Close-ended (₹ crore)
A2: Scheme | B2: 2016-17 | E2: 2017-18$ | H2: Dec-17 | K2: Assets at the end of period
B3: Sale | C3: Purchase | D3: Net | E3: Sale | F3: Purchase | G3: Net | H3: Sale | I3: Purchase | J3: Net | N3: Sale | O3: Purchase | P3: Net
A4: Open-ended | B4: 17229415.46 | C4: 17587220.53 | D4: 357805.0687 | E4: 15134786.22 | F4: 15380736.89 | G4: 245950.6749 | H4: 1778257.246 | I4: 1607786.297 | J4: -170470.949 | K4: 1975839.163 | N4: 15184479.49 | O4: 15601374.01 | P4: 416894.5134
A5: Close-ended | B5: 39079.68494 | C5: 28028.80421 | D5: -11050.88073 | E5: 61125.68886 | F5: 31773.82151 | G5: -29351.86735 | H5: 3155.263507 | I5: 9568.020545 | J5: 6412.757039 | K5: 158379.5948 | N5: 36891.82748 | O5: 21155.67758 | P5: -15736.1499
A6: Interval | B6: 4004.813506 | C6: 299.5302272 | D6: -3705.283278 | E6: 1376.247923 | F6: 3.186047412 | G6: -1373.061875 | H6: 37.66052274 | I6: 0.191194248 | J6: -37.46932849 | K6: 3394.357403 | N6: 3521.712396 | O6: 295.1884329 | P6: -3226.523963
A7: Total | B7: 17272499.96 | C7: 17615548.86 | D7: 343048.9047 | E7: 15197288.16 | F7: 15412513.9 | G7: 215225.7456 | H7: 1781450.17 | I7: 1617354.509 | J7: -164095.6613 | K7: 2137613.116 | N7: 15224893.03 | O7: 15622824.87 | P7: 397931.8395
A8: $ indicates as on December 31, 2017
A9: Source: SEBI.

Sheet 58
A1: Table 58: Scheme-wise Resource Mobilisation and Assets under Management by Mutual Funds (₹ crore)
A2: Type | B2: 2016-17 | F2: 2017-18$ | J2: Dec-17 | O2: Upto Jan 17
B3: Sale | C3: Purchase | D3: Net | E3: Assets at the end of Period | F3: Sale | G3: Purchase | H3: Net | I3: Assets at the end of Period | J3: Sale | K3: Purchase | L3: Net | O3: Sale | P3: Purchase | Q3: Net
A4: A. Income/Debt Oriented Schemes (i+ii+iii+iv) | B4: 17090456.11 | C4: 17303610.26 | D4: 213154.1487 | E4: 1074652.031 | F4: 15013936.86 | G4: 15006881.09 | H4: -7055.771553 | I4: 1122373.845 | J4: 1749524.282 | K4: 1561304.969 | L4: -188219.3135 | O4: 15070850.59 | P4: 15356527.84 | Q4: 285677.2503
A5: i. Liquid/Money Market | B5: 16327426.65 | C5: 16423252.87 | D5: 95826.21906 | E5: 314085.8906 | F5: 14304893.86 | G5: 14270089.44 | H5: -34804.41874 | I5: 297252.88 | J5: 1638011.168 | K5: 1510413.056 | L5: -127598.1123 | O5: 14453105.18 | P5: 14564078.29 | Q5: 110973.1092
A6: ii. Gilt | B6: 15312.64455 | C6: 12007.24917 | D6: -3305.39538 | E6: 14875.23865 | F6: 6383.887153 | G6: 6394.995877 | H6: 11.10872411 | I6: 14592.79942 | J6: 662.170932 | K6: 191.9790394 | L6: -470.1918925 | O6: 13908.45814 | P6: 11732.89148 | Q6: -2175.566662
A7: iii. Debt (other than assured return) | B7: 747716.8194 | C7: 868350.1444 | D7: 120633.325 | E7: 743782.9564 | F7: 702659.1099 | G7: 730196.6483 | H7: 27537.53846 | I7: 808252.3449 | J7: 110850.943 | K7: 50699.93376 | L7: -60151.00926 | O7: 603836.9443 | P7: 780716.6521 | Q7: 176879.7078
A8: iv. Debt (assured return) | B8: 0 | C8: 0 | D8: 0 | E8: 0 | F8: 0 | G8: 0 | H8: 0 | I8: 0 | J8: 0 | K8: 0 | L8: 0 | O8: 0 | P8: 0 | Q8: 0
A9: v. Infrastructure Development | B9: 0 | C9: 0 | D9: 0 | E9: 1907.945479 | F9: 0 | G9: 200 | H9: 200 | I9: 2275.821118 | J9: 0 | K9: 0 | L9: 0 | O9: 0 | P9: 0 | Q9: 0
A10: B. Growth/Equity Oriented Schemes (i+ii) | B10: 149182.6568 | C10: 219549.9679 | D10: 70367.31107 | E10: 543541.2643 | F10: 142185.6197 | G10: 274940.8652 | H10: 132755.2455 | I10: 771134.4608 | J10: 24103.91525 | K10: 40192.18224 | L10: 16088.26699 | O10: 127702.8825 | P10: 189854.029 | Q10: 62151.14658
A11: i. ELSS | B11: 4526.605015 | C11: 14623.56784 | D11: 10096.96283 | E11: 61403.1873 | F11: 5369.062923 | G11: 12411.79893 | H11: 7042.736003 | I11: 80981.16061 | J11: 763.0955286 | K11: 1929.30414 | L11: 1166.208612 | O11: 3705.196375 | P11: 10895.43507 | Q11: 7190.238696
A12: ii. Others | B12: 144656.0518 | C12: 204926.4001 | D12: 60270.34824 | E12: 482138.0769 | F12: 136816.5567 | G12: 262529.0662 | H12: 125712.5095 | I12: 690153.3002 | J12: 23340.81973 | K12: 38262.8781 | L12: 14922.05838 | O12: 123997.6861 | P12: 178958.594 | Q12: 54960.90789
A13: C. Balanced Schemes | B13: 14011.10232 | C13: 50620.51336 | D13: 36609.41104 | E13: 84763.02229 | F13: 17786.39827 | G13: 88097.72002 | H13: 70311.32175 | I13: 167385.016 | J13: 1993.064471 | K13: 11748.43732 | L13: 9755.372852 | O13: 11068.73614 | P13: 41727.24506 | Q13: 30658.50892
A14: D. Exchange Traded Fund (i+ii) | B14: 17281.5077 | C14: 41335.3018 | D14: 23278.46173 | E14: 49915.46843 | F14: 22869.91396 | G14: 42458.4316 | H14: 19588.51764 | I14: 75207.93978 | J14: 5752.349823 | K14: 4090.825112 | L14: -1661.524711 | O14: 13853.70331 | P14: 34308.75513 | Q14: 19760.27461
A15: i. Gold ETF | B15: 861.5137754 | C15: 86.18141099 | D15: -775.3323645 | E15: 5479.812265 | F15: 595.0718707 | G15: 26.16076442 | H15: -568.9111063 | I15: 4855.306959 | J15: 58.31616092 | K15: 0 | L15: -58.31616092 | O15: 779.905932 | P15: 85.12871947 | Q15: -694.7772126
A16: ii. Other ETFs | B16: 17281.5077 | C16: 41335.3018 | D16: 24053.7941 | E16: 44435.65616 | F16: 22274.84209 | G16: 42432.27084 | H16: 20157.42875 | I16: 70352.63282 | J16: 5694.033662 | K16: 4090.825112 | L16: -1603.20855 | O16: 13853.70331 | P16: 34308.75513 | Q16: 20455.05182
A17: E. Fund of Funds Investing Overseas | B17: 707.0640777 | C17: 346.6362661 | D17: -360.4278116 | E17: 1747.296412 | F17: 509.3646855 | G17: 135.7969836 | H17: -373.567702 | I17: 1511.853611 | J17: 76.55839789 | K17: 18.09546796 | L17: -58.46292993 | O17: 637.2179394 | P17: 321.8770725 | Q17: -315.3408669
A18: Total (A+B+C+D+E) | B18: 17271638.44 | C18: 17615462.68 | D18: 343048.9047 | E18: 1754619.082 | F18: 15197288.16 | G18: 15412513.9 | H18: 215225.7456 | I18: 2137613.116 | J18: 1781450.17 | K18: 1617354.509 | L18: -164095.6613 | O18: 15224113.13 | P18: 15622739.74 | Q18: 397931.8395
A19: $ indicates as on December 31, 2017
A20: Source: SEBI. | G20: ` | K20: `

Sheet 59
A1: Table 59: Number of Schemes and Folios by Investment Objective
A2: Type | B2: 2016-17 | J2: 2017-18$
B3: No. of Schemes | F3: No. of Folios | J3: No. of Schemes | N3: No. of Folios
B4: Open | C4: Closed | D4: Interval | E4: Total | F4: Open | G4: Closed | H4: Interval | I4: Total | J4: Open | K4: Closed | L4: Interval | M4: Total | N4: Open | O4: Closed | P4: Interval | Q4: Total
A5: A. Income/Debt Oriented Schemes (i+ii+iii+iv) | B5: 349 | C5: 1262 | D5: 64 | E5: 1675 | F5: 8870830 | G5: 1119944 | H5: 8881 | I5: 9999655 | J5: 343 | K5: 896 | L5: 33 | M5: 1272 | N5: 9491593 | O5: 1171204 | P5: 5187 | Q5: 10667984
A6: i. Liquid/Money Market | B6: 52 | C6: 0 | D6: 0 | E6: 52 | F6: 788860 | G6: 0 | H6: 0 | I6: 788860 | J6: 52 | K6: 0 | L6: 0 | M6: 52 | N6: 1009696 | O6: 0 | P6: 0 | Q6: 1009696
A7: ii. Gilt | B7: 41 | C7: 0 | D7: 0 | E7: 41 | F7: 86182 | G7: 0 | H7: 0 | I7: 86182 | J7: 39 | K7: 0 | L7: 0 | M7: 39 | N7: 83587 | O7: 0 | P7: 0 | Q7: 83587
A8: iii. Debt (other than assured return) | B8: 256 | C8: 1255 | D8: 64 | E8: 1575 | F8: 7995788 | G8: 1119893 | H8: 8881 | I8: 9124562 | J8: 252 | K8: 888 | L8: 33 | M8: 1173 | N8: 8398310 | O8: 1171146 | P8: 5187 | Q8: 9574643
A9: iv. Debt (assured return) | B9: 0 | C9: 0 | D9: 0 | E9: 0 | F9: 0 | G9: 0 | H9: 0 | I9: 0 | J9: 0 | K9: 0 | L9: 0 | M9: 0 | N9: 0 | O9: 0 | P9: 0 | Q9: 0
A10: v. Infrastructure Development | B10: 0 | C10: 7 | D10: 0 | E10: 7 | F10: 0 | G10: 51 | H10: 0 | I10: 51 | J10: 0 | K10: 8 | L10: 0 | M10: 8 | N10: 0 | O10: 58 | P10: 0 | Q10: 58
A11: B. Growth/Equity Oriented Schemes (i+ii) | B11: 358 | C11: 126 | D11: 0 | E11: 484 | F11: 39340247 | G11: 1485964 | H11: 0 | I11: 40826211 | J11: 367 | K11: 140 | L11: 0 | M11: 507 | N11: 47514801 | O11: 1783660 | P11: 0 | Q11: 49298461
A12: i. ELSS | B12: 43 | C12: 21 | D12: 0 | E12: 64 | F12: 7881090 | G12: 570836 | H12: 0 | I12: 8451926 | J12: 44 | K12: 23 | L12: 0 | M12: 67 | N12: 8891334 | O12: 556025 | P12: 0 | Q12: 9447359
A13: ii. Others | B13: 315 | C13: 105 | D13: 0 | E13: 420 | F13: 31459157 | G13: 915128 | H13: 0 | I13: 32374285 | J13: 323 | K13: 117 | L13: 0 | M13: 440 | N13: 38623467 | O13: 1227635 | P13: 0 | Q13: 39851102
A14: C. Balanced Schemes | B14: 30 | C14: 0 | D14: 0 | E14: 30 | F14: 3548912 | G14: 0 | H14: 0 | I14: 3548912 | J14: 30 | K14: 0 | L14: 0 | M14: 30 | N14: 5317154 | O14: 0 | P14: 0 | Q14: 5317154
A15: D. Exchange Traded Fund (i+ii) | B15: 63 | C15: 0 | D15: 0 | E15: 63 | F15: 915127 | G15: 0 | H15: 0 | I15: 915127 | J15: 67 | K15: 0 | L15: 0 | M15: 67 | N15: 1107000 | O15: 0 | P15: 0 | Q15: 1107000
A16: i. Gold ETF | B16: 12 | C16: 0 | D16: 0 | E16: 12 | F16: 364110 | G16: 0 | H16: 0 | I16: 364110 | J16: 12 | K16: 0 | L16: 0 | M16: 12 | N16: 345006 | O16: 0 | P16: 0 | Q16: 345006
A17: ii. Other ETFs | B17: 51 | C17: 0 | D17: 0 | E17: 51 | F17: 551017 | G17: 0 | H17: 0 | I17: 551017 | J17: 55 | K17: 0 | L17: 0 | M17: 55 | N17: 761994 | O17: 0 | P17: 0 | Q17: 761994
A18: E. Fund of Funds Investing Overseas | B18: 29 | C18: 0 | D18: 0 | E18: 29 | F18: 109726 | G18: 0 | H18: 0 | I18: 109726 | J18: 28 | K18: 0 | L18: 0 | M18: 28 | N18: 95774 | O18: 0 | P18: 0 | Q18: 95774
A19: Total (A+B+C+D+E) | B19: 829 | C19: 1388 | D19: 64 | E19: 2281 | F19: 52784842 | G19: 2605908 | H19: 8881 | I19: 55399631 | J19: 835 | K19: 1036 | L19: 33 | M19: 1904 | N19: 63526322 | O19: 2954864 | P19: 5187 | Q19: 66486373
A20: Note: Data for No. of Schemes also includes serial plans.
A21: $ indicates as on December 31, 2017
A22: Source: SEBI.

Sheet 60
A1: Table 60: Trends in Transactions on Stock Exchanges by Mutual Funds (₹ crore)
A2: Year/ Month | B2: Equity | E2: Debt | H2: Total
B3: Gross Purchase | C3: Gross Sales | D3: Net Purchase/Sales | E3: Gross Purchase | F3: Gross Sales | G3: Net Purchase/Sales | H3: Gross Purchase | I3: Gross Sales | J3: Net Purchase/Sales
A4: 2016-17 | B4: 376874.41 | C4: 320315.76 | D4: 56558.65 | E4: 1605937.1 | F4: 1286083.61 | G4: 319853.49 | H4: 1982811.51 | I4: 1606399.37 | J4: 376412.14
A5: 2017-18$ | B5: 466255.68 | C5: 358945.95 | D5: 107309.73 | E5: 1298384.62 | F5: 1021545.48 | G5: 276839.14 | H5: 1764640.3 | I5: 1380491.43 | J5: 384148.87
A6: 2017-04-04 | B6: 42813.5 | C6: 31569.25 | D6: 11244.25 | E6: 134337.1 | F6: 78404.21 | G6: 55932.89 | H6: 177150.6 | I6: 109973.46 | J6: 67177.14
A7: 2017-05-04 | B7: 51059.27 | C7: 41701.6 | D7: 9357.67 | E7: 156917.4 | F7: 147403.03 | G7: 9514.37 | H7: 207976.67 | I7: 189104.63 | J7: 18872.04
A8: 2017-06-04 | B8: 42822.77 | C8: 33716.66 | D8: 9106.11 | E8: 147545.01 | F8: 134927.1 | G8: 12617.91 | H8: 190367.78 | I8: 168643.76 | J8: 21724.02
A9: 2017-07-04 | B9: 50268.51 | C9: 38468.66 | D9: 11799.85 | E9: 142148.53 | F9: 101761.03 | G9: 40387.5 | H9: 192417.04 | I9: 140229.69 | J9: 52187.35
A10: 2017-08-04 | B10: 50272.8 | C10: 32331.69 | D10: 17941.11 | E10: 137926.77 | F10: 101459.95 | G10: 36466.82 | H10: 188199.57 | I10: 133791.64 | J10: 54407.93
A11: 2017-09-04 | B11: 52152.77 | C11: 34695.93 | D11: 17456.84 | E11: 149222.98 | F11: 117367.74 | G11: 31855.24 | H11: 201375.75 | I11: 152063.67 | J11: 49312.08
A12: 2017-10-01 | B12: 50608.88 | C12: 40618.38 | D12: 9990.5 | E12: 119505.65 | F12: 90417.16 | G12: 29088.49 | H12: 170114.53 | I12: 131035.54 | J12: 39078.99
A13: 2017-11-01 | B13: 65075.86 | C13: 52995.76 | D13: 12080.1 | E13: 150135.02 | F13: 108156.65 | G13: 41978.37 | H13: 215210.88 | I13: 161152.41 | J13: 54058.47
A14: 2017-12-01 | B14: 61181.32 | C14: 52848.02 | D14: 8333.3 | E14: 160646.16 | F14: 141648.61 | G14: 18997.55 | H14: 221827.48 | I14: 194496.63 | J14: 27330.85
A15: $ indicates as on December 31, 2017
A16: Source: SEBI

Sheet 61
A1: Table 61: Asset Under Management by Portfolio Manager
A2: Year/Month | B2: 2016-17 | E2: 2017-18$
A3: Particulars | B3: Discretionary | C3: Non-Discretionary | D3: Advisory | E3: Discretionary# | F3: Non-Discretionary | G3: Advisory*
A4: No. of Clients | B4: 70994 | C4: 4674 | D4: 1482 | E4: 102334 | F4: 5278 | G4: 1836
A5: AUM (` in crore)
A6: Listed Equity | B6: 73912.86 | C6: 13623.49 | E6: 107708.24 | F6: 16205.34
A7: Unlisted Equity | B7: 683.15 | C7: 42.78 | E7: 609.35 | F7: 46.64
A8: Plain Debt | B8: 866612.64 | C8: 52883.64 | E8: 978938.09 | F8: 60777.89
A9: Structured Debt | B9: 281.6 | C9: 544.18 | D9: 188385 | E9: 304.9 | F9: 471.15 | G9: 215635.18
A10: Equity Derivative | B10: 188.19 | C10: -0.02 | E10: 295.43 | F10: 0
A11: Mutual Fund | B11: 8687.9 | C11: 7563.2 | E11: 9307.96 | F11: 9669.58
A12: Others | B12: 16669.64 | C12: 404.12 | E12: 18589.7 | F12: 687.88
A13: Total | B13: 967036 | C13: 75061.39 | E13: 1,115,753.68 | F13: 87,858.47
A14: 1. *Value of Assets for which Advisory Services are being given. 2. #Of the above AUM Rs. 954144.249 Crore is contributed by funds from EPFO/PFs. 3. The above data is based on the monthly reports received from portfolio managers.
A15: $ indicates as on December 31, 2017
A16: Source: SEBI.

Sheet 62
A1: Table 62: Progress Report of NSDL & CDSl (Listed Companies)
A2: Parameter | B2: Unit | C2: NSDL | H2: CDSL
C3: 2017-12-01 | D3: 2017-11-01 | E3: 2016-12-01 | F3: % Change during the year | G3: % Change during the month | H3: 2017-12-01 | I3: 2017-11-01 | J3: 2016-12-01 | K3: % Change during the year | L3: % Change during the month
A4: Number of companies signed up to make their shares available for dematerialization | B4: Number | C4: 5852 | D4: 5835 | E4: 6256 | F4: -6.457800512 | G4: 0.2913453299 | H4: 6671 | I4: 6652 | J4: 6489 | K4: 2.804746494 | L4: 0.2856283824
A5: Number of Depository Participants (registered) | B5: Number | C5: 276 | D5: 268 | E5: 267 | F5: 3.370786517 | G5: 2.985074627 | H5: 590 | I5: 589 | J5: 584 | K5: 1.02739726 | L5: 0.1697792869
A6: Number of Stock Exchanges (connected) | B6: Number | C6: 3 | D6: 3 | E6: 3 | F6: 0 | G6: 0 | H6: 3 | I6: 3 | J6: 3 | K6: 0 | L6: 0
A7: Number of Investors Accounts | B7: Lakh | C7: 167.07 | D7: 165.68 | E7: 152.52 | F7: 9.539732494 | G7: 0.8389666828 | H7: 141.28 | I7: 138.7914 | J7: 118.03464 | K7: 19.69367636 | L7: 1.793050578
A8: Quantity of Shares dematerialized | B8: crore | C8: 48324.1833 | D8: 48047.16558 | E8: 44374.02935 | F8: 8.901950115 | G8: 0.576553734 | H8: 14233.46354 | I8: 14160.77057 | J8: 13580.14 | K8: 4.810874881 | L8: 0.5133405499
A9: Value of Shares dematerialized | B9: ₹ crore | C9: 13040219.74 | D9: 12521150.25 | E9: 9127038.289 | F9: 42.87460324 | G9: 4.145541593 | H9: 1912134.007 | I9: 1842777.657 | J9: 1336388.04 | K9: 43.08224481 | L9: 3.76368522
A10: Quantity of Securities dematerialized # | B10: crore | C10: 51578.92762 | D10: 51432.67306 | E10: 46701.35274 | F10: 10.4441833 | G10: 0.2843611809 | H10: 15253.24431 | I10: 15133.19416 | J10: 14182.75 | K10: 7.54786141 | L10: 0.7932902595
A11: Value of Securities dematerialized # | B11: ₹ crore | C11: 15549730.5 | D11: 15002735.6 | E11: 11218527.39 | F11: 38.6075905 | G11: 3.645967791 | H11: 2002088.587 | I11: 1930811.138 | J11: 1406576.42 | K11: 42.3377044 | L11: 3.691580584
A12: Quantity of shares settled during the month | B12: crore | C12: 1234.292346 | D12: 1235.732726 | E12: 715.6840271 | F12: 72.46330775 | G12: -0.1165608039 | H12: 818.0845663 | I12: 888.3270543 | J12: 444.6774459 | K12: 83.97257919 | L12: -7.907277805
A13: Average Quantity of shares settled daily (quantity of shares settled during the month (divided by 30)) | B13: crore | C13: 41.14307821 | D13: 41.19109087 | E13: 23.85613424 | F13: 72.46330775 | G13: -0.1165608039 | H13: 26.38982472 | I13: 29.61090181 | J13: 14.82258153 | K13: 78.03797986 | L13: -10.87801078
A14: Value of shares settled during the month in dematerialized form | B14: ₹ crore | C14: 350656.799 | D14: 304223.1719 | E14: 170448.4621 | F14: 105.7259976 | G14: 15.2630146 | H14: 90018.82449 | I14: 100369.0727 | J14: 37720.08246 | K14: 138.6495963 | L14: -10.31218875
A15: Average Value of shares settled daily (value of shares settled during the month (divided by 30)) | B15: ₹ crore | C15: 11688.55997 | D15: 10140.7724 | E15: 5681.615402 | F15: 105.7259976 | G15: 15.2630146 | H15: 2903.833048 | I15: 3345.635757 | J15: 1257.336082 | K15: 130.9512222 | L15: -13.20534395
A16: Training Programmes conducted for representatives of Corporates, DPs and Brokers | B16: Number | C16: 7 | D16: 7 | E16: 9 | F16: -22.22222222 | G16: 0 | H16: 932 | I16: 56 | J16: 58 | K16: 1506.896552 | L16: 1564.285714
A17: The ratio of dematerialized equity shares to the total outstanding shares (market value) | B17: percent | C17: 86.06 | D17: 85.54 | E17: 85.59 | F17: 0.5491295712 | G17: 0.6079027356 | H17: 13.27 | I17: 13.31629854 | J17: 13.39936302 | K17: -0.96544153 | L17: -0.3476832898
A18: Notes: 1. Shares includes only equity shares. 2. Securities include common equity shares, preference shares, debenture, MF units, etc. 3. No. of days taken for calculating Daily Average is 30 days instead of Actual settlement days. 4. Quantity and value of shares mentioned are single sided. 5. #Source for listed securities information: Issuer/ NSE/BSE.
A19: Source: NSDL and CDSL.

Sheet 63
A1: Table 63: Progress of Dematerialisation at NSDL and CDSL (Listed and Unlisted Companies)
A2: Year/ Month | B2: NSDL | G2: CDSL
B3: Companies Live | C3: DPs Live | D3: DPs Locations | E3: Demat Quantity (million securities) | F3: Demat Value (₹ crore) | G3: Companies Live | H3: DPs Live | I3: DPs Locations | J3: Demat Quantity (million securities) | K3: Demat Value (₹ crore)
A4: 2016-17 | B4: 17835 | C4: 264 | D4: 27389 | E4: 1317620 | F4: 14648687 | G4: 9887 | H4: 588 | I4: 17489 | J4: 255227.4 | K4: 1773585.34
A5: 2017-18$ | B5: 19310 | C5: 276 | D5: 28005 | E5: 1439316.25 | F5: 17674693.16 | G5: 10343 | H5: 590 | I5: 17328 | J5: 269398.0097 | K5: 2693980.097
A6: 2017-04-01 | B6: 18039 | C6: 265 | D6: 27380 | E6: 1336753.74 | F6: 12660053.33 | G6: 9934 | H6: 589 | I6: 17481 | J6: 253520.911 | K6: 1830695.08
A7: 2017-05-01 | B7: 18233 | C7: 268 | D7: 27395 | E7: 1349820.23 | F7: 15139573.82 | G7: 9968 | H7: 589 | I7: 17415 | J7: 254730.0435 | K7: 1799049.731
A8: 2017-06-01 | B8: 18396 | C8: 268 | D8: 27417 | E8: 1362664.81 | F8: 15185478.46 | G8: 10017 | H8: 590 | I8: 17387 | J8: 256094.3919 | K8: 1766361.563
A9: 2017-07-01 | B9: 18526 | C9: 268 | D9: 27529 | E9: 1382175.59 | F9: 15786686.36 | G9: 10080 | H9: 590 | I9: 17265 | J9: 256968.9806 | K9: 1874673.429
A10: 2017-08-04 | B10: 18715 | C10: 266 | D10: 27539 | E10: 1390210.64 | F10: 15818656.56 | G10: 10126 | H10: 590 | I10: 17322 | J10: 259731.2158 | K10: 1851407.074
A11: 2017-09-04 | B11: 18870 | C11: 267 | D11: 27809 | E11: 1409552.15 | F11: 15844659.57 | G11: 10182 | H11: 590 | I11: 17313 | J11: 263733.7603 | K11: 1846694.623
A12: 2017-10-01 | B12: 18996 | C12: 268 | D12: 27885 | E12: 1431491.52 | F12: 16877973.35 | G12: 10217 | H12: 589 | I12: 17338 | J12: 265065.2607 | K12: 2079707.483
A13: 2017-11-01 | B13: 19715 | C13: 268 | D13: 27964 | E13: 1437338.95 | F13: 17132418.73 | G13: 10221 | H13: 589 | I13: 17375 | J13: 266866.899 | K13: 2079392.039
A14: 2017-12-01 | B14: 19310 | C14: 276 | D14: 28005 | E14: 1439316.25 | F14: 17674693.16 | G14: 10343 | H14: 590 | I14: 17328 | J14: 269398.0097 | K14: 2693980.097
A15: Notes : 1. For CDSL, the current and historical data of Companies Live has been revised to exclude MF schemes count. 2. The Companies Live figure includes only the number of mutual fund companies and not the mutual fund schemes. 3. DPs Locations' represents the total live (main DPs and branch DPs as well as non-live (back office connected collection centres).
A17: $ indicates as on December 31, 2017
A18: Source: NSDL and CDSL.
K20: `

Sheet 64
A1: Table 64: Depository Statistics
A2: Particulars | B2: Unit | C2: Debt | E2: Equity | G2: Others | I2: Total
C3: Listed | D3: Unlisted | E3: Listed | F3: Unlisted | G3: Listed | H3: Unlisted | I3: Listed | J3: Unlisted
A4: NSDL
A5: Issuers(debt)/ Companies(equity), who have issued the active instument | B5: Number | C5: 799 | D5: 1402 | E5: 5852 | F5: 10597 | G5: 64 | H5: 3744 | I5: 6715 | J5: 15743
A6: Active Instruments | B6: Number | C6: 12023 | D6: 5257 | E6: 11763 | F6: 11123 | G6: 6933 | H6: 29552 | I6: 30719 | J6: 45932
A7: Dematerialised Quantity | B7: Lakh | C7: 109126.9472 | D7: 333483.1723 | E7: 4832418.331 | F7: 6539167.564 | G7: 216347.4843 | H7: 2362619.083 | I7: 5157892.762 | J7: 9235269.819
A8: Dematerialised Value | B8: ₹ crore | C8: 2399884.919 | D8: 369558.7477 | E8: 13040219.74 | F8: 623724.2587 | G8: 109625.8405 | H8: 1131679.65 | I8: 15549730.5 | J8: 2124962.656
A9: Quantity settled during the month | B9: Lakh | C9: 3094.23322 | D9: 1330.60058 | E9: 123429.2346 | F9: 36.0207 | G9: 3228.266042 | H9: 1412.593406 | I9: 129751.7339 | J9: 2779.214686
A10: Value Settled during the month | B10: ₹ crore | C10: 358268.8451 | D10: 20029.78709 | E10: 350656.799 | F10: 22.28697545 | G10: 2382.011814 | H10: 318.3226189 | I10: 711307.6559 | J10: 20370.39669
A11: CDSL
A12: Issuers(debt)/ Companies(equity), who have issued the active instument | B12: Number | C12: 567 | D12: 310 | E12: 6671 | F12: 2708 | G12: 2356 | H12: 398 | I12: 9594 | J12: 3416
A13: Active Instruments | B13: Number | C13: 9439 | D13: 1570 | E13: 6783 | F13: 2868 | G13: 17880 | H13: 1460 | I13: 34102 | J13: 5898
A14: Dematerialised Quantity | B14: Lakh | C14: 3006.08412 | D14: 40791.84704 | E14: 1423346.354 | F14: 996185.0422 | G14: 98971.99289 | H14: 131678.7765 | I14: 1525324.431 | J14: 1168655.666
A15: Dematerialised Value | B15: ₹ crore | C15: 52892.4803 | D15: 25079.4305 | E15: 1912134.007 | F15: 105735.7074 | G15: 37062.1002 | H15: 21771.927 | I15: 2002088.587 | J15: 152587.0649
A16: Quantity settled during the month | B16: Lakh | C16: 27.22523 | D16: 0 | E16: 81808.45663 | F16: 0 | G16: 11968.01291 | H16: 0 | I16: 93803.69477 | J16: 0
A17: Value Settled during the month | B17: ₹ crore | C17: 1188.273934 | D17: 0 | E17: 90018.82449 | F17: 0 | G17: 6062.162031 | H17: 0 | I17: 97269.26046 | J17: 0
A18: Note: The categories included in Others are Preference Shares, Mutual Fund Units, Warrants, PTCs, Treasury Bills, CPs, CDs and Government Securities.
A19: Source: NSDL and CDSL.

Sheet 65
A1: Table 65 : Number of Commodities Permitted and traded at Exchanges
A2: Exchanges | B2: Particulars | C2: Agriculture | D2: Metals other than bullion | E2: Bullion Futures | F2: Bullion Option | G2: Energy | H2: Gems and Stones
A3: NCDEX | B3: Permitted for trading | C3: 21 | D3: 2 | E3: 1 | F3: 0 | G3: 1 | H3: 0
B4: Contracts floated | C4: 21 | D4: 1 | E4: 1 | F4: 0 | G4: 0 | H4: 0
B5: Traded | C5: 17 | D5: 0 | E5: 0 | F5: 0 | G5: 0 | H5: 0
A6: MCX | B6: Permitted for trading | C6: 9 | D6: 5 | E6: 2 | F6: 1 | G6: 2 | H6: 0
B7: Contracts floated | C7: 7 | D7: 5 | E7: 2 | F7: 1 | G7: 2 | H7: 0
B8: Traded | C8: 5 | D8: 5 | E8: 2 | F8: 1 | G8: 2 | H8: 0
A9: NMCE | B9: Permitted for trading | C9: 11 | D9: 0 | E9: 0 | F9: 0 | G9: 0 | H9: 0
B10: Contracts floated | C10: 11 | D10: 0 | E10: 0 | F10: 0 | G10: 0 | H10: 0
B11: Traded | C11: 7 | D11: 0 | E11: 0 | F11: 0 | G11: 0 | H11: 0
A12: ICEX | B12: Permitted for trading* | C12: 0 | D12: 0 | E12: 0 | F12: 0 | G12: 0 | H12: 1
B13: Contracts floated | C13: 0 | D13: 0 | E13: 0 | F13: 0 | G13: 0 | H13: 1
B14: Traded | C14: 0 | D14: 0 | E14: 0 | F14: 0 | G14: 0 | H14: 1
A15: HCE, Hapur (Regional Exchange) | B15: Permitted for trading | C15: 1 | D15: 0 | E15: 0 | F15: 0 | G15: 0 | H15: 0
B16: Contracts floated | C16: 1 | D16: 0 | E16: 0 | F16: 0 | G16: 0 | H16: 0
B17: Traded | C17: 1 | D17: 0 | E17: 0 | F17: 0 | G17: 0 | H17: 0
A18: Source: NCDEX, MCX, NMCE, ICEX and HCE, Hapur.

Sheet 66
A1: Table 66: Trends in Commodity Indices
A2: Year/ Month | B2: MCX COMDEX | F2: NCDEX Dhaanya
B3: Open | C3: High | D3: Low | E3: Close | F3: Open | G3: High | H3: Low | I3: Close
A4: 2016-17 | B4: 2730.58 | C4: 3435.43 | D4: 2673.76 | E4: 3242.79 | F4: 2869.73 | G4: 3411.86 | H4: 2896.54 | I4: 3080.79
A5: 2017-18$ | B5: =B6 -> 3244.07 | C5: =MAX(C6:C14) -> 3571.14 | D5: =MIN(D6:D14) -> 2966.02 | E5: =E14 -> 3568.2 | F5: =F6 -> 3107.24 | G5: =MAX(G6:G14) -> 3185.09 | H5: =MIN(H6:H14) -> 2794.83 | I5: =I14 -> 3013.9
A6: 2017-04-01 | B6: 3244.07 | C6: 3291.16 | D6: 3110.03 | E6: 3148.19 | F6: 3107.24 | G6: 3185.09 | H6: 3013.79 | I6: 3019.45
A7: 2017-05-02 | B7: 3147.24 | C7: 3186.87 | D7: 2995.12 | E7: 3110.18 | F7: 3033.29 | G7: 3039.36 | H7: 2795.32 | I7: 2807.32
A8: 2017-06-03 | B8: 3109.91 | C8: 3116.85 | D8: 2966.02 | E8: 3056.81 | F8: 2821.07 | G8: 2907.61 | H8: 2794.83 | I8: 2875.74
A9: 2017-07-04 | B9: 3061.59 | C9: 3188.9 | D9: 2976.32 | E9: 3174.63 | F9: 2896.51 | G9: 3000.64 | H9: 2850.97 | I9: 2971.27
A10: 2017-08-05 | B10: 3173.82 | C10: 3301.53 | D10: 3131.78 | E10: 3299.37 | F10: 2984.42 | G10: 3115.83 | H10: 2949.69 | I10: 3024.85
A11: 2017-09-06 | B11: 3299.3 | C11: 3391.89 | D11: 3285.27 | E11: 3352.9 | F11: 3030.77 | G11: 3050.25 | H11: 2953.14 | I11: 2988.44
A12: 2017-10-07 | B12: 3354.4 | C12: 3428.29 | D12: 3324.59 | E12: 3416.33 | F12: 3038.54 | G12: 3038.54 | H12: 2912.02 | I12: 2941.89
A13: 2017-11-08 | B13: 3417.59 | C13: 3538.23 | D13: 3417.59 | E13: 3455.24 | F13: 2948.34 | G13: 3078.34 | H13: 2930.34 | I13: 3051.76
A14: 2017-12-09 | B14: 3467.44 | C14: 3571.14 | D14: 3380.06 | E14: 3568.2 | F14: 3064.23 | G14: 3079.85 | H14: 2953.98 | I14: 3013.9
A15: $ indicates as on December 31, 2017
A16: Source: MCX and NCDEX

Sheet 67
A1: Table 67: Trends in Commodity Futures at MCX
A2: Year/ Month | B2: No.of Trading days | C2: Agriculture | F2: Metals | I2: Bullion | L2: Energy | O2: Total | R2: Open interest at the end of the period
C3: Volume ('000 tonnes) | D3: No. of contracts | E3: Turnover (` crore) | F3: Volume ('000 tonnes) | G3: No. of contracts | H3: Turnover (` crore) | I3: Volume ('000 tonnes) | J3: No. of contracts | K3: Turnover (`crore) | L3: Volume ('000 tonnes)* | M3: No. of contracts | N3: Turnover (`crore) | O3: Volume ('000 tonnes) | P3: No. of contracts | Q3: Turnover (`crore) | R3: Volume ('000 tonnes) | S3: No. of contracts | T3: Value (` crore)
T4: (Rs.crore)
A5: 2016-17 | B5: 260 | C5: 15947.23798 | D5: 3087740 | E5: 139312.4643 | F5: 93077.85775 | G5: 64421776 | H5: 1753887.382 | I5: 207.3174054 | J5: 37151550 | K5: 2040270.47 | L5: 674224.5528 | M5: 117849477 | N5: 1932190.901 | O5: 783456.9659 | P5: 222510543 | Q5: 5865661.217 | R5: 539.5617268 | S5: 284204 | T5: 9229.76769
A6: 2017-18$ | B6: =SUM(B7:B15) -> 191 | C6: =SUM(C7:C15) -> 8583.31065 | D6: 1709544 | E6: 81989.08931 | F6: 70321.12975 | G6: 49812665 | H6: 1507534.576 | I6: 125.9268744 | J6: 21117820 | K6: 1034884.619 | L6: 430951.3631 | M6: 78783140 | N6: 1257649.984 | O6: 509981.731 | P6: 151423169 | Q6: 3882058.269 | R6: 632.8148032 | S6: 324013 | T6: 11806.88764
A7: 2017-04-01 | B7: 19 | C7: 1079.14241 | D7: 195664 | E7: 9267.313548 | F7: 6867.47915 | G7: 4866800 | H7: 135571.8829 | I7: 10.69306777 | J7: 1908513 | K7: 100564.9968 | L7: 39029.26932 | M7: 6962917 | N7: 118855.9395 | O7: 46986.58395 | P7: 13933894 | Q7: 364260.1328 | R7: 553.3746268 | S7: 323663 | T7: 9003.386471
A8: 2017-05-02 | B8: 23 | C8: 1099.9832 | D8: 203738 | E8: 9589.152051 | F8: 6807.9145 | G8: 4826541 | H8: 130356.9046 | I8: 13.99577191 | J8: 2435833 | K8: 123722.6986 | L8: 56277.38417 | M8: 9755773 | N8: 157675.116 | O8: 64199.27764 | P8: 17221885 | Q8: 421343.8712 | R8: 514.2798986 | S8: 329663 | T8: 8848.429089
A9: 2017-06-03 | B9: 22 | C9: 852.82058 | D9: 162233 | E9: 7142.621791 | F9: 7512.0076 | G9: 5163533 | H9: 145600.1683 | I9: 15.06321453 | J9: 2475978 | K9: 121474.2381 | L9: 53456.70064 | M9: 9454043 | N9: 141609.3166 | O9: 61836.59203 | P9: 17255787 | Q9: 415826.3447 | R9: 605.3695921 | S9: 343340 | T9: 10151.02375
A10: 2017-07-04 | B10: 21 | C10: 873.12412 | D10: 179396 | E10: 7696.873703 | F10: 7963.20015 | G10: 5108986 | H10: 157997.743 | I10: 16.6072936 | J10: 2733470 | K10: 129695.6974 | L10: 56695.32961 | M10: 10039355 | N10: 149330.5231 | O10: 65548.26117 | P10: 18061207 | Q10: 444720.8371 | R10: 468.0610163 | S10: 313150 | T10: 10263.78277
A11: 2017-08-05 | B11: 22 | C11: 874.14774 | D11: 208398 | E11: 9295.732136 | F11: 8648.3603 | G11: 5873954 | H11: 185699.8247 | I11: 19.43217219 | J11: 3093896 | K11: 146100.1076 | L11: 56456.02401 | M11: 9806338 | N11: 147533.0244 | O11: 65997.96422 | P11: 18982586 | Q11: 488628.6888 | R11: 580.9391743 | S11: 291098 | T11: 11187.99787
A12: 2017-09-06 | B12: 21 | C12: 984.15925 | D12: 185263 | E12: 8783.869064 | F12: 8955.03215 | G12: 6461517 | H12: 199021.2305 | I12: 14.29293988 | J12: 2507637 | K12: 130342.5446 | L12: 48763.89157 | M12: 8900295 | N12: 134728.8294 | O12: 58717.37591 | P12: 18054712 | Q12: 472876.4736 | R12: 546.4756055 | S12: 295141 | T12: 11345.40023
A13: 2017-10-07 | B13: 21 | C13: 718.49541 | D13: 150155 | E13: 7163.91203 | F13: 8067.8312 | G13: 5923130 | H13: 189804.1393 | I13: 10.6527686 | J13: 1784143 | K13: 88600.84388 | L13: 40624.13915 | M13: 7628871 | N13: 121529.4778 | O13: 49421.11912 | P13: 15486299 | Q13: 407098.373 | R13: 621.7972699 | S13: 325106 | T13: 11444.69109
A14: 2017-11-08 | B14: 22 | C14: 1083.24751 | D14: 210267 | E14: 11401.24682 | F14: 8312.0983 | G14: 6378793 | H14: 198452.7446 | I14: 14.25202928 | J14: 2345664 | K14: 111979.987 | L14: 43401.96379 | M14: 8435823 | N14: 148429.7544 | O14: 52811.56163 | P14: 17370547 | Q14: 470263.7328 | R14: 477.4620006 | S14: 306732 | T14: 9959.157514
A15: 2017-12-09 | B15: 20 | C15: 1018.19043 | D15: 214430 | E15: 11648.36817 | F15: 7187.2064 | G15: 5209411 | H15: 165029.9386 | I15: 10.93761668 | J15: 1832686 | K15: 82403.50525 | L15: 36246.66083 | M15: 7799725 | N15: 137958.0028 | O15: 44462.99527 | P15: 15056252 | Q15: 397039.8148 | R15: 632.8148032 | S15: 324013 | T15: 11806.88764
A16: ='66'!A15 -> $ indicates as on December 31, 2017
A17: * Natural Gas voulmes are in mm BTU and is not included for computing the Total Volume and Total Open Interest in '000 tonnes
A18: Source: MCX
E19: =E6/Q6 -> 0.02112000481

Sheet 68
A1: Table 68: Trends in Commodity Futures at NCDEX
A2: Year/ Month | B2: No.of Trading days | C2: Agriculture | F2: Bullion | I2: Total | L2: Open interest at the end of the period
C3: Volume ('000 tonnes) | D3: No. of contracts | E3: Turnover (` crore) | F3: Volume ('000 tonnes) | G3: No. of contracts | H3: Turnover (` crore) | I3: Volume ('000 tonnes) | J3: No. of contracts | K3: Turnover (` crore) | L3: Volume ('000 tonnes) | M3: No. of Contracts | N3: Value (` crore)
N4: (Rs.crore)
A5: 2016-17 | B5: 260 | C5: 128789.688 | D5: 17750779 | E5: 596529.7277 | F5: 0.001182 | G5: 1182 | H5: 322.25477 | I5: 128789.6892 | J5: 17751961 | K5: 596851.9824 | L5: 1065.356 | M5: 127272 | N5: 4467.9
A6: 2017-18$ | B6: =SUM(B7:B15) -> 187 | C6: =SUM(C7:C15) -> 94300.321 | D6: 10814900 | E6: 419223.9105 | F6: 0 | G6: 0 | H6: 0 | I6: 94300.321 | J6: 10814900 | K6: 419223.9105 | L6: 1265.354 | M6: 149703 | N6: 5634.01
A7: 2017-04-01 | B7: 19 | C7: 9237.851 | D7: 1084152 | E7: 43954.75728 | F7: 0 | G7: 0 | H7: 0 | I7: 9237.851 | J7: 1084152 | K7: 43954.75728 | L7: 1035.741 | M7: 118879 | N7: 4605.26
A8: 2017-05-02 | B8: 22 | C8: 10125.658 | D8: 1173570 | E8: 43262.84151 | F8: 0 | G8: 0 | H8: 0 | I8: 10125.658 | J8: 1173570 | K8: 43262.84151 | L8: 1002.683 | M8: 116185 | N8: 3914.99
A9: 2017-06-03 | B9: 21 | C9: 10074.546 | D9: 1165261 | E9: 39094.04682 | F9: 0 | G9: 0 | H9: 0 | I9: 10074.546 | J9: 1165261 | K9: 39094.04682 | L9: 880.562 | M9: 105304 | N9: 3582.22
A10: 2017-07-04 | B10: 21 | C10: 9125.386 | D10: 1065325 | E10: 39623.15697 | F10: 0 | G10: 0 | H10: 0 | I10: 9125.386 | J10: 1065325 | K10: 39623.15697 | L10: 782.824 | M10: 95341 | N10: 3412.83
A11: 2017-08-05 | B11: 21 | C11: 11496.604 | D11: 1309097 | E11: 54370.46542 | F11: 0 | G11: 0 | H11: 0 | I11: 11496.604 | J11: 1309097 | K11: 54370.46542 | L11: 824.076 | M11: 100138 | N11: 4033.6
A12: 2017-09-06 | B12: 21 | C12: 10473.033 | D12: 1194226 | E12: 50573.88258 | F12: 0 | G12: 0 | H12: 0 | I12: 10473.033 | J12: 1194226 | K12: 50573.88258 | L12: 769 | M12: 93632 | N12: 3702.88
A13: 2017-10-07 | B13: 20 | C13: 9079.346 | D13: 1026661 | E13: 40810.80379 | F13: 0 | G13: 0 | H13: 0 | I13: 9079.346 | J13: 1026661 | K13: 40810.80379 | L13: 949.441 | M13: 112092 | N13: 4153.8
A14: 2017-11-08 | B14: 22 | C14: 12801.675 | D14: 1432278 | E14: 56073.36512 | F14: 0 | G14: 0 | H14: 0 | I14: 12801.675 | J14: 1432278 | K14: 56073.36512 | L14: 1171.184 | M14: 136409 | N14: 5351.78
A15: 2017-12-09 | B15: 20 | C15: 11886.222 | D15: 1364330 | E15: 51460.59097 | F15: 0 | G15: 0 | H15: 0 | I15: 11886.222 | J15: 1364330 | K15: 51460.59097 | L15: 1265.354 | M15: 149703 | N15: 5634.01
A16: ='66'!A15 -> $ indicates as on December 31, 2017
A17: Source: NCDEX

Sheet 69
A1: Table 69: Trends in Commodity Futures at NMCE
A2: Year/ Month | B2: No.of Trading days | C2: Agriculture | F2: Open interest at the end of the period
C3: Volume ('000 tonnes) | D3: No. of contracts | E3: Turnover (` crore) | F3: Volume ('000 tonnes) | G3: No. of contracts | H3: Value (` crore)
H4: (Rs.crore)
A5: 2016-17 | B5: 247 | C5: 5564.19085 | D5: 1230289 | E5: 28441.53827 | F5: 4.815625 | G5: 3328 | H5: 51.2250702
A6: 2017-18$ | B6: =SUM(B7:B15) -> 186 | C6: =SUM(C7:C15) -> 5491.2677 | D6: 1195552 | E6: 25057.97787 | F6: 6.80135 | G6: 4570 | H6: 66.596897
A7: 2017-04-01 | B7: 18 | C7: 470.041675 | D7: 135463 | E7: 2366.897159 | F7: 3.870275 | G7: 2710 | H7: 40.9497228
A8: 2017-05-02 | B8: 22 | C8: 600.54985 | D8: 157039 | E8: 2769.505565 | F8: 4.088575 | G8: 2661 | H8: 35.5575648
A9: 2017-06-03 | B9: 21 | C9: 699.019325 | D9: 171796 | E9: 3013.361713 | F9: 4.546525 | G9: 3025 | H9: 41.0600476
A10: 2017-07-04 | B10: 21 | C10: 622.28 | D10: 151437 | E10: 2751.363557 | F10: 4.123975 | G10: 2398 | H10: 34.8031516
A11: 2017-08-05 | B11: 21 | C11: 613.65285 | D11: 142262 | E11: 2711.297769 | F11: 4.071225 | G11: 2431 | H11: 35.7610862
A12: 2017-09-06 | B12: 21 | C12: 678.888025 | D12: 126478 | E12: 3092.551624 | F12: 4.631425 | G12: 2758 | H12: 40.7590635
A13: 2017-10-07 | B13: 20 | C13: 573.00375 | D13: 98410 | E13: 2664.654333 | F13: 3.965725 | G13: 2325 | H13: 33.4080282
A14: 2017-11-08 | B14: 22 | C14: 626.540075 | D14: 104055 | E14: 2840.366291 | F14: 4.151075 | G14: 2697 | H14: 40.667895
A15: 2017-12-09 | B15: 20 | C15: 607.29215 | D15: 108612 | E15: 2847.979863 | F15: 6.80135 | G15: 4570 | H15: 66.596897
A16: ='66'!A15 -> $ indicates as on December 31, 2017
A17: Source: NMCE
E34: `

Sheet 70
A1: Table 70:Trends in Gold Options at MCX
A2: Year / Monrh | B2: Call option | D2: Put option | F2: Total | H2: Open interest at month end (No. of conrtracts) | I2: Notional Value of OI
B3: No. of contracts | C3: Turnover | D3: No. of contracts | E3: Turnover | F3: No. of Contracts | G3: Turnover
A4: 2017-18$ | B4: =SUM(B5:B7) -> 17117 | C4: =SUM(C5:C7) -> 5109.46 | D4: 7919 | E4: 2329.37 | F4: 25036 | G4: 7438.83 | H4: 1341 | I4: 396
A5: 2017-10-01 | B5: 6923 | C5: 2077.91 | D5: 4129 | E5: 1219.68 | F5: 11052 | G5: 3297.59 | H5: 1800 | I5: 536.82
A6: 2017-11-01 | B6: 6563 | C6: 1956.72 | D6: 3095 | E6: 909.05 | F6: 9658 | G6: 2865.77 | H6: 367 | I6: 109.06
A7: 2017-12-01 | B7: 3631 | C7: 1074.83 | D7: 695 | E7: 200.64 | F7: 4326 | G7: 1275.47 | H7: 1341 | I7: 396
A8: ='69'!A16 -> $ indicates as on December 31, 2017
A9: Note: Option trading in gold contracts commenced at MCX on 17th October, 2017.
A10: 1. Values provided in ‘No. of contracts’ field is Volume in lots and Turnover values are notional value in ₹ crore.
A11: 2. Values provided for ‘Open interest’ are inclusive of both call and put.

Sheet 71
A1: Table 71: Trends in Diamond Futures at ICEX
A2: Year/ Month | B2: No.of Trading days | C2: Diamond | F2: Open interest at the end of the period
C3: Volume (in Cents) | D3: No. of contracts | E3: Turnover (₹ crore) | F3: Open Interest (Cents) | G3: No. of contracts | H3: Value (₹ crore)
H4: (Rs.crore)
A5: 2017-18$ | B5: =SUM(B6:B10) -> 88 | C5: =SUM(C6:C10) -> 2689669 | D5: 23 | E5: 840.656 | F5: 57225 | G5: 6 | H5: 16.14
A6: 2017-08-05 | B6: 4 | C6: 25588 | D6: 3 | E6: 8.23 | F6: 4541 | G6: 3 | H6: 1.461236
A7: 2017-09-06 | B7: 21 | C7: 439368 | D7: 3 | E7: 141.6703 | F7: 12993 | G7: 3 | H7: 4.2053781
A8: 2017-10-07 | B8: 21 | C8: 514590 | D8: 3 | E8: 165.3657 | F8: 12825 | G8: 3 | H8: 4.0980169
A9: 2017-11-08 | B9: 22 | C9: 815952 | D9: 7 | E9: 257.23 | F9: 26417 | G9: 6 | H9: 7.8545865
A10: 2017-12-09 | B10: 20 | C10: 894171 | D10: 7 | E10: 268.16 | F10: 57225 | G10: 6 | H10: 16.14
A11: ='66'!A15 -> $ indicates as on December 31, 2017
A12: Note: Volume & Turnover is for the month & OI details are for the last day of the month.
A13: Source: ICEX

Sheet 72
A1: Table 72: Category-wise Share in Turnover at MCX and NCDEX (percent)
A2: Year/ Month | B2: Percentage Share in Turnover at MCX | F2: Percentage Share in Turnover at NCDEX
B3: Agriculture | C3: Metals | D3: Bullion | E3: Energy | F3: Agriculture | G3: Bullion
A4: 2016-17 | B4: 2.375051323 | C4: 29.90093217 | D4: 34.78329883 | E4: 32.94071768 | F4: 99.94 | G4: 0.06
A5: 2017-18$ | B5: =('67'!E6/'67'!$Q6)*100 -> 2.112000481 | C5: =('67'!H6/'67'!$Q6)*100 -> 38.83338353 | D5: =('67'!K6/'67'!$Q6)*100 -> 26.65814234 | E5: =('67'!N6/'67'!$Q6)*100 -> 32.39647365 | F5: =SUM(B5:E5) -> 100 | G5: 0
A6: 2017-04-01 | B6: =('67'!E7/'67'!$Q7)*100 -> 2.544147084 | C6: =('67'!H7/'67'!$Q7)*100 -> 37.21842462 | D6: =('67'!K7/'67'!$Q7)*100 -> 27.60801628 | E6: =('67'!N7/'67'!$Q7)*100 -> 32.62941201 | F6: =SUM(B6:E6) -> 100 | G6: 0
A7: 2017-05-02 | B7: =('67'!E8/'67'!$Q8)*100 -> 2.27584942 | C7: =('67'!H8/'67'!$Q8)*100 -> 30.93836495 | D7: =('67'!K8/'67'!$Q8)*100 -> 29.36383014 | E7: =('67'!N8/'67'!$Q8)*100 -> 37.42195549 | F7: 100 | G7: 0
A8: 2017-06-03 | B8: =('67'!E9/'67'!$Q9)*100 -> 1.717693427 | C8: =('67'!H9/'67'!$Q9)*100 -> 35.01465698 | D8: =('67'!K9/'67'!$Q9)*100 -> 29.21273257 | E8: =('67'!N9/'67'!$Q9)*100 -> 34.05491702 | F8: 100 | G8: 0
A9: 2017-07-04 | B9: =('67'!E10/'67'!$Q10)*100 -> 1.730720277 | C9: =('67'!H10/'67'!$Q10)*100 -> 35.52739826 | D9: =('67'!K10/'67'!$Q10)*100 -> 29.16339568 | E9: =('67'!N10/'67'!$Q10)*100 -> 33.57848578 | F9: 100 | G9: 0
A10: 2017-08-05 | B10: =('67'!E11/'67'!$Q11)*100 -> 1.902412271 | C10: =('67'!H11/'67'!$Q11)*100 -> 38.00428197 | D10: =('67'!K11/'67'!$Q11)*100 -> 29.90002653 | E10: =('67'!N11/'67'!$Q11)*100 -> 30.19327923 | F10: 100 | G10: 0
A11: 2017-09-06 | B11: =('67'!E12/'67'!$Q12)*100 -> 1.857539877 | C11: =('67'!H12/'67'!$Q12)*100 -> 42.08736142 | D11: =('67'!K12/'67'!$Q12)*100 -> 27.56376176 | E11: =('67'!N12/'67'!$Q12)*100 -> 28.49133695 | F11: 100 | G11: 0
A12: 2017-10-07 | B12: =('67'!E13/'67'!$Q13)*100 -> 1.75974961 | C12: =('67'!H13/'67'!$Q13)*100 -> 46.6236546 | D12: =('67'!K13/'67'!$Q13)*100 -> 21.7639887 | E12: =('67'!N13/'67'!$Q13)*100 -> 29.8526071 | F12: 100 | G12: 0
A13: 2017-11-08 | B13: =('67'!E14/'67'!$Q14)*100 -> 2.424436763 | C13: =('67'!H14/'67'!$Q14)*100 -> 42.20030819 | D13: =('67'!K14/'67'!$Q14)*100 -> 23.81216735 | E13: =('67'!N14/'67'!$Q14)*100 -> 31.5630877 | F13: 100 | G13: 0
A14: 2017-12-09 | B14: =('67'!E15/'67'!$Q15)*100 -> 2.933803546 | C14: =('67'!H15/'67'!$Q15)*100 -> 41.56508552 | D14: =('67'!K15/'67'!$Q15)*100 -> 20.75446899 | E14: =('67'!N15/'67'!$Q15)*100 -> 34.74664195 | F14: 100 | G14: 0
A15: ='66'!A15 -> $ indicates as on December 31, 2017
A16: Source: MCX and NCDEX

Sheet 73
A1: Table 73: Participant-wise Percentage Share of Turnover & Open Interest at MCX
A2: Year/ Month | B2: Turnover | F2: Open Interest at the end of period
B3: Agriculture Commodities | D3: Non-Agriculture Commodities | F3: Agriculture Commodities | H3: Non-Agriculture Commodities
B4: Pro | C4: Client | D4: Pro | E4: Client | F4: Pro | G4: Client | H4: Pro | I4: Client
A5: 2016-17 | B5: 35.27513074 | C5: 64.72486926 | D5: 19.63672339 | E5: 80.36327661 | F5: 10.71612495 | G5: 89.28387505 | H5: 18.22599286 | I5: 81.77400714
A6: 2017-18$ | B6: 35.52224967 | C6: 64.47775033 | D6: 21.2142844 | E6: 78.7857156 | F6: 11.78580379 | G6: 88.21419621 | H6: 23.90133104 | I6: 76.09866896
A7: 2017-04-01 | B7: 36.46897388 | C7: 63.53102612 | D7: 19.66153265 | E7: 80.33846735 | F7: 10.85887698 | G7: 89.14112302 | H7: 21.80548186 | I7: 78.19451814
A8: 2017-05-02 | B8: 36.43119258 | C8: 63.56880742 | D8: 20.03027124 | E8: 79.96972876 | F8: 13.86472948 | G8: 86.13527052 | H8: 20.54165681 | I8: 79.45834319
A9: 2017-06-03 | B9: 30.58482446 | C9: 69.41517554 | D9: 18.59179746 | E9: 81.40820254 | F9: 12.82 | G9: 87.18 | H9: 21.03 | I9: 78.97
A10: 2017-07-04 | B10: 34.26068736 | C10: 65.73931264 | D10: 20.29598275 | E10: 79.70401725 | F10: 15.56310225 | G10: 84.43689775 | H10: 22.35842409 | I10: 77.64157591
A11: 2017-08-05 | B11: 38.10529747 | C11: 61.89470253 | D11: 22.75137518 | E11: 77.24862482 | F11: 16.57560034 | G11: 83.42439966 | H11: 24.5118119 | I11: 75.4881881
A12: 2017-09-06 | B12: 36.24077853 | C12: 63.75922147 | D12: 23.07597504 | E12: 76.92402496 | F12: 16.06843011 | G12: 83.93156989 | H12: 26.35717287 | I12: 73.64282713
A13: 2017-10-07 | B13: 33.9384289 | C13: 66.0615711 | D13: 21.96727179 | E13: 78.03272821 | F13: 16.26296957 | G13: 83.73703043 | H13: 26.37635975 | I13: 73.62364025
A14: 2017-11-08 | B14: 35.02289839 | C14: 64.97710161 | D14: 22.11539887 | E14: 77.88460113 | F14: 16.32017987 | G14: 83.67982013 | H14: 26.30371837 | I14: 73.69628163
A15: 2017-12-09 | B15: 36.74160168 | C15: 63.25839832 | D15: 21.72394266 | E15: 78.27605734 | F15: 11.78580379 | G15: 88.21419621 | H15: 23.90133104 | I15: 76.09866896
A16: ='66'!A15 -> $ indicates as on December 31, 2017
A17: 1. All trades executed under client codes other than *OWN* (proprietary account) is treated as client trades and is computed at client Level.
A18: 2. All Commodities falling under the category of Energy, Bullion and Metals are treated as Non-Agri., wheresas other commodities are treated as Agri.
A19: 3. Open Interest provided is at end of the respective FY or Month as applicable and computed at client level. The OI value is considered before marking of delivery on the expiry date.
A20: Source: MCX

Sheet 74
A1: Table 74: Partcipant-wise Percentage Share of Turnover & Open Interest at NCDEX
A2: Year/ Month | B2: Turnover (Percent) | G2: Open Interest at the end of period (Percent)
B3: Agriculture Commodities | E3: Non-Agriculture Commodities | G3: Agriculture Commodities | J3: Non-Agriculture Commodities
B4: Pro | C4: Client | D4: Hedgers | E4: Pro | F4: Client | G4: Pro | H4: Client | I4: Hedgers | J4: Pro | K4: Client
A5: 2016-17 | B5: 41.5601082 | C5: 58.16545824 | D5: 0.2744335556 | E5: 73.63811558 | F5: 26.36188442 | G5: 20.65897009 | H5: 78.32909632 | I5: 1.011933594 | J5: 0 | K5: 0
A6: 2017-18$ | B6: 40.86652653 | C6: 58.98924131 | D6: 0.144232159 | E6: 0 | F6: 0 | G6: =G15 -> 20.34852866 | H6: =H15 -> 79.14090774 | I6: =I15 -> 0.510563599 | J6: 0 | K6: 0
A7: 2017-04-01 | B7: 39.48011147 | C7: 60.29572613 | D7: 0.2241624083 | E7: 0 | F7: 0 | G7: 21.21515009 | H7: 77.73193323 | I7: 1.052916681 | J7: 0 | K7: 0
A8: 2017-05-02 | B8: 41.62563879 | C8: 58.16441205 | D8: 0.2099491603 | E8: 0 | F8: 0 | G8: 22.4933864 | H8: 76.45290105 | I8: 1.053712547 | J8: 0 | K8: 0
A9: 2017-06-03 | B9: 40.81189417 | C9: 58.97496702 | D9: 0.213138807 | E9: 0 | F9: 0 | G9: 19.86134323 | H9: 79.20694347 | I9: 0.9317133039 | J9: 0 | K9: 0
A10: 2017-07-04 | B10: 41.61195531 | C10: 58.35613742 | D10: 0.03190726325 | E10: 0 | F10: 0 | G10: 21.27458669 | H10: 77.77677889 | I10: 0.9486344181 | J10: 0 | K10: 0
A11: 2017-08-05 | B11: 40.79054557 | C11: 59.17097466 | D11: 0.03847976992 | E11: 0 | F11: 0 | G11: 18.57957199 | H11: 80.82656758 | I11: 0.5938604328 | J11: 0 | K11: 0
A12: 2017-09-06 | B12: 42.13003735 | C12: 57.76180226 | D12: 0.1081603938 | E12: 0 | F12: 0 | G12: 18.78615948 | H12: 80.3890788 | I12: 0.8247617129 | J12: 0 | K12: 0
A13: 2017-10-07 | B13: 40.41866659 | C13: 59.41080886 | D13: 0.1705245451 | E13: 0 | F13: 0 | G13: 19.95210049 | H13: 79.22821736 | I13: 0.8196821545 | J13: 0 | K13: 0
A14: 2017-11-08 | B14: 41.35679126 | C14: 58.45399623 | D14: 0.1892125072 | E14: 0 | F14: 0 | G14: 22.43777996 | H14: 76.70552775 | I14: 0.8566922901 | J14: 0 | K14: 0
A15: 2017-12-09 | B15: 39.53963018 | C15: 60.3282007 | D15: 0.1321691155 | E15: 0 | F15: 0 | G15: 20.34852866 | H15: 79.14090774 | I15: 0.510563599 | J15: 0 | K15: 0
A16: ='66'!A15 -> $ indicates as on December 31, 2017
A17: Source: NCDEX

Sheet 75
A1: Table 75: Participant-wise Percentage Share of Turnover & Open Interest at NMCE
A2: Year/ Month | B2: Turnover | D2: Open Interest at the end of Period
B3: Pro | C3: Client | D3: Pro | E3: Client
A4: 2016-17 | B4: 4.801351646 | C4: 95.19864835 | D4: 0.9642873795 | E4: 99.03571262
A5: 2017-18$ | B5: 1.932383196 | C5: 98.0676168 | D5: 4.369294368 | E5: 95.63070563
A6: 2017-04-01 | B6: 2.921760323 | C6: 97.07823968 | D6: 0.9444626773 | E6: 99.05553732
A7: 2017-05-02 | B7: 1.622257383 | C7: 98.37774262 | D7: 1.298771481 | E7: 98.70122852
A8: 2017-06-03 | B8: 0.9928109732 | C8: 99.00718903 | D8: 0.8506122724 | E8: 99.14938773
A9: 2017-07-04 | B9: 1.830733806 | C9: 98.16926619 | D9: 0.9365380837 | E9: 99.06346192
A10: 2017-08-05 | B10: 1.283129444 | C10: 98.71687056 | D10: 1.429696731 | E10: 98.57030327
A11: 2017-09-06 | B11: 2.977542405 | C11: 97.02245759 | D11: 1.996749911 | E11: 98.00325009
A12: 2017-10-07 | B12: 1.419848084 | C12: 98.58015192 | D12: 1.630717256 | E12: 98.36928274
A13: 2017-11-08 | B13: 0.8052671613 | C13: 99.19473284 | D13: 1.1650374 | E13: 98.8349626
A14: 2017-12-09 | B14: 3.590874336 | C14: 96.40912566 | D14: 4.369294368 | E14: 95.63070563
A15: ='66'!A15 -> $ indicates as on December 31, 2017
A16: Source: NMCE

Sheet 76
A1: Table 76: Participant -wise Percentage Share of Turnover & Open Interest at ICEX
A2: Year/ Month | B2: Turnover | D2: Open Interest at the end of Period
B3: Pro | C3: Client | D3: Pro | E3: Client
A4: 2017-18$ | B4: 63.04 | C4: 36.96 | D4: 65.706 | E4: 34.29
A5: 2017-08-17 | B5: 52.0631068 | C5: 47.9368932 | D5: 75.44593702 | E5: 24.55406298
A6: 2017-09-17 | B6: 62.65396153 | C6: 37.34603847 | D6: 64.32309705 | E6: 35.67690295
A7: 2017-10-17 | B7: 68.24902488 | C7: 31.75097512 | D7: 50.88109162 | E7: 49.11890838
A8: 2017-11-18 | B8: 62.957 | C8: 37.04 | D8: 53.85 | E8: 46.15 | H8: ='[3]Table Index'!H21 -> 
A9: 2017-12-19 | B9: 69.26 | C9: 30.74 | D9: 65.706 | E9: 34.29
A10: ='66'!A15 -> $ indicates as on December 31, 2017
A11: Note: Turnover is for the month & OI details are for the last day of the month.
A12: Source: ICEX

Sheet 77
A1: Table 77: Commodity-wise monthly turnover and trading volume at MCX
A2: Sr.No | B2: Name of the Commodity | C2: 2017-18$ | E2: 2016-12-01 | G2: 2017-11-01 | I2: 2017-12-01
C3: Volume ('000 tonnes) | D3: Value (` crore) | E3: Volume ('000 tonnes) | F3: Value (` crore) | G3: Volume ('000 tonnes) | H3: Value (` crore) | I3: Volume ('000 tonnes) | J3: Value (` crore)
A4: Futures
A5: A | B5: Bullion
A6: 1 | B6: Gold | C6: 1.891719442 | D6: 548758.0769 | E6: 0.171255021 | F6: 47095.29801 | G6: 0.192165278 | H6: 56558.08469 | I6: 0.145158682 | J6: 41669.56335
A7: 2 | B7: Silver | C7: 124.035155 | D7: 486126.5423 | E7: 12.740174 | F7: 51263.52849 | G7: 14.059864 | H7: 55421.90235 | I7: 10.792458 | J7: 40733.9419
B8: Total for A | C8: =SUM(C6:C7) -> 125.9268744 | D8: 1034884.619 | E8: 12.91142902 | F8: 98358.82649 | G8: 14.25202928 | H8: 111979.987 | I8: 10.93761668 | J8: 82403.50525
A9: B | B9: Metals other than Bullion
A10: 1 | B10: Aluminium | C10: 10115.495 | D10: 132490.0091 | E10: 688.38 | F10: 8063.465105 | G10: 1386.431 | H10: 18954.63904 | I10: 1191.041 | J10: 16168.07372
A11: 2 | B11: Copper | C11: 8129.1375 | D11: 333386.4348 | E11: 926.403 | F11: 35975.12968 | G11: 966.848 | H11: 43003.2192 | I11: 815.1145 | J11: 36317.90879
A12: 3 | B12: Lead | C12: 19329.768 | D12: 292025.1863 | E12: 1871.633 | F12: 28108.41821 | G12: 2130.255 | H12: 34099.86197 | I12: 2063.584 | J12: 33289.01839
A13: 4 | B13: Nickel | C13: 2570.04425 | D13: 177498.711 | E13: 175.1724 | F13: 13059.77825 | G13: 391.4543 | H13: 30617.79267 | I13: 285.8069 | J13: 21182.78767
A14: 5 | B14: Zinc | C14: 30176.685 | D14: 572134.2352 | E14: 3009.155 | F14: 54497.42472 | G14: 3437.11 | H14: 71777.23166 | I14: 2831.66 | J14: 58072.15001
B15: Total for B | C15: =SUM(C10:C14) -> 70321.12975 | D15: =SUM(D10:D14) -> 1507534.576 | E15: =SUM(E10:E14) -> 6670.7434 | F15: 139704.216 | G15: 8312.0983 | H15: 198452.7446 | I15: 7187.2064 | J15: 165029.9386
A16: C | B16: Agricultural commodities
A17: 1 | B17: Cardamom | C17: 4.3704 | D17: 479.084034 | E17: 0.915 | F17: 124.554925 | G17: 0.5003 | H17: 49.457996 | I17: 0.3167 | J17: 33.833148
A18: 2 | B18: Castorseed | C18: 0.05 | D18: 0.2316 | E18: Na | F18: Na | G18: Na | H18: Na | I18: Na | J18: Na
A19: 3 | B19: Cotton | C19: 2205.65225 | D19: 25771.42455 | E19: 247.70275 | F19: 2776.921875 | G19: 180.90125 | H19: 1959.612025 | I19: 398.94325 | J19: 4630.938675
A20: 4 | B20: CPO | C20: 6147.6 | D20: 32006.23098 | E20: 706.93 | F20: 3989.12724 | G20: 874.74 | H20: 4985.64956 | I20: 598.2 | J20: 3368.01147
A21: 5 | B21: Kapas | C21: 0.008 | D21: 0.041866 | E21: 0.032 | F21: 0.146512 | G21: Na | H21: Na | I21: Na | J21: Na
A22: 6 | B22: Mentha Oil | C22: 189.225 | D22: 23404.33598 | E22: 19.314 | F22: 1959.719069 | G22: 27.06696 | H22: 4404.949596 | I22: 20.72448 | J22: 3615.338977
A23: 7 | B23: Pepper | C23: 3.145 | D23: 149.07106 | E23: Na | F23: Na | G23: 0.039 | H23: 1.577645 | I23: 0.006 | J23: 0.245895
A24: 8 | B24: RBD Palmolein | C24: 33.26 | D24: 178.66924 | E24: Na | F24: Na | G24: Na | H24: Na | I24: Na | J24: Na
B25: Total for C | C25: =SUM(C17:C24) -> 8583.31065 | D25: 81989.08931 | E25: 974.89375 | F25: 8850.469621 | G25: 1083.24751 | H25: 11401.24682 | I25: 1018.19043 | J25: 11648.36817
A26: D | B26: Energy
A27: 1 | B27: Crude Oil | C27: 430951.3637 | D27: 1021985.644 | E27: 35841.77132 | F27: 92866.40002 | G27: 43401.96379 | H27: 117019.3047 | I27: 36246.66083 | J27: 98732.88146
A28: 2 | B28: Natural Gas (trln. Btu) | C28: 12136.27875 | D28: 235664.3398 | E28: 1755.0675 | F28: 42689.30137 | G28: 1575.80875 | H28: 31410.44969 | I28: 2186.6625 | J28: 39225.12137
B29: Total for D* | C29: 430951.3637 | D29: =SUM(D27:D28) -> 1257649.984 | E29: 35841.77132 | F29: =SUM(F27:F28) -> 135555.7014 | G29: 43401.96379 | H29: =SUM(H27:H28) -> 148429.7544 | I29: 36246.66083 | J29: 137958.0028
A30: Grand Total (A+B+C+D) | C30: =SUM(C8+C15+C25+C29) -> 509981.731 | D30: =SUM(D8+D15+D25+D29) -> 3882058.269 | E30: =SUM(E8+E15+E25+E27) -> 43500.3199 | F30: =SUM(F8+F15+F25+F29) -> 382469.2135 | G30: 52811.56163 | H30: =SUM(H8+H15+H25+H29) -> 470263.7328 | I30: =SUM(I8+I15+I25+I29) -> 44462.99527 | J30: =SUM(J8+J15+J25+J29) -> 397039.8148
A31: Options
A32: E | B32: Gold# | C32: 0.025036 | D32: 7438.83 | E32: Na | F32: Na | G32: 0.009658 | H32: 2865.77 | I32: 0.004326 | J32: 1275.47
A33: ='66'!A15 -> $ indicates as on December 31, 2017
A34: Note : *Natural Gas volumes are in Trillion BTU and is not included for computing the Total Volume in '000 tonnes
A35: Conversion factors: Cotton (1 Bale=170 kg), Crude Oil (1 Tonne = 7.33Barrels)
A36: # In respect of gold option, turnover values are notional value in ₹ crores
A37: Source : MCX

Sheet 78
A1: Table :78 Commodity- Wise Monthly Turnover & trading volume at NCDEX
A2: Sr.No | B2: Name of Agri. Commodity | C2: 2017-18$ | E2: 2016-12-01 | G2: 2017-11-01 | I2: 2017-12-01
C3: Volume in 1000 tons | D3: Value (` crore) | E3: Volume in 1000 tons | F3: Value (` crore) | G3: Volume in 1000 tons | H3: Value (` crore) | I3: Volume in 1000 tons | J3: Value (` crore)
A4: 1 | B4: Barley | C4: 189.38 | D4: 278.98 | E4: 4.51 | F4: 8.13 | G4: 6.02 | H4: 9.16 | I4: 1.38 | J4: 2.09
A5: 2 | B5: Castorseed | C5: 7228.99 | D5: 32981.54 | E5: Na | F5: Na | G5: 694.81 | H5: 3093.37 | I5: 585.66 | J5: 2638.27
A6: 3 | B6: Chana | C6: 8495.48 | D6: 43460.86 | E6: Na | F6: Na | G6: 1540.97 | H6: 7372.23 | I6: 1769.42 | J6: 7228.57
A7: 4 | B7: Chilli | C7: Na | D7: Na | E7: 0.005 | F7: 0.04 | G7: Na | H7: Na | I7: Na | J7: Na
A8: 5 | B8: Cotton seed oil cake | C8: 10029.65 | D8: 17315.58 | E8: 702.13 | F8: 1388.27 | G8: 906.23 | H8: 1429.1 | I8: 1419.68 | J8: 2479.46
A9: 6 | B9: Cotton | C9: Na | D9: Na | E9: 0.089 | F9: 4.26 | G9: Na | H9: Na | I9: Na | J9: Na
A10: 7 | B10: Coriander | C10: 2752.83 | D10: 15043.11 | E10: 80.46 | F10: 627.37 | G10: 234.73 | H10: 1212.04 | I10: 267.35 | J10: 1512.26
A11: 8 | B11: Guar seed | C11: 23031.082 | D11: 86527.27 | E11: 852.66 | F11: 2800.94 | G11: 3134.29 | H11: 11727.37 | I11: 2915.8 | J11: 11561.38
A12: 9 | B12: Guargum | C12: 5298.66 | D12: 42844.37 | E12: 245.025 | F12: 1523.22 | G12: 717.14 | H12: 6003.11 | I12: 681.575 | J12: 5989.11
A13: 10 | B13: Jeera | C13: 1499.088 | D13: 28829.12 | E13: 73.494 | F13: 1287.65 | G13: 109.599 | H13: 2189.22 | I13: 106.866 | J13: 2263.82
A14: 11 | B14: Kapas | C14: 2530.344 | D14: 11693.86 | E14: 45.63 | F14: 847.53 | G14: 302.164 | H14: 1374.43 | I14: 510.94 | J14: 2567.74
A15: 12 | B15: Maize | C15: 239.24 | D15: 319.32 | E15: 74.46 | F15: 106.06 | G15: 0.03 | H15: 0.04 | I15: 0.1 | J15: 0.12
A16: 13 | B16: Pepper | C16: 4.677 | D16: 221.07 | E16: Na | F16: Na | G16: 0.057 | H16: 2.36 | I16: 0.026 | J16: 1.01
A17: 14 | B17: Rape/Mustard Seed | C17: 8233.64 | D17: 31213.59 | E17: 595.98 | F17: 2670.9 | G17: 955.66 | H17: 3829.34 | I17: 823.8 | J17: 3326.71
A18: 15 | B18: Rape/Mustard oilcake | C18: 14.71 | D18: 26.71 | E18: Na | F18: Na | G18: Na | H18: Na | I18: Na | J18: Na
A19: 16 | B19: Sugar | C19: 13.53 | D19: 49.97 | E19: 19.15 | F19: 68.01 | G19: 0.13 | H19: 0.42 | I19: 0.16 | J19: 0.51
A20: 17 | B20: Soybean | C20: 14418.91 | D20: 42967.49 | E20: 1291.64 | F20: 3974.83 | G20: 2843.39 | H20: 8370.69 | I20: 1988.55 | J20: 6181.03
A21: 18 | B21: Refined Soy oil | C21: 8478.38 | D21: 56152.94 | E21: 887.7 | F21: 6416.78 | G21: 1205.88 | H21: 8679.46 | I21: 712.95 | J21: 5187.74
A22: 19 | B22: Soymeal | C22: 0.77 | D22: 1.89 | E22: Na | F22: Na | G22: Na | H22: Na | I22: Na | J22: Na
A23: 20 | B23: Degummed Soy Oil | C23: 12.44 | D23: 73.07 | E23: Na | F23: Na | G23: Na | H23: Na | I23: Na | J23: Na
A24: 21 | B24: Turmeric | C24: 1214.37 | D24: 8208.88 | E24: 49.345 | F24: 347.82 | G24: 94.475 | H24: 684.51 | I24: 59.505 | J24: 450.1
A25: 22 | B25: Wheat | C25: 614.15 | D25: 1014.21 | E25: 34.2 | F25: 68.33 | G25: 56.1 | H25: 96.51 | I25: 42.46 | J25: 70.66
B26: Total | C26: =SUM(C4:C25) -> 94300.321 | D26: 419223.83 | E26: 4956.478 | F26: 22140.14 | G26: 12801.675 | H26: 56073.36 | I26: 11886.222 | J26: 51460.58
A27: ='66'!A15 -> $ indicates as on December 31, 2017
A28: Source: NCDEX
F32: T

Sheet 79
A1: Table 79: Commodity- Wise monthly turnover & trading volume at NMCE
A2: Sr.No | B2: Name of the Commodity | C2: 2017-18$ | E2: 2016-12-01 | G2: 2017-11-01 | I2: 2017-12-01
C3: Volume ('000 tonnes) | D3: Value (` crore) | E3: Volume ('000 tonnes) | F3: Value (` crore) | G3: Volume ('000 tonnes) | H3: Value (` crore) | I3: Volume ('000 tonnes) | J3: Value (` crore)
A4: 1 | B4: Castorseed | C4: 796.27 | D4: 3622.06483 | E4: 53.44 | F4: 203.581844 | G4: 98.23 | H4: 437.0995 | I4: 95.18 | J4: 428.66572
A5: 2 | B5: Guarseed | C5: 584.599 | D5: 2160.168234 | E5: 87.657 | F5: 288.215526 | G5: 35.007 | H5: 126.86594 | I5: 37.529 | J5: 149.260565
A6: 3 | B6: Isabgulseed | C6: 461.4165 | D6: 5189.00389 | E6: 49.6125 | F6: 586.35242 | G6: 52.923375 | H6: 583.756427 | I6: 52.34625 | J6: 582.070515
A7: 4 | B7: Pepper Mini | C7: 0.4732 | D7: 23.0643558 | E7: 0.1042 | F7: 7.1746622 | G7: 0.0297 | H7: 1.2328567 | I7: 0.0309 | J7: 1.294239
A8: 5 | B8: Rape/Mustardseed | C8: 1966.82 | D8: 6341.071405 | E8: 167.67 | F8: 574.15427 | G8: 239.81 | H8: 800.03052 | I8: 228.65 | J8: 771.70355
A9: 6 | B9: Raw Jute | C9: 1552.61 | D9: 6002.420989 | E9: 110.12 | F9: 468.155897 | G9: 189.8 | H9: 755.016708 | I9: 178.15 | J9: 706.754811
A10: 7 | B10: Rubber | C10: 129.079 | D10: 1720.18417 | E10: 21.372 | F10: 297.584096 | G10: 10.74 | H10: 136.364339 | I10: 15.406 | J10: 208.230463
B11: Total | C11: =SUM(C4:C10) -> 5491.2677 | D11: 25057.97787 | E11: 489.9757 | F11: 2425.218715 | G11: 626.540075 | H11: 2840.366291 | I11: 607.29215 | J11: 2847.979863
A12: ='66'!A15 -> $ indicates as on December 31, 2017
A13: Source : NMCE

Sheet 80
A1: Table 80: Macro Economic Indicators
A2: I. GDP at constant prices (2011-12 prices) for 2016-17 (`crore)* | E2: 12189854
A3: II. Gross Saving as a percent of Gross national Disposable Income at current market prices in 2015-16 | E3: 31.6
A4: III. Gross Capital Formation as a percent of GDP at current market prices in 2016-17@ | E4: 27.1
A5: IV. Monetary and Banking Indicators | B5: August | C5: September | D5: October | E5: November | F5: December
B6: 2017 | C6: 2017 | D6: 2017 | E6: 2017 | F6: 2017
A7: Cash Reserve Ratio (percent) | B7: 4 | C7: 4 | D7: 4 | E7: 4 | F7: 4
A8: Repo Rate (percent) | B8: 6 | C8: 6 | D8: 6 | E8: 6 | F8: 6
A9: Money Supply (M3) (` crore) | B9: 12926420 | C9: 13233780 | D9: 131671.4 | E9: 131986.4 | F9: 132723.8
A10: Aggregate Deposit (` crore) | B10: 10672670 | C10: 10967730 | D10: 108497.7 | E10: 108471.5 | F10: 108851.2
A11: Bank Credit (` crore) | B11: 7704220 | C11: 8008830 | D11: 7916930 | E11: 79618.8 | F11: 80967.3
A12: V. Interest Rate
A13: Call Money Rate (Weighted Average) | B13: 5.93 | C13: 5.88 | D13: 5.85 | E13: 5.89 | F13: 5.99
A14: 91-Day-Treasury Bill (Primary Yield) | B14: 6.11 | C14: 6.11 | D14: 6.11 | E14: 6.11 | F14: 6.19
A15: Base rate (percent) | B15: 9.00/9.55 | C15: 9.00/9.55 | D15: 8.95/9.45 | E15: 8.95/9.45 | F15: 8.85/9.45
A16: Term Deposit Rate > 1 year (Maximum) | B16: 6.25/6.75 | C16: 6.25/6.75 | D16: 6.25/6.75 | E16: 6.00/6.75 | F16: 7.65/8.05
A17: VI. Capital Market Indicators (`crore)
A18: Turnover (BSE+NSE) | B18: 632893.0352 | C18: 684440.6901 | D18: 685448.5217 | E18: 857895.5422 | F18: 693721.1762
A19: Market Cap-BSE | B19: 13189762.82 | C19: 13181353.14 | D19: 14391545.9 | E19: 14596655.54 | F19: 15173866.88
A20: Market Cap-NSE | B20: 13055208.03 | C20: 13045716.34 | D20: 14208617.46 | E20: 14392501.05 | F20: 14982295.75
A21: Net FPI Investment in Equity | B21: -1991.65 | C21: -1752 | D21: 3055.44 | E21: 19727.65 | F21: -5882.68
A22: VII. Exchange Rate and Reserves
A23: Forex Reserves (USD million) | B23: 394550 | C23: 399656.7 | D23: 398761.3 | E23: 400741.8 | F23: 409366.6
A24: Re/ Dollar | B24: 64.07 | C24: 65.36 | D24: 65.09 | E24: 64.73 | F24: 63.93
A25: Re/Euro | B25: 75.58 | C25: 77.06 | D25: 75.68 | E25: 76.72 | F25: 76.39
A26: Forward Premia of USD 6-month | B26: 4.48 | C26: 4.19 | D26: 4.36 | E26: 4.39 | F26: 4.32
A27: VIII. Public Borrowing and Inflation
A28: Govt. Market Borrowing-Gross (` crore) 2017-18 | B28: 294000 | C28: 357000 | D28: 401000 | E28: 461000 | F28: 5210
A29: Wholesale Price Index (2011-12=100) | B29: 114.8 | C29: 114.3 | D29: 115.5 | E29: 116.3 | F29: 115.7 | G29: http://mospi.nic.in/
A30: Consumer Price Index (2012 =100) | B30: 135.5 | C30: 135.2 | D30: 136.1 | E30: 137.6 | F30: 139.8
A31: IX. Index of Industrial Production (y-o-y) percent (Base year 2011-12 = 100)
A32: General | B32: 121.5 | C32: 123.1 | D32: 122.7 | E32: 125.6 | F32: NA | G32: http://mospi.nic.in/
A33: Mining | B33: 92.7 | C33: 94.5 | D33: 100.9 | E33: 107.4 | F33: NA | G33: http://mospi.nic.in/
A34: Manufacturing | B34: 123.3 | C34: 125.6 | D34: 124 | E34: 127.5 | F34: NA | G34: http://mospi.nic.in/
A35: Electricity | B35: 155.4 | C35: 150.5 | D35: 149.8 | E35: 140.1 | F35: NA | G35: http://mospi.nic.in/
A36: X. External Sector Indicators (USD million)
A37: Exports | B37: 23818.83 | C37: 28613.41 | D37: 23098.18 | E37: 26195.76 | F37: 27030.27 | G37: commerce.nic.in
A38: Imports | B38: 29303.2 | C38: 37597.7 | D38: 37117.01 | E38: 40024.96 | F38: 41910.46 | G38: commerce.nic.in
A39: Trade Balance | B39: -5484.37 | C39: -8984.29 | D39: -14018.83 | E39: -13829.2 | F39: -14880.19 | H39: 0 | I39: 0 | J39: 0
A40: Notes: 1. * : Provisional Estimates; Data as per the new series released by MOSPI
A41: 2. CPI Data ia being released on Base 2012=100 from January 2015 by MOSPI
A42: 3. @ First Revised Estimates
A43: 4. ! Base year is 2004-05 (2004-05=100)
A44: Source : RBI, MOSPI, Ministry of Commerce & Industry.
